{"text_format":"1","workbook":"xlsx","n_sheets":4,"sheets":["Harmonogram FEL","Dostępna tabela-wskazówki","słownik wnioskodawców","listy rozwijane - do ukrycia"],"not_rendered":{"charts":0,"images":1,"macros":0,"external_links":1,"defined_names":5,"comments":0,"pivot_tables":0},"unopened":[],"bounds":{"document_bytes":16777216,"sheet_cells":100000,"rows_first":2000,"rows_last":500,"rows_between":2000,"halvings":0,"cell_chars":16384,"cell_head_chars":4096},"cells_cut":0,"cells_raw":0,"read":"whole","date_system":"1900"}

{"sheet":"Harmonogram FEL","index":0,"n_rows":50,"n_cols":23,"rows_kept":50,"cut":false,"hidden":false,"merged":[[3,10,3,12],[4,10,4,12],[2,21,2,22]]}
["Harmonogram naborów wniosków o dofinansowanie w programie Fundusze Europejskie dla Lubelskiego 2021-2027"]
["Data zatwierdzenia: 19 maja 2026 r."]
[]
["Program","Działanie - kod i nazwa","Realizacja instrumentów terytorialnych","Tytuł naboru","Typy projektów, które mogą otrzymać dofinansowanie ","Sposób wyboru projektów","Wnioskodawcy - ogólni","Wnioskodawcy - szczegółowi","Dotyczy JST","Dotyczy MŚP","Przewidywana data rozpoczęcia naboru\n(sekcja techniczna)",null,null,"Przewidywana data rozpoczęcia naboru\n(funkcja)","Data zakończenia naboru","Całkowity budżet naboru (PLN)","Obszar geograficzny","Instytucja, która przeprowadzi nabór","Cel szczegółowy - kod i nazwa","Fundusz","Informacje dodatkowe","Data ogłoszenia naboru","Całkowity budżet naboru (EUR)"]
[1,2,3,4,5,6,7,8,9,10,11,15,"16",12,13,14,15,16,17,18,19,20,21]
["pole jednokrotnego wyboru - wypełnić jako pierszą","pole jednokrotnego wyboru","pole jednokrotnego wyboru","pole należy wypełnić ręcznie","pole należy wypełnić ręcznie","pole jednokrotnego wyboru","pole należy wypełnić ręcznie - zgodnie ze słownikiem","pole należy wypełnić ręcznie - dodatkowe informacje wg potrzeb IZPR","pole jednokrotnego wyboru","pole jednokrotnego wyboru","rok","miesiąc","dzień","pole wypełni się automatycznie (uwaga: funkcja)","rrrr-mm-dd lub rrrr-mm","pole należy wypełnić ręcznie","pole należy wypełnić ręcznie","pole należy wypełnić ręcznie","pole jednokrotnego wyboru","pole jednokrotnego wyboru","pole należy wypełnić ręcznie (jeśli dotyczy)","rrrr-mm-dd lub rrrr-mm","pole należy wypełnić ręcznie"]
["FELU","FELU.02.05 Usługi dla MŚP","Nie dotyczy","Usługi inkubacyjne dla nowopowstałych firm","2. Usługi inkubacyjne dla nowopowstałych firm.","konkurencyjny","Instytucje wspierające biznes","Instytucje otoczenia biznesu","Nie","Tak",2026,"05","11",{"$f":"IF(ISBLANK(M7),_xlfn.CONCAT(K7,\"-\",L7),_xlfn.CONCAT(K7,\"-\",L7,\"-\",M7))","v":"2026-05-11"},"2026-06-12",4288300,"Województwo lubelskie","Lubelska Agencja Wspierania Przedsiębiorczości w Lublinie","EFRR.CP1.III Wzmacnianie trwałego wzrostu i konkurencyjności MŚP oraz tworzenie miejsc pracy w MŚP, w tym poprzez inwestycje produkcyjne","EFRR",null,"2026-04-29",1000000]
["FELU","FELU.02.08 Budowa i rozwój powiązań klastrowych","Nie dotyczy","Budowanie i wzmacnianie powiązań klastrowych","1. Budowanie i wzmacnianie powiązań klastrowych.\n","konkurencyjny","Partnerstwa","Klastry","Nie","Tak",2026,"06","11","2026-06-11","2026-07-31",4251800,"Województwo lubelskie","Lubelska Agencja Wspierania Przedsiębiorczości w Lublinie","EFRR.CP1.III Wzmacnianie trwałego wzrostu i konkurencyjności MŚP oraz tworzenie miejsc pracy w MŚP, w tym poprzez inwestycje produkcyjne","EFRR","Wsparciem zostaną objęte działania zmierzające do budowania i wzmacniania powiązań klastrowych, w tym podnoszenie kwalifikacji koordynatorów oraz kadry biura klastra, wsparcie finansowe klastrów zalążkowych oraz wzrostowych regionalnych w związku z nową usługą.","2026-05-28",1000000]
["FELU","FELU.03.06 Gospodarka odpadami w sektorze publicznym","Nie dotyczy","Gospodarka odpadami w sektorze publicznym - reedycja","1.\tProjekty z zakresu gospodarki odpadami komunalnymi, dotyczące:\na)\tInfrastruktury do selektywnego zbierania odpadów komunalnych (w tym budowa / modernizacja PSZOK, punktów napraw i przygotowania do ponownego użycia, systemowe zagospodarowanie odpadów w kompostownikach przydomowych),\nb)\tInfrastruktury do recyklingu i innych procesów odzysku odpadów wraz z procesami przygotowania odpadów do ich odzysku (rozbudowa linii sortowniczych odpadów w celu zwiększenia stopnia oraz jakości odzysku/recyklingu materiałów, modernizacja instalacji przetwarzania odpadów ulegających biodegradacji, budowa instalacji do przygotowania wyselekcjonowanych frakcji odpadów do recyklingu i innych procesów odzysku odpadów oraz do procesów produkcyjnych wykorzystujących odpady jako surowce),\nc)\tModernizacji procesów technologicznych w istniejących instalacjach mechaniczno-biologicznego przetwarzania odpadów poprzez dostosowanie do przetwarzania odpadów ulegających biodegradacji zbieranych selektywnie.\n3.\tProjekty mające na celu zminimalizowanie zużycia zasobów, ilości wytwarzanych odpadów produkcyjnych, emisji zanieczyszczeń i strat energii służące osiągnięciu założeń GOZ.\n4.\tDziałania informacyjno-edukacyjne w zakresie gospodarki o obiegu zamkniętym.","konkurencyjny","Administracja publiczna;\nOrganizacje społeczne i związki wyznaniowe;\nPartnerstwa","Podmioty ekonomii społecznej; Jednostki Samorządu Terytorialnego; Partnerstwa Publiczno-Prywatne; Jednostki organizacyjne działające w imieniu jednostek samorządu terytorialnego; Kościoły i związki wyznaniowe; Podmioty świadczące usługi publiczne w ramach realizacji obowiązków własnych jednostek samorządu terytorialnego; Jednostki rządowe i samorządowe ochrony środowiska; Duże przedsiębiorstwa","Tak","Nie",2026,"07","06","2026-07-06","2026-08-06",11331425.41,"Województwo lubelskie","Urząd Marszałkowski Województwa Lubelskiego w Lublinie Departament Wdrażania Europejskiego Funduszu Rozwoju Regionalnego","EFRR/FS.CP2.VI Wspieranie transformacji w kierunku gospodarki o obiegu zamkniętym i gospodarki zasobooszczędnej","EFRR","W ramach kategorii wnioskodawcy: duże przedsiębiorstwa - uprawnione są wyłącznie: Spółki prawa handlowego, w których większość udziałów lub akcji\nposiadają JST lub ich związki. ","2026-06-25",2665089]
["FELU","FELU.03.08 GOZ w przedsiębiorstwach","Nie dotyczy","Projekty mające na celu zminimalizowanie zużycia surowców, ilości wytwarzanych odpadów produkcyjnych, emisji zanieczyszczeń i strat energii służące osiągnięciu założeń GOZ. Projekty polegające na zamykaniu obiegu odpadów organicznych.","1.\tProjekty mające na celu zminimalizowanie zużycia zasobów, ilości wytwarzanych odpadów produkcyjnych, emisji zanieczyszczeń i strat energii służące osiągnięciu założeń GOZ.\n2.\tProjekty polegające na zamykaniu obiegu odpadów organicznych, w tym przetwarzanie/ wykorzystanie odpadów organicznych np. biomasa i bioprodukty.","konkurencyjny","Przedsiębiorstwa","MŚP","Nie","Tak",2026,"04","08","2026-04-08","2026-05-29",25335000,"Województwo lubelskie","Lubelska Agencja Wspierania Przedsiębiorczości w Lublinie","EFRR/FS.CP2.VI Wspieranie transformacji w kierunku gospodarki o obiegu zamkniętym i gospodarki zasobooszczędnej","EFRR","Podmioty uprawnione do złożenia wniosku o dofinansowanie: MŚP","2026-03-18",6000000]
["FELU","FELU.05.01 Niskoemisyjny transport miejski","Nie dotyczy","Niskoemisyjny transport miejski - reedycja","1.\tZakup oraz modernizacja taboru trolejbusowego i niskoemisyjnego taboru autobusowego oraz zeroemisyjnego taboru szynowego dla połączeń miejskich i podmiejskich wraz z niezbędną infrastrukturą.\n2.\tBudowa infrastruktury ładowania i tankowania pojazdów zeroemisyjnych, spełniającej wymogi Dyrektywy 2014/94/UE oraz zapewniającej niedyskryminacyjny dostęp dla wszystkich użytkowników - jeżeli nie ma możliwości finansowania inwestycji ze źródeł prywatnych lub z pomocy zwrotnej, a inwestycja uzasadniona jest odpowiednią analizą popytu i potrzeb.\n3.\tBudowa, rozbudowa i przebudowa infrastruktury transportu publicznego, w tym dostosowanie jej do potrzeb osób z niepełnosprawnościami.\n4.\tInwestycje ograniczające indywidualny ruch zmotoryzowany i zwiększające ruch pieszy i rowerowy w centrach miast i ich obszarach funkcjonalnych.\n5.\tInwestycje (budowa, rozbudowa i przebudowa) obejmujące systemy ITS wspierające dekarbonizację transportu i zrównoważoną mobilność, jak również rozwiązania umożliwiające integrację taryfową i wdrożenie koncepcji „Mobilność jako Usługa” (MaaS), w tym systemy biletowe i aplikacje planowania podróży.\n6.\tJako dodatkowy element projektu będą wpierane również działania informacyjno-promocyjne i edukacyjne promujące korzystanie z niskoemisyjnego transportu zbiorowego, transportu multimodalnego i rowerowego oraz ruchu niezmotoryzowanego, jako element szerszego projektu związanego z infrastrukturą transportową.","konkurencyjny","Administracja publiczna; \nPrzedsiębiorstwa;\nPrzedsiębiorstwa realizujące cele publiczne;\nSłużby publiczne;","Jednostki Samorządu Terytorialnego; Organizatorzy i operatorzy publicznego transportu zbiorowego; Jednostki organizacyjne działające w imieniu jednostek samorządu terytorialnego; Podmioty świadczące usługi publiczne w ramach realizacji obowiązków własnych jednostek samorządu terytorialnego; Przedsiębiorstwa energetyczne","Tak","Nie",2026,"04","27","2026-04-27","2026-05-28",81016416.150000006,"Województwo lubelskie","Urząd Marszałkowski Województwa Lubelskiego w Lublinie Departament Wdrażania Europejskiego Funduszu Rozwoju Regionalnego","EFRR/FS.CP2.VIII Wspieranie zrównoważonej multimodalnej mobilności miejskiej jako elementu transformacji w kierunku gospodarki zeroemisyjnej","EFRR","W ramach typu Wnioskodawcy szczegółowego: \n- Jednostki organizacyjne działające w imieniu jednostek samorządu terytorialnego - uprawnione są wyłącznie jednostki organizacyjne JST posiadające osobowość prawną;\n- Przedsiębiorstwa energetyczne - uprawnione są wyłącznie podmioty prowadzące działalność w zakresie paliw alternatywnych.","2026-04-16",18892432]
["FELU","FELU.05.02 Niskoemisyjny transport miejski w ramach Zintegrowanych Inwestycji Terytorialnych","Nie dotyczy","Niskoemisyjny transport miejski w ramach Zintegrowanych Inwestycji Terytorialnychi - reedycja","1.\tZakup oraz modernizacja taboru trolejbusowego i niskoemisyjnego taboru autobusowego oraz zeroemisyjnego taboru szynowego dla połączeń miejskich i podmiejskich wraz z niezbędną infrastrukturą.\n2.\tBudowa infrastruktury ładowania i tankowania pojazdów zeroemisyjnych, spełniającej wymogi Rozporządzenia Parlamentu Europejskiego i Rady (UE) 2023/1804 oraz zapewniającej niedyskryminacyjny dostęp dla wszystkich użytkowników - jeżeli nie ma możliwości finansowania inwestycji ze źródeł prywatnych lub z pomocy zwrotnej, a inwestycja uzasadniona jest odpowiednią analizą popytu i potrzeb.\n3.\tBudowa, rozbudowa i przebudowa infrastruktury transportu publicznego, w tym dostosowanie jej do potrzeb osób z niepełnosprawnościami.\n4.\tInwestycje ograniczające indywidualny ruch zmotoryzowany i zwiększające ruch pieszy i rowerowy w centrach miast i ich obszarach funkcjonalnych.\n5.\tInwestycje (budowa, rozbudowa i przebudowa) obejmujące systemy ITS wspierające dekarbonizację transportu i zrównoważoną mobilność, jak również rozwiązania umożliwiające integrację taryfową i wdrożenie koncepcji „Mobilność jako Usługa” (MaaS), w tym systemy biletowe i aplikacje planowania podróży.\n6.\tJako dodatkowy element projektu będą wpierane również działania informacyjno-promocyjne i edukacyjne promujące korzystanie z niskoemisyjnego transportu zbiorowego, transportu multimodalnego i rowerowego oraz ruchu niezmotoryzowanego, jako element szerszego projektu związanego z infrastrukturą transportową.","niekonkurencyjny","Zintegrowane Inwestycje Terytorialne (ZIT), Administracja publiczna, Przedsiębiorstwa, Przedsiębiorstwa realizujące cele publiczne, Służby publiczne ","Zintegrowane Inwestycje Terytorialne (ZIT); Jednostki Samorządu Terytorialnego; Organizatorzy i operatorzy publicznego transportu zbiorowego; Jednostki organizacyjne działające w imieniu jednostek samorządu terytorialnego; Podmioty świadczące usługi publiczne w ramach realizacji obowiązków własnych jednostek samorządu terytorialnego; Przedsiębiorstwa energetyczne","Tak","Nie",2026,"06","30","2026-06-30","2026-07-30",39637388.619999997,"Miejskie Obszary Funkcjonalne ","Urząd Marszałkowski Województwa Lubelskiego w Lublinie Departament Wdrażania Europejskiego Funduszu Rozwoju Regionalnego","EFRR/FS.CP2.VIII Wspieranie zrównoważonej multimodalnej mobilności miejskiej jako elementu transformacji w kierunku gospodarki zeroemisyjnej","EFRR","Nabór skierowany będzie do tych wnioskodawców, których przedsięwzięcia zostały zidentyfikowane w pozytywnie zaopiniowanej strategii terytorialnej stanowiącej podstawę realizacji ZIT przez instytucję zarządzającą programem Fundusze Europejskie dla Lubelskiego 2021-2027 w zakresie możliwości finansowania ww. strategii w ramach tego programu.\nNabór w ramach instrumentu ZIT będzie prowadzony nieprzerwanie przez czas trwania naboru, aż do wyczerpania środków przeznaczonych na nabór. \nOcena wniosków o dofinansowanie prowadzona będzie na bieżąco w trakcie trwania naboru, po wpłynięciu wniosku o dofinansowanie.\nW ramach typu Wnioskodawcy szczegółowego: \n- Jednostki organizacyjne działające w imieniu jednostek samorządu terytorialnego - uprawnione są wyłącznie jednostki organizacyjne JST posiadające osobowość prawną;\n- Przedsiębiorstwa energetyczne - uprawnione są wyłącznie podmioty prowadzące działalność w zakresie paliw alternatywnych. ","2026-06-25",9322496.0303374808]
["FELU","FELU.06.03 Publiczny autobusowy transport zbiorowy","Nie dotyczy","Infrastruktura paliw alternatywnych","2.\tBudowa i modernizacja infrastruktury publicznego transportu zbiorowego, w tym: węzłów przesiadkowych, obiektów P+R („parkuj i jedź”), przystanków, zatok i wiat, a także infrastruktury ładowania/tankowania pojazdów bezemisyjnych wykorzystywanych w publicznym transporcie zbiorowym.","konkurencyjny","Administracja publiczna; \nPrzedsiębiorstwa realizujące cele publiczne;\n","Jednostki Samorządu Terytorialnego;  Przedsiębiorstwa energetyczne","Tak","Nie",2026,"07","27",{"$f":"IF(ISBLANK(M13),_xlfn.CONCAT(K13,\"-\",L13),_xlfn.CONCAT(K13,\"-\",L13,\"-\",M13))","v":"2026-07-27"},"2026-08-25",58313815.409999996,"Województwo lubelskie","Urząd Marszałkowski Województwa Lubelskiego w Lublinie Departament Wdrażania Europejskiego Funduszu Rozwoju Regionalnego","EFRR/FS.CP3.II Rozwój i udoskonalanie zrównoważonej, odpornej na zmiany klimatu, inteligentnej i intermodalnej mobilności na poziomie krajowym, regionalnym i lokalnym, w tym poprawę dostępu do TEN-T oraz mobilności transgranicznej","EFRR","W ramach typu Wnioskodawcy szczegółowego: \n- Przedsiębiorstwa energetyczne - uprawnione są wyłącznie podmioty prowadzące działalność w zakresie paliw alternatywnych.","2026-07-16",13715089]
["FELU","FELU.07.06 Infrastruktura usług i integracji społecznej","Nie dotyczy","Infrastruktura usług i integracji społecznej - reedycja ","1. Projekty w zakresie:\na) robót budowlanych i wyposażenia infrastruktury społecznej powiązanej z procesem integracji społecznej, aktywizacji społeczno-zawodowej, rozwoju usług w społeczności lokalnej i deinstytucjonalizacji usług w powiązaniu z działaniami EFS+ w ramach rozwoju usług społecznych i zdrowotnych w CS 4k),\nb) robót budowlanych i wyposażenia infrastruktury społecznej na rzecz integracji społeczno- gospodarczej obywateli państw trzecich, w tym migrantów w powiązaniu z działaniami EFS+ w ramach rozwoju usług społecznych i zdrowotnych w CS 4k) oraz w ramach działań skierowanych do obywateli państw trzecich w CS 4i),\nc) robót budowlanych i wyposażenia infrastruktury na potrzeby realizacji usług w społeczności lokalnej w szczególności na rzecz osób z niepełnosprawnościami, przewlekle chorych i osób starszych w powiązaniu z działaniami EFS+ w ramach rozwoju usług społecznych i zdrowotnych w CS 4k),\nd) robót budowlanych i wyposażenia infrastruktury mieszkań treningowych i wspomaganych (w uzasadnionych przypadkach także zakup lokali mieszkalnych na przedmiotowe cele) skierowanej w szczególności dla osób opuszczających pieczę zastępczą, zakłady poprawcze lub młodzieżowe ośrodki wychowawcze, w powiązaniu z działaniami EFS+ w ramach rozwoju usług społecznych i zdrowotnych w CS 4k) oraz działań ukierunkowanych na deinstytucjonalizację pieczy zastępczej czy usług dla osób w kryzysie bezdomności w CS 4l),\ne) robót budowlanych i wyposażenia infrastruktury mieszkań treningowych i wspomaganych,mieszkań z usługami/ze wsparciem (w uzasadnionych przypadkach także zakup lokali mieszkalnych na przedmiotowe cele) skierowanej dla cudzoziemców objętych indywidualnym planem integracji w powiązaniu z działaniami EFS+ w ramach rozwoju usług społecznych i zdrowotnych w CS 4k) oraz w ramach działań skierowanych do obywateli państw trzecich w CS 4i).\n2. Wsparcie infrastruktury (mieszkania/lokale – z wyłączeniem budowy nowych obiektów) wykorzystywanej w ramach najmu socjalnego, w tym dla cudzoziemców objętych indywidualnym planem integracji w powiązaniu z działaniami EFS+ w ramach rozwoju usług społecznych i zdrowotnych w CS 4k) oraz w ramach działań skierowanych do obywateli państw trzecich w CS 4i).","konkurencyjny","Administracja publiczna; Organizacje społeczne i związki wyznaniowe;","Jednostki Samorządu Terytorialnego; Jednostki organizacyjne działające w imieniu jednostek samorządu terytorialnego; Kościoły i związki wyznaniowe; Organizacje pozarządowe","Tak","Nie",2026,"06","08","2026-06-08","2026-07-09",25920601.620000001,"Województwo lubelskie","Urząd Marszałkowski Województwa Lubelskiego w Lublinie Departament Wdrażania Europejskiego Funduszu Rozwoju Regionalnego","EFRR.CP4.III Wspieranie włączenia społeczno-gospodarczego społeczności marginalizowanych, gospodarstw domowych o niskich dochodach oraz grup w niekorzystnej sytuacji, w tym osób o szczególnych potrzebach, dzięki zintegrowanym działaniom obejmującym usługi mieszkaniowe i usługi społeczne","EFRR","W ramach naboru zaangażowane będą środki budżetu państwa (2 700 603,43 PLN) stanowiące uzupełnienie do środków EFRR.","2026-05-28",6103712]
["FELU","FELU.07.09 Zrównoważony rozwój dziedzictwa kulturowego","Nie dotyczy","Zrównoważony rozwój dziedzictwa kulturowego - reedycja","1.\tWsparcie obiektów zabytkowych, zespołów tych zabytków wraz z ich otoczeniem do pełnienia funkcji związanych z kulturą poprzez prace konserwatorskie, restauratorskie, rewaloryzacyjne, renowacyjne, roboty budowlane oraz ich modernizację (z wyłączeniem rozbiórki), w tym:\na)\tzakup, modernizacja wyposażenia do prowadzenia działalności kulturalnej w obiektach będących celem projektu, roboty budowlane, modernizacja infrastruktury technicznej i sanitarnej (w tym z zakresu przystosowania obiektów do potrzeb osób z niepełnosprawnościami) - wyłącznie jako element projektu,\nb)\tprace konserwatorskie zabytków ruchomych (wyłącznie jako element projektu),\nc)\tzapewnienie niezbędnych warunków funkcjonowania instytucji i twórców kultury w sieci (wyłącznie jako element projektu).\n2.\tPrzedsięwzięcia infrastrukturalne w sektorze kultury ukierunkowane na rozwijanie aktywności społecznej m.in. poprzez tworzenie /adaptację /dostosowanie budynków i przestrzeni do realizacji oferty kulturalno-edukacyjnej, rozwój innowacji społecznych, w tym:\na)\tzakup, modernizacja wyposażenia do prowadzenia działalności kulturalnej w obiektach będących celem projektu, roboty budowlane, modernizacja infrastruktury technicznej i sanitarnej (w tym z zakresu przystosowania obiektów do potrzeb osób z niepełnosprawnościami) - wyłącznie jako element projektu,\nb)\tprace konserwatorskie zabytków ruchomych (wyłącznie jako element projektu),\nc)\tzapewnienie niezbędnych warunków funkcjonowania instytucji i twórców kultury w sieci (wyłącznie jako element projektu).\n3.\tZakup wyposażenia niezbędnego do prowadzenia działalności kulturalnej, w tym możliwość zapewnienia niezbędnych warunków funkcjonowania instytucji i twórców kultury w sieci (wyłącznie jako element projektu).\n4.\tProjekty z zakresu ochrony dziedzictwa niematerialnego.\n5.\tProjekty dotyczące nowych produktów w dziedzinie kultury.\n6.\tMonitoring i zabezpieczenie obiektów infrastruktury kultury i dziedzictwa kulturowego na wypadek zagrożeń.\n7.\tRewaloryzacja i zachowanie zabytkowych ogrodów i parków.\n8.\tWsparcie dla fundacji kulturalnych, agencji i stowarzyszeń, które mobilizują nowych odbiorców za pomocą narzędzi i usług cyfrowych, ze szczególnym uwzględnieniem ułatwiania integracji osób znajdujących się w trudniejszej sytuacji.","konkurencyjny","Administracja publiczna - Partnerstwa - Służby publiczne - Organizacje społeczne i związki wyznaniowe- Przedsiębiorstwa","Jednostki Samorządu Terytorialnego; duże przedsiębiorstwa; Partnerstwa Publiczno-Prywatne; Lasy Państwowe; Parki narodowe i krajobrazowe; Instytucje kultury i sportu; Kościoły i związki wyznaniowe; Organizacje pozarządowe; Podmioty ekonomii społecznej; Wspólnoty, spółdzielnie mieszkaniowe i TBS; Jednostki organizacyjne działające w imieniu jednostek samorządu terytorialnego","Tak","Nie",2026,"06","01","2026-06-01","2026-06-30",166084377.09,"Województwo lubelskie","Urząd Marszałkowski Województwa Lubelskiego w Lublinie Departament Wdrażania Europejskiego Funduszu Rozwoju Regionalnego","EFRR.CP4.VI Wzmacnianie roli kultury i zrównoważonej turystyki w rozwoju gospodarczym, włączeniu społecznym i innowacjach społecznych","EFRR","\n\nW ramach naboru planowane jest zaangażowane środków budżetu państwa na dofinansowanie wkładu krajowego,  stanowiących uzupełnienie do środków EFRR.\nW ramach kategorii wnioskodawcy: duże przedsiębiorstwa - uprawnione są wyłącznie: Spółki prawa handlowego, w których większość udziałów lub akcji posiadają JST lub ich związki. W ramach kategorii wnioskodawcy: Wspólnoty, spółdzielnie mieszkaniowe i TBS uprawnione są wyłącznie – spółdzielnie mieszkaniowe.\nW ramach kategorii wnioskodawcy: Instytucje kultury i sportu uprawnione są wyłącznie – instytucje kultury.","2026-05-21",39062133]
["FELU","FELU.08.02 Ekonomia społeczna","Nie dotyczy","Wsparcie w zakresie OWES","1. Wsparcie tworzenia nowych miejsc pracy i utrzymania tych miejsc w PS.\n2. Usługi wsparcia rozwoju ES dla PES i PS, w tym usługi animacyjne, inkubacyjne i biznesowe OWES.\n3. Wsparcie realizacji indywidualnego procesu reintegracji w PS.\n4. Działania w zakresie podnoszenia kwalifikacji i doświadczenia zawodowego pracowników PES.\t","konkurencyjny","Administracja publiczna; Organizacje społeczne i związki wyznaniowe; Służby publiczne;"," Podmioty ekonomii społecznej","Tak","Nie",2026,7,9,"2026-07-09","2026-08-13",55347721.464000002,"Województwo lubelskie","Urząd Marszałkowski Województwa Lubelskiego w Lublinie Departament Wdrażania Europejskiego Funduszu Społecznego","EFS+.CP4.H Wspieranie aktywnego włączenia społecznego w celu promowania równości szans, niedyskryminacji i aktywnego uczestnictwa, oraz zwiększanie zdolności do zatrudnienia, w szczególności grup w niekorzystnej sytuacji","EFS+",null,"2026-07-02",13017480]
["FELU","FELU.08.05 Usługi społeczne","Nie dotyczy","Budowanie zdolności organizacji społeczeństwa obywatelskiego - usługi społeczne","5. Budowanie zdolności organizacji społeczeństwa obywatelskiego w zakresie działań wspierających usługi społeczne.","konkurencyjny","Organizacje społeczne i związki wyznaniowe","Organizacje pozarządowe","Nie","Nie",2026,"04","16","2026-04-16","2026-05-21",5586299.7999999998,"Województwo lubelskie","Urząd Marszałkowski Województwa Lubelskiego w Lublinie Departament Wdrażania Europejskiego Funduszu Społecznego","EFS+.CP4.K Zwiększanie równego i szybkiego dostępu do dobrej jakości, trwałych i przystępnych cenowo usług, w tym usług, które wspierają dostęp do mieszkań oraz opieki skoncentrowanej na osobie, w tym opieki zdrowotnej; modernizacja systemów ochrony socjalnej, w tym wspieranie dostępu do ochrony socjalnej, ze szczególnym uwzględnieniem dzieci i grup w niekorzystnej sytuacji; poprawa dostępności, w tym dla osób z niepełnosprawnościami, skuteczności i odporności systemów ochrony zdrowia i usług opieki długoterminowej","EFS+",null,"2026-04-09",1302684]
["FELU","FELU.08.05 Usługi społeczne","Nie dotyczy","Wsparcie w zakresie tworzenia i funkcjonowania CUS","1. Projekty w zakresie:\ne) wsparcia dla tworzenia lub funkcjonowania placówek świadczących usługi społeczne w społeczności lokalnej i ich usług, w tym CUS","konkurencyjny","Administracja publiczna;\nSłużby publiczne;","Jednostki Samorządu Terytorialnego, Jednostki organizacyjne działające w imieniu jednostek samorządu terytorialnego","Tak","Nie",2026,"05","21","2026-05-21","2026-06-25",26887641,"Województwo lubelskie","Urząd Marszałkowski Województwa Lubelskiego w Lublinie Departament Wdrażania Europejskiego Funduszu Społecznego","EFS+.CP4.K Zwiększanie równego i szybkiego dostępu do dobrej jakości, trwałych i przystępnych cenowo usług, w tym usług, które wspierają dostęp do mieszkań oraz opieki skoncentrowanej na osobie, w tym opieki zdrowotnej; modernizacja systemów ochrony socjalnej, w tym wspieranie dostępu do ochrony socjalnej, ze szczególnym uwzględnieniem dzieci i grup w niekorzystnej sytuacji; poprawa dostępności, w tym dla osób z niepełnosprawnościami, skuteczności i odporności systemów ochrony zdrowia i usług opieki długoterminowej","EFS+",null,"2026-05-14",6270000]
["FELU","FELU.08.05 Usługi społeczne","Nie dotyczy","Usługi społeczne","1.\tProjekty w zakresie:\na)\trozwoju usług opiekuńczych świadczonych w społeczności lokalnej, w formach dziennych i całodobowych\nd)\tszkolenia kadr na potrzeby świadczenia usług w społeczności lokalnej\n","konkurencyjny","Administracja publiczna;\nSłużby publiczne; Organizacje społeczne i związki wyznaniowe","Jednostki Samorządu Terytorialnego, Jednostki organizacyjne działające w imieniu jednostek samorządu terytorialnego, Organizacje pozarządowe","Tak","Nie",2026,"10",null,"2026-10","2026-11",34014400,"Województwo lubelskie","Urząd Marszałkowski Województwa Lubelskiego w Lublinie Departament Wdrażania Europejskiego Funduszu Społecznego","EFS+.CP4.K Zwiększanie równego i szybkiego dostępu do dobrej jakości, trwałych i przystępnych cenowo usług, w tym usług, które wspierają dostęp do mieszkań oraz opieki skoncentrowanej na osobie, w tym opieki zdrowotnej; modernizacja systemów ochrony socjalnej, w tym wspieranie dostępu do ochrony socjalnej, ze szczególnym uwzględnieniem dzieci i grup w niekorzystnej sytuacji; poprawa dostępności, w tym dla osób z niepełnosprawnościami, skuteczności i odporności systemów ochrony zdrowia i usług opieki długoterminowej","EFS+",null,"2026-09",8000000]
["FELU","FELU.08.05 Usługi społeczne","Nie dotyczy","Deinstytucjonalizacja instytucji całodobowych","1. Projekty w zakresie: \nf) wsparcia procesu deinstytucjonalizacji instytucji całodobowych","konkurencyjny","Administracja publiczna;\nSłużby publiczne;","Jednostki Samorządu Terytorialnego, Jednostki organizacyjne działające w imieniu jednostek samorządu terytorialnego","Tak","Nie",2026,"10",null,"2026-10","2026-11",13495714.91,"Województwo lubelskie","Urząd Marszałkowski Województwa Lubelskiego w Lublinie Departament Wdrażania Europejskiego Funduszu Społecznego","EFS+.CP4.K Zwiększanie równego i szybkiego dostępu do dobrej jakości, trwałych i przystępnych cenowo usług, w tym usług, które wspierają dostęp do mieszkań oraz opieki skoncentrowanej na osobie, w tym opieki zdrowotnej; modernizacja systemów ochrony socjalnej, w tym wspieranie dostępu do ochrony socjalnej, ze szczególnym uwzględnieniem dzieci i grup w niekorzystnej sytuacji; poprawa dostępności, w tym dla osób z niepełnosprawnościami, skuteczności i odporności systemów ochrony zdrowia i usług opieki długoterminowej","EFS+",null,"2026-10",3174118]
["FELU","FELU.08.06 Usługi zdrowotne","Nie dotyczy","Realizacja RPZ w zakresie chorób metabolicznych","1.Opracowanie i realizacja programów profilaktycznych dotyczących profilaktyki chorób będących istotnym problemem zdrowotnym regionu.","konkurencyjny","Instytucje ochrony zdrowia;  Instytucje nauki i edukacji; Organizacje społeczne i związki wyznaniowe;"," Uczelnie; Inne podmioty systemu szkolnictwa wyższego i nauki; Niepubliczne zakłady opieki zdrowotnej; Publiczne zakłady opieki zdrowotnej; Niepubliczne podmioty integracji i pomocy społecznej; Organizacje pozarządowe; Podmioty ekonomii społecznej; Instytucje integracji i pomocy społecznej;","Nie","Nie",2026,"04","23",{"$f":"IF(ISBLANK(M21),_xlfn.CONCAT(K21,\"-\",L21),_xlfn.CONCAT(K21,\"-\",L21,\"-\",M21))","v":"2026-04-23"},"2026-05-28",8007722.7000000002,"Województwo lubelskie","Urząd Marszałkowski Województwa Lubelskiego w Lublinie Departament Wdrażania Europejskiego Funduszu Społecznego","EFS+.CP4.K Zwiększanie równego i szybkiego dostępu do dobrej jakości, trwałych i przystępnych cenowo usług, w tym usług, które wspierają dostęp do mieszkań oraz opieki skoncentrowanej na osobie, w tym opieki zdrowotnej; modernizacja systemów ochrony socjalnej, w tym wspieranie dostępu do ochrony socjalnej, ze szczególnym uwzględnieniem dzieci i grup w niekorzystnej sytuacji; poprawa dostępności, w tym dla osób z niepełnosprawnościami, skuteczności i odporności systemów ochrony zdrowia i usług opieki długoterminowej","EFS+","Nabór będzie dotyczyć realizacji Regionalnego Programu Zdrowotnego w zakresie chorób układu metabolicznego.","2026-04-16",1867342]
["FELU","FELU.08.06 Usługi zdrowotne","Nie dotyczy","Realizacja RPZ w zakresie chorób układu krążenia","1.Opracowanie i realizacja programów profilaktycznych dotyczących profilaktyki chorób będących istotnym problemem zdrowotnym regionu.","konkurencyjny","Instytucje ochrony zdrowia;  Instytucje nauki i edukacji; Organizacje społeczne i związki wyznaniowe;"," Uczelnie; Inne podmioty systemu szkolnictwa wyższego i nauki; Niepubliczne zakłady opieki zdrowotnej; Publiczne zakłady opieki zdrowotnej; Niepubliczne podmioty integracji i pomocy społecznej; Organizacje pozarządowe; Podmioty ekonomii społecznej; Instytucje integracji i pomocy społecznej;","Nie","Nie",2026,"07","09","2026-07-09","2026-08-13",9769837.0600000005,"Województwo lubelskie","Urząd Marszałkowski Województwa Lubelskiego w Lublinie Departament Wdrażania Europejskiego Funduszu Społecznego","EFS+.CP4.K Zwiększanie równego i szybkiego dostępu do dobrej jakości, trwałych i przystępnych cenowo usług, w tym usług, które wspierają dostęp do mieszkań oraz opieki skoncentrowanej na osobie, w tym opieki zdrowotnej; modernizacja systemów ochrony socjalnej, w tym wspieranie dostępu do ochrony socjalnej, ze szczególnym uwzględnieniem dzieci i grup w niekorzystnej sytuacji; poprawa dostępności, w tym dla osób z niepełnosprawnościami, skuteczności i odporności systemów ochrony zdrowia i usług opieki długoterminowej","EFS+","Nabór będzie dotyczyć realizacji Regionalnego Programu Zdrowotnego w zakresie chorób układu krążenia.\nOgłoszenie naboru uzależnione będzie od jego uzgodnienia na forum Komitetu Sterującego ds. koordynacji wsparcia w sektorze zdrowia. ","2026-07-02",2297812]
["FELU","FELU.08.06 Usługi zdrowotne","Nie dotyczy","Dostępność AOS","2. Wsparcie procesu deinstytucjonalizacji opieki medycznej, w tym:\nc) wdrażanie standardów dostępności w POZ, AOS i szpitalach","konkurencyjny","Instytucje ochrony zdrowia","Niepubliczne zakłady opieki zdrowotnej; Publiczne zakłady opieki zdrowotnej, Inne instytucje systemu ochrony zdrowia","Nie","Nie",2026,"07","23",{"$f":"IF(ISBLANK(M23),_xlfn.CONCAT(K23,\"-\",L23),_xlfn.CONCAT(K23,\"-\",L23,\"-\",M23))","v":"2026-07-23"},"2026-08-27",12755400,"Województwo lubelskie","Urząd Marszałkowski Województwa Lubelskiego w Lublinie Departament Wdrażania Europejskiego Funduszu Społecznego","EFS+.CP4.K Zwiększanie równego i szybkiego dostępu do dobrej jakości, trwałych i przystępnych cenowo usług, w tym usług, które wspierają dostęp do mieszkań oraz opieki skoncentrowanej na osobie, w tym opieki zdrowotnej; modernizacja systemów ochrony socjalnej, w tym wspieranie dostępu do ochrony socjalnej, ze szczególnym uwzględnieniem dzieci i grup w niekorzystnej sytuacji; poprawa dostępności, w tym dla osób z niepełnosprawnościami, skuteczności i odporności systemów ochrony zdrowia i usług opieki długoterminowej","EFS+","Nabór w zakresie standardów dostępności dla AOS.\nOgłoszenie naboru uzależnione od uzgodnienia naboru z Komitetem Sterującym do spraw koordynacji wsparcia w sektorze zdrowia.","2026-07-16",3000000]
["FELU","FELU.08.06 Usługi zdrowotne","Nie dotyczy","Realizacja RPZ w zakresie chorób układu nerwowego","1.Opracowanie i realizacja programów profilaktycznych dotyczących profilaktyki chorób będących istotnym problemem zdrowotnym regionu.","konkurencyjny","Instytucje ochrony zdrowia; Instytucje nauki i edukacji; Organizacje społeczne i związki wyznaniowe;","Uczelnie; Inne podmioty systemu szkolnictwa wyższego i nauki; Niepubliczne zakłady opieki zdrowotnej; Publiczne zakłady opieki zdrowotnej; Inne instytucje systemu ochrony zdrowia; Niepubliczne podmioty integracji i pomocy społecznej; Organizacje pozarządowe; Podmioty ekonomii społecznej; Instytucje integracji i pomocy społecznej;","Nie","Nie",2026,"10",null,{"$f":"IF(ISBLANK(M24),_xlfn.CONCAT(K24,\"-\",L24),_xlfn.CONCAT(K24,\"-\",L24,\"-\",M24))","v":"2026-10"},"2026-11",6382989.2400000002,"Województwo lubelskie","Urząd Marszałkowski Województwa Lubelskiego w Lublinie Departament Wdrażania Europejskiego Funduszu Społecznego","EFS+.CP4.K Zwiększanie równego i szybkiego dostępu do dobrej jakości, trwałych i przystępnych cenowo usług, w tym usług, które wspierają dostęp do mieszkań oraz opieki skoncentrowanej na osobie, w tym opieki zdrowotnej; modernizacja systemów ochrony socjalnej, w tym wspieranie dostępu do ochrony socjalnej, ze szczególnym uwzględnieniem dzieci i grup w niekorzystnej sytuacji; poprawa dostępności, w tym dla osób z niepełnosprawnościami, skuteczności i odporności systemów ochrony zdrowia i usług opieki długoterminowej","EFS+","Nabór będzie dotyczyć realizacji Regionalnego Programu Zdrowotnego w zakresie chorób układu nerwowego.\nOgłoszenie naboru uzależnione będzie od pozyskania opinii AOTMiT.","2026-10",1501244]
["FELU","FELU.09.01 Aktywizacja zawodowa – projekty PUP","Nie dotyczy","Kompleksowa aktywizacja zawodowa osób bezrobotnych - projekty PUP. Edycja 5.","1.\tKompleksowa aktywizacja zawodowa osób bezrobotnych (w tym dotacje na samozatrudnienie) w celu zwiększenia ich szans na znalezienie zatrudnienia – realizowana wyłącznie przez powiatowe urzędy pracy.","niekonkurencyjny","Służby publiczne","Jednostki organizacyjne działające w imieniu jednostek samorządu terytorialnego","Tak","Nie",2027,"02",null,{"$f":"IF(ISBLANK(M25),_xlfn.CONCAT(K25,\"-\",L25),_xlfn.CONCAT(K25,\"-\",L25,\"-\",M25))","v":"2027-02"},"2027-03",80033884.849999994,"Województwo lubelskie","Wojewódzki Urząd Pracy w Lublinie","EFS+.CP4.A Poprawa dostępu do zatrudnienia i działań aktywizujących dla wszystkich osób poszukujących pracy, w szczególności osób młodych, zwłaszcza poprzez wdrażanie gwarancji dla młodzieży, długotrwale bezrobotnych oraz grup znajdujących się w niekorzystnej sytuacji na rynku pracy, jak również dla osób biernych zawodowo, a także poprzez promowanie samozatrudnienia i ekonomii społecznej","EFS+","Wnioskodawcami uprawnionymi do ubiegania się o dofinansowanie są: Powiatowe Urzędy Pracy/Miejski Urząd Pracy, z terenu województwa lubelskiego.","2027-02",18823530]
["FELU","FELU.09.05 Ochrona środowiska pracy","Nie dotyczy","Programy kompleksowej rehabilitacji","2. Programy kompleksowej rehabilitacji ułatwiające powrót do pracy.","konkurencyjny","Instytucje nauki i edukacji, Instytucje ochrony zdrowia, Organizacje społeczne i związki wyznaniowe,","Uczelnie, Inne podmioty systemu szkolnictwa wyższego i nauki, Niepubliczne zakłady opieki zdrowotnej, Publiczne zakłady opieki zdrowotnej, Inne instytucje systemu ochrony zdrowia, Niepubliczne podmioty integracji i pomocy społecznej, Organizacje pozarządowe, Podmioty ekonomii społecznej, Instytucje integracji i pomocy społecznej,","Nie","Nie",2026,"04","23","2026-04-23","2026-05-28",7352479.04,"Województwo lubelskie","Urząd Marszałkowski Województwa Lubelskiego w Lublinie Departament Wdrażania Europejskiego Funduszu Społecznego","EFS+.CP4.D Wspieranie dostosowania pracowników, przedsiębiorstw i przedsiębiorców do zmian, wspieranie aktywnego i zdrowego starzenia się oraz zdrowego i dobrze dostosowanego środowiska pracy, które uwzględnia zagrożenia dla zdrowia","EFS+",null,"2026-04-16",1714544]
["FELU","FELU.09.05 Ochrona środowiska pracy","Nie dotyczy","Realizacja programu profilaktycznego w obszarze rehabilitacji układu nerwowego","1. Opracowanie i realizacja programów\nb. rehabilitacyjnych dotyczących chorób związanych ze środowiskiem pracy                             ","konkurencyjny"," Instytucje nauki i edukacji, Instytucje ochrony zdrowia, Organizacje społeczne i związki wyznaniowe"," Uczelnie, Inne podmioty systemu szkolnictwa wyższego i nauki, Niepubliczne zakłady opieki zdrowotnej, Publiczne zakłady opieki zdrowotnej, Inne instytucje systemu ochrony zdrowia, Niepubliczne podmioty integracji i pomocy społecznej, Organizacje pozarządowe, Podmioty ekonomii społecznej, Instytucje integracji i pomocy społecznej","Nie","Nie",2026,"07","09","2026-07-09","2026-08-13",8235706.8399999999,"Województwo lubelskie","Urząd Marszałkowski Województwa Lubelskiego w Lublinie Departament Wdrażania Europejskiego Funduszu Społecznego","EFS+.CP4.D Wspieranie dostosowania pracowników, przedsiębiorstw i przedsiębiorców do zmian, wspieranie aktywnego i zdrowego starzenia się oraz zdrowego i dobrze dostosowanego środowiska pracy, które uwzględnia zagrożenia dla zdrowia","EFS+","Nabór dotyczyć będzie realizacji programu profilaktycznego w obszarze rehabilitacji chorób układu nerwowego.\nOgłoszenie naboru uzależnione będzie od jego uzgodnienia na forum Komitetu Sterującego ds. koordynacji wsparcia w sektorze zdrowia  i uzyskania opinii AOTMiT. ","2026-07-02",1936993]
["FELU","FELU.09.05 Ochrona środowiska pracy","Nie dotyczy","Realizacja programu profilaktycznego w obszarze rehabilitacji układu krążenia","1. Opracowanie i realizacja programów\nb. rehabilitacyjnych dotyczących chorób związanych ze środowiskiem pracy                             ","konkurencyjny","Instytucje nauki i edukacji, Instytucje ochrony zdrowia, Organizacje społeczne i związki wyznaniowe,","Uczelnie, Inne podmioty systemu szkolnictwa wyższego i nauki, Niepubliczne zakłady opieki zdrowotnej, Publiczne zakłady opieki zdrowotnej, Inne instytucje systemu ochrony zdrowia, Niepubliczne podmioty integracji i pomocy społecznej, Organizacje pozarządowe, Podmioty ekonomii społecznej, Instytucje integracji i pomocy społecznej","Nie","Nie",2026,"08","20",{"$f":"IF(ISBLANK(M28),_xlfn.CONCAT(K28,\"-\",L28),_xlfn.CONCAT(K28,\"-\",L28,\"-\",M28))","v":"2026-08-20"},"2026-09-24",10847132.630000001,"Województwo lubelskie","Urząd Marszałkowski Województwa Lubelskiego w Lublinie Departament Wdrażania Europejskiego Funduszu Społecznego","EFS+.CP4.D Wspieranie dostosowania pracowników, przedsiębiorstw i przedsiębiorców do zmian, wspieranie aktywnego i zdrowego starzenia się oraz zdrowego i dobrze dostosowanego środowiska pracy, które uwzględnia zagrożenia dla zdrowia","EFS+","Nabór dotyczyć będzie realizacji programu profilaktycznego w obszarze rehabilitacji chorób układu krążenia.\nOgłoszenie naboru uzależnione będzie od uzyskania opinii AOTMiT. ","2026-08-13",2551186]
["FELU","FELU.09.05 Ochrona środowiska pracy","Nie dotyczy","Realizacja programu profilaktycznego w obszarze chorób nowotoworowych","1. Opracowanie i realizacja programów\na. profilaktycznych dotyczących chorób związanych ze środowiskiem pracy                             ","konkurencyjny"," Instytucje nauki i edukacji, Instytucje ochrony zdrowia, Organizacje społeczne i związki wyznaniowe"," Uczelnie, Inne podmioty systemu szkolnictwa wyższego i nauki, Niepubliczne zakłady opieki zdrowotnej, Publiczne zakłady opieki zdrowotnej, Inne instytucje systemu ochrony zdrowia, Niepubliczne podmioty integracji i pomocy społecznej, Organizacje pozarządowe, Podmioty ekonomii społecznej, Instytucje integracji i pomocy społecznej","Nie","Nie",2026,"09",null,{"$f":"IF(ISBLANK(M29),_xlfn.CONCAT(K29,\"-\",L29),_xlfn.CONCAT(K29,\"-\",L29,\"-\",M29))","v":"2026-09"},"2026-10",4988947.32,"Województwo lubelskie","Urząd Marszałkowski Województwa Lubelskiego w Lublinie Departament Wdrażania Europejskiego Funduszu Społecznego","EFS+.CP4.D Wspieranie dostosowania pracowników, przedsiębiorstw i przedsiębiorców do zmian, wspieranie aktywnego i zdrowego starzenia się oraz zdrowego i dobrze dostosowanego środowiska pracy, które uwzględnia zagrożenia dla zdrowia","EFS+","Nabór dotyczyć będzie realizacji programu profilaktycznego w obszarze chorób nowotoworowych.\nOgłoszenie naboru uzależnione będzie od jego uzgodnienia na forum Komitetu Sterującego ds. koordynacji wsparcia w sektorze zdrowia. ","2026-09",1173373]
["FELU","FELU.09.05 Ochrona środowiska pracy","Nie dotyczy","Realizacja programu profilaktycznego w obszarze chorób układu krążenia","1. Opracowanie i realizacja programów\na. profilaktycznych dotyczących chorób związanych ze środowiskiem pracy                             ","konkurencyjny"," Instytucje nauki i edukacji, Instytucje ochrony zdrowia, Organizacje społeczne i związki wyznaniowe"," Uczelnie, Inne podmioty systemu szkolnictwa wyższego i nauki, Niepubliczne zakłady opieki zdrowotnej, Publiczne zakłady opieki zdrowotnej, Inne instytucje systemu ochrony zdrowia, Niepubliczne podmioty integracji i pomocy społecznej, Organizacje pozarządowe, Podmioty ekonomii społecznej, Instytucje integracji i pomocy społecznej","Nie","Nie",2026,"10",null,"2026-10","2026-11",1736282.06,"Województwo lubelskie","Urząd Marszałkowski Województwa Lubelskiego w Lublinie Departament Wdrażania Europejskiego Funduszu Społecznego","EFS+.CP4.D Wspieranie dostosowania pracowników, przedsiębiorstw i przedsiębiorców do zmian, wspieranie aktywnego i zdrowego starzenia się oraz zdrowego i dobrze dostosowanego środowiska pracy, które uwzględnia zagrożenia dla zdrowia","EFS+","Nabór dotyczyć będzie realizacji programu profilaktycznego w obszarze chorób układu krążenia.\nOgłoszenie naboru uzależnione będzie od jego uzgodnienia na forum Komitetu Sterującego ds. koordynacji wsparcia w sektorze zdrowia. ","2026-10",408364]
["FELU","FELU.09.08 Aktywizacja zawodowa - projekty OHP ","Nie dotyczy","Kompleksowa aktywizacja zawodowa osób młodych w projektach OHP. Edycja 3","1. Kompleksowa aktywizacja zawodowa realizowana w projektach OHP na rzecz osób młodych znajdujących się w szczególnej sytuacji.","niekonkurencyjny","Służby publiczne","Instytucje rynku pracy","Nie","Nie",2027,"04",null,"2027-04","2027-05",21259000,"Województwo lubelskie","Wojewódzki Urząd Pracy w Lublinie","EFS+.CP4.A Poprawa dostępu do zatrudnienia i działań aktywizujących dla wszystkich osób poszukujących pracy, w szczególności osób młodych, zwłaszcza poprzez wdrażanie gwarancji dla młodzieży, długotrwale bezrobotnych oraz grup znajdujących się w niekorzystnej sytuacji na rynku pracy, jak również dla osób biernych zawodowo, a także poprzez promowanie samozatrudnienia i ekonomii społecznej","EFS+","Wnioskodawcą uprawnionym do złożenia wniosku o dofinansowanie jest Lubelska Wojewódzka Komenda Ochotniczych Hufców Pracy. ","2027-04",5000000]
["FELU","FELU.10.01 Skuteczna edukacja","Nie dotyczy","Doradztwo zawodowe","1. Programy systemowego wsparcia doradztwa zawodowego lub edukacyjno-zawodowego, w tym m.in. podnoszenie kompetencji doradców zawodowych i edukacyjnych oraz ich dostępność dla uczniów, wsparcie budowania i rozwoju sieci współpracy doradców zawodowych.","konkurencyjny","Administracja publiczna; Służby publiczne; Instytucje nauki i edukacji","Administracja rządowa; Jednostki Samorządu Terytorialnego; Jednostki organizacyjne działające w imieniu jednostek samorządu terytorialnego; Szkoły i inne placówki systemu oświaty","Tak","Nie",2026,"10",null,"2026-10","2026-11",14100669.52,"Województwo lubelskie","Urząd Marszałkowski Województwa Lubelskiego w Lublinie Departament Wdrażania Europejskiego Funduszu Społecznego","EFS+.CP4.E Poprawa jakości, poziomu włączenia społecznego i skuteczności systemów kształcenia i szkolenia oraz ich powiązania z rynkiem pracy – w tym przez walidację uczenia się pozaformalnego i nieformalnego, w celu wspierania nabywania kompetencji kluczowych, w tym umiejętności w zakresie przedsiębiorczości i kompetencji cyfrowych, oraz przez wspieranie wprowadzania dualnych systemów szkolenia i przygotowania zawodowego","EFS+",null,"2026-10",3316400]
["FELU","FELU.11.01 Rewitalizacja zdegradowanych obszarów miejskich","Nie dotyczy","Rewitalizacja zdegradowanych obszarów miejskich - rewitalizacja","1. Rewitalizacja obszarów zdegradowanych, realizowana na podstawie GPR","konkurencyjny","Przedsiębiorstwa;\nAdministracja publiczna;\nPrzedsiębiorstwa realizujące cele publiczne;\nOrganizacje społeczne i związki wyznaniowe;\nPartnerstwa;\nSłużby publiczne;\nInstytucje ochrony zdrowia;\nInstytucje nauki i edukacji","Jednostki Samorządu Terytorialnego; Przedsiębiorstwa świadczące kompleksowe usługi sanatoryjne/uzdrowiskowe/zakłady lecznictwa uzdrowiskowego; Instytucje integracji i pomocy społecznej; Instytucje kultury; Lasy Państwowe; Parki narodowe i krajobrazowe; Podmioty świadczące usługi publiczne w ramach realizacji obowiązków własnych jednostek samorządu terytorialnego; Uzdrowiska; Centra aktywności lokalnej; Kościoły i związki wyznaniowe; Niepubliczne podmioty integracji i pomocy społecznej; Organizacje pozarządowe; Lokalne Grupy Działania; Uczelnie; Podmioty ekonomii społecznej; Wspólnoty, spółdzielnie mieszkaniowe i TBS; Przedszkola i inne formy wychowania przedszkolnego; Szkoły i inne placówki systemu oświaty; Ośrodki kształcenia dorosłych; Pozarządowe organizacje turystyczne; Jednostki organizacyjne działające w imieniu jednostek samorządu terytorialnego; Duże przedsiębiorstwa; Policja, straż pożarna i służby ratownicze","Tak","Nie",2026,"07","27","2026-07-27","2026-08-25",58794638.719999999,"Województwo lubelskie","Urząd Marszałkowski Województwa Lubelskiego w Lublinie Departament Wdrażania Europejskiego Funduszu Rozwoju Regionalnego","EFRR.CP5.I Wspieranie zintegrowanego i sprzyjającego włączeniu społecznemu rozwoju społecznego, gospodarczego i środowiskowego, kultury, dziedzictwa naturalnego, zrównoważonej turystyki i bezpieczeństwa na obszarach miejskich","EFRR","W ramach naboru planowane jest zaangażowane środków budżetu państwa na dofinansowanie wkładu krajowego,  stanowiących uzupełnienie do środków EFRR.","2026-07-16",13828176]
["FELU","FELU.11.02 Ochrona dziedzictwa naturalnego, bezpieczeństwo i zrównoważony rozwój turystyki obszarów miejskich i ich obszarów funkcjonalnych w ramach Zintegrowanych Inwestycji Terytorialnych","ZIT","Ochrona dziedzictwa naturalnego, bezpieczeństwo i zrównoważony rozwój turystyki obszarów miejskich i ich obszarów funkcjonalnych w ramach Zintegrowanych Inwestycji Terytorialnych - reedycja","1.\tRozwój obszarów o wysokich walorach przyrodniczych i krajobrazowych, jak też opartych o właściwości uzdrowiskowe i walory kulturowe (poza obszarami Natura 2000) stanowiące o ich potencjale, w tym m.in. o wysokiej atrakcyjności turystycznej.\n2.\tFizyczna odnowa i bezpieczeństwo przestrzeni publicznych, tj. w szczególności: zwiększanie odporności lokalnej gospodarki, w tym infrastruktury, na nieprzewidziane sytuacje kryzysowe.\n3.\tPrzygotowanie terenów inwestycyjnych i zapewnienie infrastruktury biznesowej lub poprawa infrastruktury istniejących terenów, w powiązaniu z innymi projektami inwestycyjnymi.","niekonkurencyjny","Zintegrowane Inwestycje Terytorialne (ZIT);\nPrzedsiębiorstwa;\nAdministracja publiczna;\nPrzedsiębiorstwa realizujące cele publiczne;\nOrganizacje społeczne i związki wyznaniowe;\nPartnerstwa;\nSłużby publiczne;\nInstytucje ochrony zdrowia;\nInstytucje nauki i edukacji","Jednostki Samorządu Terytorialnego; Wspólnoty, spółdzielnie mieszkaniowe i TBS; Lasy Państwowe; Parki narodowe i krajobrazowe; Policja, straż pożarna i służby ratownicze; Organizacje pozarządowe; Lokalne Grupy Działania; Podmioty ekonomii społecznej; Partnerstwa instytucji pozarządowych; Instytucje integracji i pomocy społecznej; Centra aktywności lokalnej; Niepubliczne podmioty integracji i pomocy społecznej; Kościoły i związki wyznaniowe; Instytucje kultury; Instytucje sportu; Niepubliczne zakłady opieki zdrowotnej; Publiczne zakłady opieki zdrowotnej; Uzdrowiska; Przedsiębiorstwa świadczące kompleksowe usługi sanatoryjne/uzdrowiskowe/zakłady lecznictwa uzdrowiskowego; Ośrodki kształcenia dorosłych; Przedszkola i inne formy wychowania przedszkolnego; Szkoły i inne placówki systemu oświaty; Uczelnie; Partnerstwa Publiczno-Prywatne; Zintegrowane Inwestycje Terytorialne (ZIT); Podmioty świadczące usługi publiczne w ramach realizacji obowiązków własnych jednostek samorządu terytorialnego; Duże przedsiębiorstwa; Pozarządowe organizacje turystyczne","Tak","Nie",2026,"05","04","2026-05-04","2026-05-28",12734501.369999999,"Miejskie Obszary Funkcjonalne","Urząd Marszałkowski Województwa Lubelskiego w Lublinie Departament Wdrażania Europejskiego Funduszu Rozwoju Regionalnego","EFRR.CP5.I Wspieranie zintegrowanego i sprzyjającego włączeniu społecznemu rozwoju społecznego, gospodarczego i środowiskowego, kultury, dziedzictwa naturalnego, zrównoważonej turystyki i bezpieczeństwa na obszarach miejskich","EFRR","Nabór skierowany będzie do tych wnioskodawców, których przedsięwzięcia zostały zidentyfikowane w pozytywnie zaopiniowanej strategii terytorialnej stanowiącej podstawę realizacji ZIT przez instytucję zarządzającą programem Fundusze Europejskie dla Lubelskiego 2021-2027 w zakresie możliwości finansowania ww. strategii w ramach tego programu.\nNabór w ramach instrumentu ZIT będzie prowadzony nieprzerwanie przez czas trwania naboru, aż do wyczerpania środków przeznaczonych na nabór. \nOcena wniosków o dofinansowanie prowadzona będzie na bieżąco w trakcie trwania naboru, po wpłynięciu wniosku o dofinansowanie.\nNieuprawnione do aplikowania w ramach naboru są TBS-y. W ramach kategorii wnioskodawcy: duże przedsiębiorstwa - uprawnione są wyłącznie: Spółki prawa handlowego, w których większość udziałów lub akcji posiadają JST lub ich związki.","2026-04-30",2969592]
["FELU","FELU.11.03 Ochrona dziedzictwa kulturowego obszarów miejskich i ich obszarów funkcjonalnych w ramach Zintegrowanych Inwestycji Terytorialnych","ZIT","Ochrona dziedzictwa kulturowego obszarów miejskich i ich obszarów funkcjonalnych w ramach Zintegrowanych Inwestycji Terytorialnych- reedycja","1.\tOchrona, rozwój i promowanie materialnego i niematerialnego dziedzictwa kulturowego i usług w dziedzinie kultury.","niekonkurencyjny","Administracja publiczna;\nInstytucje nauki i edukacji;\nOrganizacje społeczne i związki wyznaniowe;\nPartnerstwa;\nPrzedsiębiorstwa;\nPrzedsiębiorstwa realizujące cele publiczne;\nSłużby publiczne, Zintegrowane Inwestycje Terytorialne (ZIT);","Jednostki Samorządu Terytorialnego; Duże przedsiębiorstwa; Podmioty ekonomii społecznej; Centra aktywności lokalnej; Organizacje pozarządowe; Kościoły i związki wyznaniowe; Wspólnoty, spółdzielnie mieszkaniowe i TBS; Jednostki organizacyjne działające w imieniu jednostek samorządu terytorialnego; Szkoły i inne placówki systemu oświaty; Uczelnie; Instytucje kultury; Partnerstwa instytucji pozarządowych; Podmioty świadczące usługi publiczne w ramach realizacji obowiązków własnych jednostek samorządu terytorialnego; Zintegrowane Inwestycje Terytorialne (ZIT)","Tak","Nie",2026,"03","16",{"$f":"IF(ISBLANK(M35),_xlfn.CONCAT(K35,\"-\",L35),_xlfn.CONCAT(K35,\"-\",L35,\"-\",M35))","v":"2026-03-16"},"2026-06-30",36474723.5,"Miejskie Obszary Funkcjonalne","Urząd Marszałkowski Województwa Lubelskiego w Lublinie Departament Wdrażania Europejskiego Funduszu Rozwoju Regionalnego","EFRR.CP5.I Wspieranie zintegrowanego i sprzyjającego włączeniu społecznemu rozwoju społecznego, gospodarczego i środowiskowego, kultury, dziedzictwa naturalnego, zrównoważonej turystyki i bezpieczeństwa na obszarach miejskich","EFRR","Nabór skierowany będzie do tych wnioskodawców, których przedsięwzięcia zostały zidentyfikowane w pozytywnie zaopiniowanej strategii terytorialnej stanowiącej podstawę realizacji ZIT przez Instytucję Zarządzającą programem Fundusze Europejskie dla Lubelskiego 2021-2027 w zakresie możliwości finansowania ww. strategii w ramach tego programu.\nNabór w ramach instrumentu ZIT będzie prowadzony nieprzerwanie przez czas trwania naboru, aż do wyczerpania środków przeznaczonych na nabór. \nOcena wniosków o dofinansowanie prowadzona będzie na bieżąco w trakcie trwania naboru, po wpłynięciu wniosku o dofinansowanie.\nNieuprawnione do aplikowania w ramach naboru są TBS-y. W ramach kategorii wnioskodawcy: duże przedsiębiorstwa - uprawnione są wyłącznie: Spółki prawa handlowego, w których większość udziałów lub akcji posiadają JST lub ich związki.","2026-03-12",8638182]
["FELU","FELU.12.01 Wsparcie wdrażania Funduszy Europejskich dla Lubelskiego 2021-2027 w ramach EFS+","Nie dotyczy","Nabór dedykowany dla Instytucji Zarządzającej we wdrażaniu FEL 2021-2027 - edycja 2026","2.\tWsparcie wdrażania Funduszy Europejskich dla Lubelskiego 2021-2027.","niekonkurencyjny","Administracja publiczna;\nSłużby publiczne","Jednostki Samorządu Terytorialnego","Tak","Nie",2026,"08",18,"2026-08-18","2026-08-31",11443000,"Województwo lubelskie","Urząd Marszałkowski Województwa Lubelskiego w Lublinie Departament Zarządzania Programami Regionalnymi","PT.1 Pomoc Techniczna","EFS+ PT","Projekty będą realizowane w 2027 r.","2026-08-17",2691330]
["FELU","FELU.13.01 Wsparcie wdrażania Funduszy Europejskich dla Lubelskiego 2021-2027 w ramach EFRR","Nie dotyczy","Nabór dedykowany dla Instytucji Zarządzającej we wdrażaniu FEL 2021-2027 - edycja 2026","1. Zatrudnienie pracowników zaangażowanych we wdrażanie Funduszy Europejskich dla Lubelskiego 2021-2027.\n3. Wsparcie komunikacji i widoczności Programu oraz Funduszy Europejskich.","niekonkurencyjny","Administracja publiczna;\nSłużby publiczne","Jednostki Samorządu Terytorialnego","Tak","Nie",2026,"08",18,"2026-08-18","2026-08-31",56312000,"Województwo lubelskie","Urząd Marszałkowski Województwa Lubelskiego w Lublinie Departament Zarządzania Programami Regionalnymi","PT.1 Pomoc Techniczna","EFRR PT","Projekty będą realizowane w 2027 r.","2026-08-17",13244273]
["FELU","FELU.13.01 Wsparcie wdrażania Funduszy Europejskich dla Lubelskiego 2021-2027 w ramach EFRR","Nie dotyczy","Nabór dedykowany dla Instytucji Pośredniczących we wdrażaniu FEL 2021-2027 oraz Lubelskiego Centrum Innowacji i Technologii - edycja 2026","1.\tZatrudnienie pracowników zaangażowanych we wdrażanie Funduszy Europejskich dla Lubelskiego 2021-2027.\n2.\tWsparcie wdrażania Funduszy Europejskich dla Lubelskiego 2021-2027.\n3.\tWsparcie komunikacji i widoczności Programu oraz Funduszy Europejskich.","niekonkurencyjny","Administracja publiczna;\nSłużby publiczne ","Jednostki Samorządu Terytorialnego","Tak","Nie",2026,"08",18,"2026-08-18","2026-08-31",33185000,"Województwo lubelskie","Urząd Marszałkowski Województwa Lubelskiego w Lublinie Departament Zarządzania Programami Regionalnymi","PT.1 Pomoc Techniczna","EFRR PT","Projekty będą realizowane w 2027 r.","2026-08-17",7804929]
["FELU","FELU.14.01 Wsparcie przedsiębiorstw w sektorze obronnym i bezpieczeństwa","Nie dotyczy","Wsparcie przedsiębiorstw działających w branży bezpieczeństwa i obronności oraz zwiększanie potencjału przemysłowego, usługowego przedsiębiorstw w celu wspierania produktów i usług podwójnego zastosowania.","1.Wsparcie przedsiębiorstw, działających w branży bezpieczeństwa i obronności poprzez dofinansowanie projektów dotyczących linii produkcyjnych, zakupu technologii, produkcji i usług w zakresie bezpieczeństwa i obronności, w tym cyberbezpieczeństwa.\n2. Zwiększanie potencjału przemysłowego, usługowego przedsiębiorstw w celu wspierania produktów i usług podwójnego zastosowania.","konkurencyjny","Przedsiębiorstwa","MŚP; Duże przedsiębiorstwa ","Nie","Tak",2026,"07",23,{"$f":"IF(ISBLANK(M39),_xlfn.CONCAT(K39,\"-\",L39),_xlfn.CONCAT(K39,\"-\",L39,\"-\",M39))","v":"2026-07-23"},"2026-09-15",127554000,"Województwo lubelskie","Lubelska Agencja Wspierania Przedsiębiorczości w Lublinie","EFRR.CP1.VII - Zwiększanie zdolności przemysłowych w celu wspierania zdolności obronnych, przy priorytetowym traktowaniu zdolności w zakresie technologii podwójnego zastosowania  ","EFRR",null,"2026-07-09",30000000]
["FELU","FELU.15.01 Bezpieczna i odporna infrastruktura wodno-kanalizacyjna","Nie dotyczy"," Bezpieczna i odporna infrastruktura wodno-kanalizacyjna","1.\tBudowa/przebudowa/remont ujęć wody, stacji uzdatniania wody, sieci wodociągowych i kanalizacyjnych, oczyszczalni oraz doposażanie tej infrastruktury w rozwiązania zwiększające bezpieczeństwo, cyberbezpieczeństwo i niezawodność (zwłaszcza w sytuacjach kryzysowych).\n2.\tWsparcie szpitali i innych budynków użyteczności publicznej w zakresie zapewnienia źródeł zaopatrzenia w wodę, w tym w infrastrukturę do ujmowania wody, na wypadek awarii/sytuacji kryzysowej.\n3.\tInwestycje w technologie i systemy informatyczne dotyczące zarządzania wodą, w tym cyberbezpieczeństwo.","konkurencyjny","Administracja publiczna, Przedsiębiorstwa realizujące cele publiczne, Służby publiczne, Instytucje ochrony zdrowia, Przedsiębiorstwa","Jednostki Samorządu Terytorialnego; Spółki wodne; Partnerstwa Publiczno-Prywatne; Jednostki organizacyjne działające w imieniu jednostek samorządu terytorialnego; Podmioty świadczące usługi publiczne w ramach realizacji obowiązków własnych jednostek samorządu terytorialnego; Jednostki rządowe i samorządowe ochrony środowiska; Duże przedsiębiorstwa","Tak","Nie",2026,"07",20,{"$f":"IF(ISBLANK(M40),_xlfn.CONCAT(K40,\"-\",L40),_xlfn.CONCAT(K40,\"-\",L40,\"-\",M40))","v":"2026-07-20"},"2026-08-20",148763368.74000001,"Województwo lubelskie","Urząd Marszałkowski Województwa Lubelskiego w Lublinie Departament Wdrażania Europejskiego Funduszu Rozwoju Regionalnego","CP2.V - wspieranie bezpiecznego dostępu do wody, zrównoważonej gospodarki wodnej obejmującej zintegrowane zarządzanie wodą, a także odporności wodnej","EFRR","W ramach katergorii wnioskodawcy: duże przedsiębiorstwa uprawnione są wyłącznie: Spółki prawa handlowego, w których większość udziałów lub akcji posiadają JST lub ich związki.","2026-07-09",34988327]
["FELU","FELU.16.01 Wsparcie odpornej infrastruktury ochrony zdrowia","Nie dotyczy","„Budowa i wyposażenie infrastruktury szpitalnej w Wojewódzkim Szpitalu Specjalistycznym im. Stefana Kardynała Wyszyńskiego SPZOZ w Lublinie na wypadek sytuacji kryzysowej lub konfliktu zbrojnego”","1. Wsparcie krytycznej na poziomie lokalnym/regionalnym infrastruktury szpitali i ratownictwa medycznego w zakresie przygotowania na wypadek sytuacji kryzysowej lub konfliktu zbrojnego, w tym inwestycje w sprzęt, wyposażenie medyczne, magazyny z wyposażeniem związane z przygotowaniem do sytuacji kryzysowych.\n2. Zwiększenie poziomu cyberbezpieczeństwa infrastruktury IT w szpitalach i ratownictwie medycznym.","niekonkurencyjny","Instytucje ochrony zdrowia"," Publiczne zakłady opieki zdrowotnej","Tak","Nie",2026,"07",13,{"$f":"IF(ISBLANK(M41),_xlfn.CONCAT(K41,\"-\",L41),_xlfn.CONCAT(K41,\"-\",L41,\"-\",M41))","v":"2026-07-13"},"2026-07-30",285397614.86000001,"Województwo lubelskie","Urząd Marszałkowski Województwa Lubelskiego w Lublinie Departament Wdrażania Europejskiego Funduszu Rozwoju Regionalnego","CP3.III - rozwój odpornej infrastruktury obronnej, przy priorytetowym traktowaniu infrastruktury podwójnego zastosowania, w tym w celu wspierania mobilności wojskowej w Unii, oraz zwiększanie gotowości cywilnej","EFRR","Przedsięwzięcie priorytetowe planowane do ujęcia w Kontrakcie Programowym dla WL pn. „Budowa i wyposażenie infrastruktury szpitalnej w Wojewódzkim Szpitalu Specjalistycznym im. Stefana Kardynała Wyszyńskiego SPZOZ w Lublinie na wypadek sytuacji kryzysowej lub konfliktu zbrojnego”.","2026-07-09",67123951]
["FELU","FELU.16.01 Wsparcie odpornej infrastruktury ochrony zdrowia","Nie dotyczy","„Budowa technologicznie nowoczesnego obiektu na potrzeby Zespołów Ratownictwa Medycznego na\nwypadek sytuacji kryzysowej lub konfliktu zbrojnego\"","1. Wsparcie krytycznej na poziomie lokalnym/regionalnym infrastruktury szpitali i ratownictwa medycznego w zakresie przygotowania na wypadek sytuacji kryzysowej lub konfliktu zbrojnego, w tym inwestycje w sprzęt, wyposażenie medyczne, magazyny z wyposażeniem związane z przygotowaniem do sytuacji kryzysowych.\n2. Zwiększenie poziomu cyberbezpieczeństwa infrastruktury IT w szpitalach i ratownictwie medycznym.","niekonkurencyjny","Instytucje ochrony zdrowia"," Publiczne zakłady opieki zdrowotnej","Tak","Nie",2026,"07",13,"2026-07-13","2026-07-30",72099014.129999995,"Województwo lubelskie","Urząd Marszałkowski Województwa Lubelskiego w Lublinie Departament Wdrażania Europejskiego Funduszu Rozwoju Regionalnego","CP3.III - rozwój odpornej infrastruktury obronnej, przy priorytetowym traktowaniu infrastruktury podwójnego zastosowania, w tym w celu wspierania mobilności wojskowej w Unii, oraz zwiększanie gotowości cywilnej","EFRR","Przedsięwzięcie priorytetowe planowane do ujęcia w Kontrakcie Programowym dla WL pn. „Budowa technologicznie nowoczesnego obiektu na potrzeby Zespołów Ratownictwa Medycznego na wypadek sytuacji kryzysowej lub konfliktu zbrojnego\".","2026-07-09",16957292]
["FELU","FELU.16.01 Wsparcie odpornej infrastruktury ochrony zdrowia","Nie dotyczy"," Wsparcie odpornej infrastruktury ochrony zdrowia","1. Wsparcie krytycznej na poziomie lokalnym/regionalnym infrastruktury szpitali i ratownictwa medycznego w zakresie przygotowania na wypadek sytuacji kryzysowej lub konfliktu zbrojnego, w tym inwestycje w sprzęt, wyposażenie medyczne, magazyny z wyposażeniem związane z przygotowaniem do sytuacji kryzysowych.\n2. Zwiększenie poziomu cyberbezpieczeństwa infrastruktury IT w szpitalach i ratownictwie medycznym.","konkurencyjny","Instytucje ochrony zdrowia","Niepubliczne zakłady opieki zdrowotnej; Publiczne zakłady opieki zdrowotnej","Tak","Tak",2026,"07",20,"2026-07-20","2026-08-20",174341262.13999999,"Województwo lubelskie","Urząd Marszałkowski Województwa Lubelskiego w Lublinie Departament Wdrażania Europejskiego Funduszu Rozwoju Regionalnego","CP3.III - rozwój odpornej infrastruktury obronnej, przy priorytetowym traktowaniu infrastruktury podwójnego zastosowania, w tym w celu wspierania mobilności wojskowej w Unii, oraz zwiększanie gotowości cywilnej","EFRR",null,"2026-07-09",41004107]
["FELU","FELU.17.01 Aktywizacja zawodowa w zakresie obronności i bezpieczeństwa","Nie dotyczy","Aktywizacja zawodowa w zakresie obronności -  technologie podwójnego zastosowania (dual-use)","1. Aktywizacja zawodowa osób bezrobotnych, biernych zawodowo, poszukujących pracy w zakresie obronności, mająca na celu podniesienie kompetencji i umiejętności oraz nabycie kwalifikacji i zwiększenie szans na znalezienie zatrudnienia w przemyśle obronnym, w tym w odniesieniu do zdolności w zakresie technologii podwójnego zastosowania (dual use).","konkurencyjny","Administracja publiczna;\nOrganizacje społeczne i związki wyznaniowe;\nOsoby fizyczne;\nPartnerzy społeczni;\nSłużby publiczne","Administracja rządowa;\nJednostki Samorządu Terytorialnego;\nOrganizacje pozarządowe;\nPodmioty ekonomii społecznej;\nOsoby fizyczne;\nOrganizacje zrzeszające pracodawców;\nZwiązki zawodowe;\nInstytucje rynku pracy;\nJednostki organizacyjne działające w imieniu jednostek samorządu terytorialnego","Tak","Tak",2026,"07","07",{"$f":"IF(ISBLANK(M44),_xlfn.CONCAT(K44,\"-\",L44),_xlfn.CONCAT(K44,\"-\",L44,\"-\",M44))","v":"2026-07-07"},"2026-08-10",16195535.630000001,"Województwo lubelskie","Wojewódzki Urząd Pracy w Lublinie","EFS+.CP4.A Poprawa dostępu do zatrudnienia i działań aktywizujących dla wszystkich osób poszukujących pracy, w szczególności osób młodych, zwłaszcza poprzez wdrażanie gwarancji dla młodzieży, długotrwale bezrobotnych oraz grup znajdujących się w niekorzystnej sytuacji na rynku pracy, jak również dla osób biernych zawodowo, a także poprzez promowanie samozatrudnienia i ekonomii społecznej","EFS+",null,"2026-06-30",3809101]
["FELU","FELU.17.02 Adaptacyjność pracowników do zmian na potrzeby przemysłu obronnego i bezpieczeństwa","Nie dotyczy","Przekwalifikowanie pracowników na potrzeby przemysłu obronnego","1.\tPrzekwalifikowanie pracowników z sektorów zagrożonych redukcją etatów na potrzeby przemysłu obronnego.","konkurencyjny","Administracja publiczna;\nOrganizacje społeczne i związki wyznaniowe;\nSłużby publiczne;\nPrzedsiębiorstwa","Administracja rządowa;\nJednostki Samorządu Terytorialnego;\nOrganizacje pozarządowe;\nPodmioty ekonomii społecznej;\nInstytucje integracji i pomocy społecznej;\nInstytucje rynku pracy;\nJednostki organizacyjne działające w imieniu jednostek samorządu terytorialnego;\nMŚP;\nDuże przedsiębiorstwa","Tak","Tak",2026,"07","29","2026-07-29","2026-08-31",8503600,"Województwo lubelskie","Wojewódzki Urząd Pracy w Lublinie","EFS+.CP4.D Wspieranie dostosowania pracowników, przedsiębiorstw i przedsiębiorców do zmian, wspieranie aktywnego i zdrowego starzenia się oraz zdrowego i dobrze dostosowanego środowiska pracy, które uwzględnia zagrożenia dla zdrowia","EFS+",null,"2026-07-22",2000000]
["FELU","FELU.17.03 Obronność i bezpieczeństwo na rynku pracy","Nie dotyczy","Szkolenia w zakresie obronności cywilnej na rynku pracy","1.    Szkolenia z zakresu bezpieczeństwa/obronności cywilnej dla ludności w zakresie gotowości cywilnej – realizowane poza BUR;                                                                                                                                                                                                                 2.    Poszerzenie wsparcia o szkolenia dla osób stanowiących wsparcie w zakresie obrony cywilnej i sił zbrojnych np. nabycie kwalifikacji przez kierowców służb ratunkowych w zakresie prawa jazdy kat. \"C\".","konkurencyjny","Przedsiębiorstwa, Administracja publiczna, Służby publiczne,Organizacje społeczne i związki wyznaniowe","Administracja rządowa; Jednostki Samorządu Terytorialnego; Jednostki organizacyjne działające w imieniu jednostek samorządu terytorialnego; Organizacje pozarządowe; MŚP, duże przedsiębiorstwa","Tak","Tak",2026,"08",27,"2026-08-27","2026-10-01",94977847.879999995,"Województwo lubelskie","Urząd Marszałkowski Województwa Lubelskiego w Lublinie Departament Wdrażania Europejskiego Funduszu Społecznego","EFS+.CP4.D – Wspieranie dostosowania pracowników, przedsiębiorstw i przedsiębiorców do zmian, wspieranie aktywnego i zdrowego starzenia się oraz zdrowego i dobrze dostosowanego środowiska pracy, które uwzględnia zagrożenia dla zdrowia","EFS+",null,"2026-08-20",22338268]
["FELU","FELU.17.04 Edukacja na rzecz obronności i bezpieczeństwa","Nie dotyczy","Szkolenia w zakresie wsparcia edukacyjnego na rzecz obronności i bezpieczeństwa","1. Realizacja wsparcia edukacyjnego w zakresie cyberbezpieczeństwa i/lub gotowości cywilnej w przedszkolach, szkołach i uczelniach.\n2. Kursy z zakresu obsługi nowoczesnych technologii w przemyśle obronnym i technologii dual-use w ramach kształcenia zawodowego i ogólnego, odpowiednie do zdiagnozowanych potrzeb rynku pracy.","konkurencyjny","Administracja publiczna, Instytucje nauki i edukacji, Organizacje społeczne i związki wyznaniowe, Przedsiębiorstwa, Służby publiczne","Administracja rządowa; Jednostki Samorządu Terytorialnego; Jednostki organizacyjne działające w imieniu jednostek samorządu terytorialnego; Organizacje pozarządowe;  Uczelnie, Inne podmioty systemu szkolnictwa wyższego i nauki, MŚP","Tak","Tak",2026,"08",27,"2026-08-27","2026-10-01",36645911.299999997,"Województwo lubelskie","Urząd Marszałkowski Województwa Lubelskiego w Lublinie Departament Wdrażania Europejskiego Funduszu Społecznego","EFS+.CP4.F - Wspieranie równego dostępu do dobrej jakości, włączającego kształcenia i szkolenia oraz możliwości ich ukończenia, w szczególności w odniesieniu do grup w niekorzystnej sytuacji, od wczesnej edukacji i opieki nad dzieckiem przez ogólne i zawodowe kształcenie i szkolenie, po szkolnictwo wyższe, a także kształcenie i uczenie się dorosłych, w tym ułatwianie mobilności edukacyjnej dla wszystkich i dostępności dla osób z niepełnosprawnościami","EFS+",null,"2026-08-20",8618917]
["FELU","FELU.17.05 Edukacja osób dorosłych w obszarze obronności i bezpieczeństwa","Nie dotyczy","Szkolenia w zakresie wsparcia edukacyjnego osób dosrosłych na rzecz obronności i bezpieczeństwa","1.\tSzkolenia z zakresu bezpieczeństwa / obronności cywilnej dla ludności w zakresie gotowości cywilnej – realizowane poza BUR.                                                                                                                                                                                                                                                                                                         2.\tPoszerzenie wsparcia o szkolenia dla osób stanowiących wsparcie w zakresie obrony cywilnej i sił zbrojnych np. nabycie kwalifikacji przez kierowców służb ratunkowych w zakresie prawa jazdy kat. \"C\".\n","konkurencyjny","Administracja publiczna, Instytucje nauki i edukacji, Organizacje społeczne i związki wyznaniowe, Przedsiębiorstwa","Administracja rządowa; Jednostki Samorządu Terytorialnego; Jednostki organizacyjne działające w imieniu jednostek samorządu terytorialnego; Organizacje pozarządowe;  Uczelnie, Inne podmioty systemu szkolnictwa wyższego i nauki","Tak","Tak",2026,"07","16","2026-07-16","2026-08-20",53489769.899999999,"Województwo lubelskie","Urząd Marszałkowski Województwa Lubelskiego w Lublinie Departament Wdrażania Europejskiego Funduszu Społecznego","EFS +.  CP4.G. wspieranie uczenia się przez całe życie, w szczególności elastycznych możliwości podnoszenia i zmiany kwalifikacji dla wszystkich, z uwzględnieniem umiejętności w zakresie przedsiębiorczości i kompetencji cyfrowych, lepsze przewidywanie zmian i zapotrzebowania na nowe umiejętności na podstawie potrzeb rynku pracy, ułatwianie zmian ścieżki kariery zawodowej i wspieranie mobilności zawodowej","EFS+",null,"2026-07-09",12580500]
["FELU","FELU.18.01 Aktywizacja zawodowa w sektorach związanych z dekarbonizacją","Nie dotyczy","Aktywizacja zawodowa na rzecz transformacji klimatycznej","1. Aktywizacja zawodowa osób bezrobotnych, biernych zawodowo, poszukujących pracy w zakresie dekarbonizacji, mająca na celu podniesienie kompetencji i umiejętności oraz nabycie kwalifikacji i zwiększenie szans na znalezienie zatrudnienia w sektorach związanych z dekarbonizacją.","konkurencyjny","Administracja publiczna;\nOrganizacje społeczne i związki wyznaniowe;\nOsoby fizyczne;\nPartnerzy społeczni;\nSłużby publiczne","Administracja rządowa;\nJednostki Samorządu Terytorialnego;\nOrganizacje pozarządowe;\nPodmioty ekonomii społecznej;\nOsoby fizyczne;\nOrganizacje zrzeszające pracodawców;\nZwiązki zawodowe;\nInstytucje rynku pracy;\nJednostki organizacyjne działające w imieniu jednostek samorządu terytorialnego","Tak","Tak",2026,"08",28,"2026-08-28","2026-09-30",10797020.92,"Województwo lubelskie","Wojewódzki Urząd Pracy w Lublinie","EFS+.CP4.A Poprawa dostępu do zatrudnienia i działań aktywizujących dla wszystkich osób poszukujących pracy, w szczególności osób młodych, zwłaszcza poprzez wdrażanie gwarancji dla młodzieży, długotrwale bezrobotnych oraz grup znajdujących się w niekorzystnej sytuacji na rynku pracy, jak również dla osób biernych zawodowo, a także poprzez promowanie samozatrudnienia i ekonomii społecznej","EFS+",null,"2026-08-21",2539400]
["FELU","FELU.18.02 Rynek pracy na rzecz dekarbonizacji","Nie dotyczy","Szkolenia w zakresie dekarbonizacji","1.   Szkolenia dla pracowników, przedsiębiorstw i przedsiębiorców w zakresie dekarbonizacji zdolności produkcyjnych, realizowane poza BUR.","konkurencyjny","Przedsiębiorstwa, Administracja publiczna, Służby publiczne, Organizacje społeczne i związki wyznaniowe","Administracja rządowa; Jednostki Samorządu Terytorialnego; Jednostki organizacyjne działające w imieniu jednostek samorządu terytorialnego; Organizacje pozarządowe; , MŚP, duże przedsiębiorstwa","Tak","Tak",2026,"08",20,"2026-08-20","2026-09-24",31659281.210000001,"Województwo lubelskie","Urząd Marszałkowski Województwa Lubelskiego w Lublinie Departament Wdrażania Europejskiego Funduszu Społecznego","EFS+.CP4.D. Wspieranie dostosowania pracowników, przedsiębiorstw i przedsiębiorców do zmian, wspieranie aktywnego i zdrowego starzenia się oraz zdrowego i dobrze dostosowanego środowiska pracy, które uwzględnia zagrożenia dla zdrowia","EFS+",null,"2026-08-10",7446089]

{"sheet":"Dostępna tabela-wskazówki","index":1,"n_rows":9,"n_cols":1,"rows_kept":9,"cut":false,"hidden":true,"merged":[]}
["Wskazówki - jak utworzyć dostępny harmonogram"]
["1) Kolumna N Przewidywana data rozpoczęcia naboru wypełni się automatycznie danymi po wpisaniu odpowiednich danych w kolumnach K,L,M. Proszę nie usuwać wartości i funkcji z tej kolumny. W przypadku usunięcia tych formuł, wystarczy przeciągnać formułę z poprzedniego wiersza. "]
["2) Unikaj scalania komórek."]
["3) Unikaj tworzenia pustych komórek.W takim przypadku warto wpisać np.. \"nie dotyczy\"."]
["4) Używaj prostego języka."]
["5) Używaj czcionek bezszeryfowych (czcionki o kroju pozbawionym ozdobników w postaci kresek przy literach) o wielkości 12 pkt (minimum)."]
["6) Proszę nie zmieniaj kolejności kolumn, nie usuwaj ich. Ułatwi to późniejszą analizę."]
["7) Zmień nazwę Pliku z domyślnej na taką, która w jasny sposób opisuje zawartość (np. Harmonogram_woj_Mazowieckie)."]
["8) Przed publikacją ukryj kolumny techniczne i nieobowiązkowe (oznaczone kolorem pomarańczowym/żółtym) - ułatwi to wnioskodawcom analizę harmonogramu."]

{"sheet":"słownik wnioskodawców","index":2,"n_rows":79,"n_cols":2,"rows_kept":79,"cut":false,"hidden":true,"merged":[]}
["Wnioskodawcy - szczegółowi","Wnioskodawcy - ogólni"]
["MŚP","Przedsiębiorstwa"]
["Administracja rządowa","Osoby fizyczne"]
["Bank Gospodarstwa Krajowego","Administracja publiczna"]
["Centra aktywności lokalnej","Przedsiębiorstwa realizujące cele publiczne"]
["Duże przedsiębiorstwa","Instytucje wspierające biznes"]
["Europejskie ugrupowanie współpracy terytorialnej","Partnerstwa"]
["Grupy Producentów","Służby publiczne"]
["Inne instytucje systemu ochrony zdrowia","Instytucje ochrony zdrowia"]
["Inne podmioty systemu szkolnictwa wyższego i nauki","Organizacje społeczne i związki wyznaniowe"]
["Instytucje finansowe","Instytucje nauki i edukacji"]
["Instytucje integracji i pomocy społecznej","Partnerzy społeczni"]
["Instytucje kultury","Zintegrowane Inwestycje Terytorialne (ZIT)"]
["Instytucje odpowiedzialne za gospodarkę wodną","Rozwój lokalny kierowany przez społeczność (RLKS)"]
["Instytucje otoczenia biznesu"]
["Instytucje rynku pracy"]
["Instytucje sportu"]
["Izby gospodarcze"]
["Izby Rolnicze"]
["Jednostki doradztwa rolniczego"]
["Jednostki naukowe"]
["Jednostki organizacyjne działające w imieniu jednostek samorządu terytorialnego"]
["Jednostki rządowe i samorządowe ochrony środowiska"]
["Jednostki Samorządu Terytorialnego"]
["Klastry"]
["Kluby sportowe, centra sportu"]
["Konsorcja naukowo-przemysłowe"]
["Kościoły i związki wyznaniowe"]
["Lasy Państwowe"]
["Parki narodowe i krajobrazowe"]
["Lokalne Grupy Działania"]
["Niepubliczne instytucje kultury"]
["Niepubliczne instytucje sportu"]
["Niepubliczne podmioty integracji i pomocy społecznej"]
["Niepubliczne zakłady opieki zdrowotnej"]
["Organizacje badawcze"]
["Organizacje pozarządowe"]
["Organizacje zrzeszające pracodawców"]
["Organizatorzy i operatorzy publicznego transportu zbiorowego"]
["Osoby fizyczne"]
["Ośrodki innowacji"]
["Ośrodki kształcenia dorosłych"]
["Ośrodki Wsparcia Ekonomii Społecznej"]
["Partnerstwa instytucji pozarządowych"]
["Partnerstwa Publiczno-Prywatne"]
["Partnerzy gospodarczy"]
["Podmioty ekonomii społecznej"]
["Podmioty świadczące usługi publiczne w ramach realizacji obowiązków własnych jednostek samorządu terytorialnego"]
["Podmioty zarządzające terenami inwestycyjnymi"]
["Policja, straż pożarna i służby ratownicze"]
["Porty lotnicze"]
["Pozarządowe organizacje turystyczne"]
["Prokuratura"]
["Przedsiębiorstwa działające w zakresie transportu intermodalnego"]
["Przedsiębiorstwa energetyczne"]
["Przedsiębiorstwa gospodarujące odpadami"]
["Przedsiębiorstwa kolejowych przewozów pasażerskich"]
["Przedsiębiorstwa kolejowych przewozów towarowych"]
["Przedsiębiorstwa świadczące kompleksowe usługi sanatoryjne/uzdrowiskowe/zakłady lecznictwa uzdrowiskowego"]
["Przedsiębiorstwa wodociągowo-kanalizacyjne"]
["Przedszkola i inne formy wychowania przedszkolnego"]
["Publiczne zakłady opieki zdrowotnej"]
["Rozwój lokalny kierowany przez społeczność (RLKS)"]
["Rządowe organizacje turystyczne"]
["Samorządy zawodowe"]
["Spółki wodne"]
["Szkoły i inne placówki systemu oświaty"]
["Uczelnie"]
["Urzędy Morskie"]
["Uzdrowiska"]
["Wspólnoty energetyczne, w tym klastry energii i spółdzielnie energetyczne"]
["Wspólnoty, spółdzielnie mieszkaniowe i TBS"]
["Wymiar sprawiedliwości"]
["Zarządcy dróg publicznych"]
["Zarządcy infrastruktury dworcowej"]
["Zarządcy infrastruktury kolejowej"]
["Zarządzający portami morskimi i wodnymi śródlądowymi"]
["Zintegrowane Inwestycje Terytorialne (ZIT)"]
["Związki zawodowe"]

{"sheet":"listy rozwijane - do ukrycia","index":3,"n_rows":1139,"n_cols":11,"rows_kept":1139,"cut":false,"hidden":true,"merged":[]}
["Program","Program","Działanie - kod i nazwa","Sposób wyboru","Cel szczegółowy - kod i nazwa","Fundusz - kod","Realizacja instrumentów terytorialnych","Dzień","Miesiąc","Rok","Wybór"]
["FEDS","FEDS","FEDS.01.01 Rozwój jednostek naukowych","konkurencyjny","EFRR.CP1.I Rozwijanie i wzmacnianie zdolności badawczych i innowacyjnych oraz wykorzystywanie zaawansowanych technologii","EFRR","IIT","01","01",2023,"Tak"]
["FEKP","FEDS","FEDS.01.02 Innowacyjne przedsiębiorstwa","niekonkurencyjny","EFRR.CP1.II Czerpanie korzyści z cyfryzacji dla obywateli, przedsiębiorstw, organizacji badawczych i instytucji publicznych","EFRR PT","RLKS","02","02",2024,"Nie"]
["FELB","FEDS","FEDS.01.03 Cyfryzacja usług publicznych",null,"EFRR.CP1.III Wzmacnianie trwałego wzrostu i konkurencyjności MŚP oraz tworzenie miejsc pracy w MŚP, w tym poprzez inwestycje produkcyjne","EFS+","ZIT","03","03",2025]
["FELD","FEDS","FEDS.01.04 Wsparcie rozwoju MŚP",null,"EFRR.CP1.IV Rozwijanie umiejętności w zakresie inteligentnej specjalizacji, transformacji przemysłowej i przedsiębiorczości","EFS+ PT","Nie dotyczy","04","04",2026]
["FELU","FEDS","FEDS.01.05 Instrumenty finansowe dla MŚP",null,"EFRR/FS.CP2.I Wspieranie efektywności energetycznej i redukcji emisji gazów cieplarnianych","FST","ZIT/IIT","05","05",2027]
["FEMA","FEDS","FEDS.02.01 Efektywność energetyczna w budynkach publicznych",null,"EFRR/FS.CP2.II Wspieranie energii odnawialnej zgodnie z dyrektywą (UE) 2018/2001, w tym określonymi w niej kryteriami zrównoważonego rozwoju","FST PT","ZIT/Nie dotyczy","06","06",2028]
["FEMP","FEDS","FEDS.02.02 Efektywność energetyczna w budynkach mieszkalnych",null,"EFRR/FS.CP2.IV Wspieranie przystosowania się do zmian klimatu i zapobiegania ryzyku związanemu z klęskami żywiołowymi i katastrofami, a także odporności, z uwzględnieniem podejścia ekosystemowego",null,"ITT/Nie dotyczy","07","07",2029]
["FEOP","FEDS","FEDS.02.03 Instrumenty finansowe na efektywność energetyczną",null,"EFRR/FS.CP2.V Wspieranie dostępu do wody oraz zrównoważonej gospodarki wodnej",null,null,"08","08"]
["FEPD","FEDS","FEDS.02.04 Innowacje w OZE",null,"EFRR/FS.CP2.VI Wspieranie transformacji w kierunku gospodarki o obiegu zamkniętym i gospodarki zasobooszczędnej",null,null,"09","09"]
["FEPK","FEDS","FEDS.02.05 Instrumenty finansowe na OZE",null,"EFRR/FS.CP2.VII Wzmacnianie ochrony i zachowania przyrody, różnorodności biologicznej oraz zielonej infrastruktury, w tym na obszarach miejskich, oraz ograniczanie wszelkich rodzajów zanieczyszczenia",null,null,"10","10"]
["FEPM","FEDS","FEDS.02.06 Gospodarka ściekowa - ZIT",null,"EFRR/FS.CP2.VIII Wspieranie zrównoważonej multimodalnej mobilności miejskiej jako elementu transformacji w kierunku gospodarki zeroemisyjnej",null,null,"11","11"]
["FEPZ","FEDS","FEDS.02.07 Ochrona przyrody i klimatu",null,"EFRR/FS.CP3.II Rozwój i udoskonalanie zrównoważonej, odpornej na zmiany klimatu, inteligentnej i intermodalnej mobilności na poziomie krajowym, regionalnym i lokalnym, w tym poprawę dostępu do TEN-T oraz mobilności transgranicznej",null,null,"12","12"]
["FESL","FEDS","FEDS.02.08 Efektywność energetyczna w budynkach publicznych - ZIT",null,"EFRR.CP4.II Poprawa równego dostępu do wysokiej jakości usług sprzyjających włączeniu społecznemu w zakresie kształcenia, szkoleń i uczenia się przez całe życie poprzez rozwój łatwo dostępnej infrastruktury, w tym poprzez wspieranie odporności w zakresie kształcenia i szkolenia na odległość oraz online",null,null,"13"]
["FESW","FEDS","FEDS.02.09 Gospodarka ściekowa - IIT",null,"EFRR.CP4.III Wspieranie włączenia społeczno-gospodarczego społeczności marginalizowanych, gospodarstw domowych o niskich dochodach oraz grup w niekorzystnej sytuacji, w tym osób o szczególnych potrzebach, dzięki zintegrowanym działaniom obejmującym usługi mieszkaniowe i usługi społeczne",null,null,"14"]
["FEWM","FEDS","FEDS.02.10 Ochrona przyrody i klimatu - ZIT",null,"EFRR.CP4.IV Wspieranie integracji społeczno-gospodarczej obywateli państw trzecich, w tym migrantów, dzięki zintegrowanym działaniom obejmującym usługi mieszkaniowe i usługi społeczne",null,null,"15"]
["FEWP","FEDS","FEDS.03.01 Ekotransport miejski i podmiejski – ZIT",null,"EFRR.CP4.V Zapewnianie równego dostępu do opieki zdrowotnej i wspieranie odporności systemów opieki zdrowotnej, w tym podstawowej opieki zdrowotnej, oraz wspieranie przechodzenia od opieki instytucjonalnej do opieki rodzinnej i środowiskowej",null,null,"16"]
[null,"FEDS","FEDS.03.02 Ekotransport miejski i podmiejski - IIT",null,"EFRR.CP4.VI Wzmacnianie roli kultury i zrównoważonej turystyki w rozwoju gospodarczym, włączeniu społecznym i innowacjach społecznych",null,null,"17"]
[null,"FEDS","FEDS.04.01 Infrastruktura drogowa i kolejowa",null,"EFRR.CP5.I Wspieranie zintegrowanego i sprzyjającego włączeniu społecznemu rozwoju społecznego, gospodarczego i środowiskowego, kultury, dziedzictwa naturalnego, zrównoważonej turystyki i bezpieczeństwa na obszarach miejskich",null,null,"18"]
[null,"FEDS","FEDS.05.01 Infrastruktura ochrony zdrowia",null,"EFRR.CP5.II Wspieranie zintegrowanego i sprzyjającego włączeniu społecznemu rozwoju społecznego, gospodarczego i środowiskowego, na poziomie lokalnym, kultury, dziedzictwa naturalnego, zrównoważonej turystyki i bezpieczeństwa na obszarach innych niż miejskie",null,null,"19"]
[null,"FEDS","FEDS.05.02 Kultura i turystyka",null,"EFS+.CP4.A Poprawa dostępu do zatrudnienia i działań aktywizujących dla wszystkich osób poszukujących pracy, w szczególności osób młodych, zwłaszcza poprzez wdrażanie gwarancji dla młodzieży, długotrwale bezrobotnych oraz grup znajdujących się w niekorzystnej sytuacji na rynku pracy, jak również dla osób biernych zawodowo, a także poprzez promowanie samozatrudnienia i ekonomii społecznej",null,null,"20"]
[null,"FEDS","FEDS.06.01 Rozwój lokalny - strategie ZIT",null,"EFS+.CP4.B Modernizacja instytucji i służb rynków pracy celem oceny i przewidywania zapotrzebowania na umiejętności oraz zapewnienia terminowej i odpowiednio dopasowanej pomocy i wsparcia na rzecz dostosowania umiejętności i kwalifikacji zawodowych do potrzeb rynku pracy oraz na rzecz przepływów i mobilności na rynku pracy",null,null,"21"]
[null,"FEDS","FEDS.06.02 Rozwój lokalny - strategie IIT",null,"EFS+.CP4.C Wspieranie zrównoważonego pod względem płci uczestnictwa w rynku pracy, równych warunków pracy oraz lepszej równowagi między życiem zawodowym a prywatnym, w tym poprzez dostęp do przystępnej cenowo opieki nad dziećmi i osobami wymagającymi wsparcia w codziennym funkcjonowaniu",null,null,"22"]
[null,"FEDS","FEDS.07.01 Projekty Powiatowych Urzędów Pracy",null,"EFS+.CP4.D Wspieranie dostosowania pracowników, przedsiębiorstw i przedsiębiorców do zmian, wspieranie aktywnego i zdrowego starzenia się oraz zdrowego i dobrze dostosowanego środowiska pracy, które uwzględnia zagrożenia dla zdrowia",null,null,"23"]
[null,"FEDS","FEDS.07.02 Rozwój instytucji rynku pracy",null,"EFS+.CP4.E Poprawa jakości, poziomu włączenia społecznego i skuteczności systemów kształcenia i szkolenia oraz ich powiązania z rynkiem pracy – w tym przez walidację uczenia się pozaformalnego i nieformalnego, w celu wspierania nabywania kompetencji kluczowych, w tym umiejętności w zakresie przedsiębiorczości i kompetencji cyfrowych, oraz przez wspieranie wprowadzania dualnych systemów szkolenia i przygotowania zawodowego",null,null,"24"]
[null,"FEDS","FEDS.07.03 Równe szanse",null,"EFS+.CP4.F Wspieranie równego dostępu do dobrej jakości, włączającego kształcenia i szkolenia oraz możliwości ich ukończenia, w szczególności w odniesieniu do grup w niekorzystnej sytuacji, od wczesnej edukacji i opieki nad dzieckiem przez ogólne i zawodowe kształcenie i szkolenie, po szkolnictwo wyższe, a także kształcenie i uczenie się dorosłych, w tym ułatwianie mobilności edukacyjnej dla wszystkich i dostępności dla osób z niepełnosprawnościami",null,null,"25"]
[null,"FEDS","FEDS.07.04 Adaptacja do zmian na rynku pracy",null,"EFS+.CP4.F, EFS+.CP4.G Wspieranie równego dostępu do dobrej jakości, włączającego kształcenia i szkolenia oraz możliwości ich ukończenia, w szczególności w odniesieniu do grup w niekorzystnej sytuacji, od wczesnej edukacji i opieki nad dzieckiem przez ogólne i zawodowe kształcenie i szkolenie, po szkolnictwo wyższe, a także kształcenie i uczenie się dorosłych, w tym ułatwianie mobilności edukacyjnej dla wszystkich i dostępności dla osób z niepełnosprawnościami\n\nWspieranie uczenia się przez całe życie, w szczególności elastycznych możliwości podnoszenia i zmiany kwalifikacji dla wszystkich, z uwzględnieniem umiejętności w zakresie przedsiębiorczości i kompetencji cyfrowych, lepsze przewidywanie zmian i zapotrzebowania na nowe umiejętności na podstawie potrzeb rynku pracy, ułatwianie zmian ścieżki kariery zawodowej i wspieranie mobilności zawodowej",null,null,"26"]
[null,"FEDS","FEDS.07.05 Aktywna integracja",null,"EFS+.CP4.G Wspieranie uczenia się przez całe życie, w szczególności elastycznych możliwości podnoszenia i zmiany kwalifikacji dla wszystkich, z uwzględnieniem umiejętności w zakresie przedsiębiorczości i kompetencji cyfrowych, lepsze przewidywanie zmian i zapotrzebowania na nowe umiejętności na podstawie potrzeb rynku pracy, ułatwianie zmian ścieżki kariery zawodowej i wspieranie mobilności zawodowej",null,null,"27"]
[null,"FEDS","FEDS.07.06 Integracja migrantów",null,"EFS+.CP4.H Wspieranie aktywnego włączenia społecznego w celu promowania równości szans, niedyskryminacji i aktywnego uczestnictwa, oraz zwiększanie zdolności do zatrudnienia, w szczególności grup w niekorzystnej sytuacji",null,null,"28"]
[null,"FEDS","FEDS.07.07 Rozwój usług społecznych i zdrowotnych",null,"EFS+.CP4.I Wspieranie integracji społeczno-gospodarczej obywateli państw trzecich, w tym migrantów",null,null,"29"]
[null,"FEDS","FEDS.07.08 Wspieranie włączenia społecznego",null,"EFS+.CP4.J Wspieranie integracji społeczno-gospodarczej społeczności marginalizowanych, takich jak Romowie",null,null,"30"]
[null,"FEDS","FEDS.07.09 Aktywizacja osób na rynku pracy",null,"EFS+.CP4.K Zwiększanie równego i szybkiego dostępu do dobrej jakości, trwałych i przystępnych cenowo usług, w tym usług, które wspierają dostęp do mieszkań oraz opieki skoncentrowanej na osobie, w tym opieki zdrowotnej; modernizacja systemów ochrony socjalnej, w tym wspieranie dostępu do ochrony socjalnej, ze szczególnym uwzględnieniem dzieci i grup w niekorzystnej sytuacji; poprawa dostępności, w tym dla osób z niepełnosprawnościami, skuteczności i odporności systemów ochrony zdrowia i usług opieki długoterminowej",null,null,"31"]
[null,"FEDS","FEDS.07.10 Rozwój usług społecznych i zdrowotnych - ZIT",null,"EFS+.CP4.L Wspieranie integracji społecznej osób zagrożonych ubóstwem lub wykluczeniem społecznym, w tym osób najbardziej potrzebujących i dzieci"]
[null,"FEDS","FEDS.08.01 Dostęp do edukacji",null,"EFS+.CP4.I, EFS+.CP4.A, EFS+.CP4.C, EFS+.CP4.F, EFS+.CP4.G, EFS+.CP4.H EFS+.CP4.I Wspieranie integracji społeczno-gospodarczej obywateli państw trzecich, w tym migrantów | EFS+.CP4.A Poprawa dostępu do zatrudnienia i działań aktywizujących dla wszystkich osób poszukujących pracy, w szczególności osób młodych, zwłaszcza poprzez wdrażanie gwarancji dla młodzieży, długotrwale bezrobotnych oraz grup znajdujących się w niekorzystnej sytuacji na rynku pracy, jak również dla osób biernych zawodowo, a także poprzez promowanie samozatrudnienia i ekonomii społecznej | EFS+.CP4.C Wspieranie zrównoważonego pod względem płci uczestnictwa w rynku pracy, równych warunków pracy oraz lepszej równowagi między życiem zawodowym a prywatnym, w tym poprzez dostęp do przystępnej cenowo opieki nad dziećmi i osobami wymagającymi wsparcia w codziennym funkcjonowaniu | EFS+.CP4.F Wspieranie równego dostępu do dobrej jakości, włączającego kształcenia i szkolenia oraz możliwości ich ukończenia, w szczególności w odniesieniu do grup w niekorzystnej sytuacji, od wczesnej edukacji i opieki nad dzieckiem przez ogólne i zawodowe kształcenie i szkolenie, po szkolnictwo wyższe, a także kształcenie i uczenie się dorosłych, w tym ułatwianie mobilności edukacyjnej dla wszystkich i dostępności dla osób z niepełnosprawnościami | EFS+.CP4.G Wspieranie uczenia się przez całe życie, w szczególności elastycznych możliwości podnoszenia i zmiany kwalifikacji dla wszystkich, z uwzględnieniem umiejętności w zakresie przedsiębiorczości i kompetencji cyfrowych, lepsze przewidywanie zmian i zapotrzebowania na nowe umiejętności na podstawie potrzeb rynku pracy, ułatwianie zmian ścieżki kariery zawodowej i wspieranie mobilności zawodowej | EFS+.CP4.H Wspieranie aktywnego włączenia społecznego w celu promowania równości szans, niedyskryminacji i aktywnego uczestnictwa, oraz zwiększanie zdolności do zatrudnienia, w szczególności grup w niekorzystnej sytuacji"]
[null,"FEDS","FEDS.08.02 Uczenie się przez całe życie",null,"FST.CP6.I Umożliwienie regionom i ludności łagodzenia wpływających na społeczeństwo, zatrudnienie, gospodarkę i środowisko skutków transformacji w kierunku osiągnięcia celów Unii na rok 2030 w dziedzinie energii i klimatu oraz w kierunku neutralnej dla klimatu gospodarki Unii do roku 2050 w oparciu o porozumienie paryskie."]
[null,"FEDS","FEDS.08.03 Dostęp do edukacji - ZIT",null,"PT.1 Pomoc Techniczna"]
[null,"FEDS","FEDS.09.01 Transformacja społeczna"]
[null,"FEDS","FEDS.09.02 Transformacja infrastruktury społecznej i edukacyjnej"]
[null,"FEDS","FEDS.09.03 Transformacja w edukacji"]
[null,"FEDS","FEDS.09.04 Transformacja gospodarcza"]
[null,"FEDS","FEDS.09.05 Transformacja środowiskowa"]
[null,"FEDS","FEDS.09.06 Transformacja środowiskowa - ZIT"]
[null,"FEDS","FEDS.10.01 Pomoc Techniczna EFRR"]
[null,"FEDS","FEDS.11.01 Pomoc Techniczna EFS+"]
[null,"FEDS","FEDS.12.01 Pomoc Techniczna FST"]
[null,"FEKP","FEKP.01.01 WZMOCNIENIE POTENCJAŁU BADAWCZEGO I INNOWACJI"]
[null,"FEKP","FEKP.01.02 CYFROWY REGION"]
[null,"FEKP","FEKP.01.03 WSPARCIE MŚP"]
[null,"FEKP","FEKP.01.04 WSPARCIE WZROSTU PRODUKTYWNOŚCI MŚP POPRZEZ INSTRUMENTY FINANSOWE"]
[null,"FEKP","FEKP.01.05 ROZWÓJ INFRASTRUKTURY NA RZECZ ROZWOJU GOSPODARCZEGO BYDOF-IP"]
[null,"FEKP","FEKP.01.06 ROZWÓJ INFRASTRUKTURY NA RZECZ ROZWOJU GOSPODARCZEGO ZITY REGIONALNE"]
[null,"FEKP","FEKP.01.07 DZIAŁANIA NA RZECZ ROZWOJU RIS, W TYM PROFESJONALIZACJA IOB"]
[null,"FEKP","FEKP.01.08 ROZWÓJ INFRASTRUKTURY NA RZECZ ROZWOJU GOSPODARCZEGO OPPT"]
[null,"FEKP","FEKP.02.01 EFEKTYWNOŚĆ ENERGETYCZNA BYDOF I ZITY REGIONALNE"]
[null,"FEKP","FEKP.02.02 CIEPŁOWNIE, SIECI CIEPŁOWNICZE I EFEKTYWNOŚĆ ENERGETYCZNA BUDYNKÓW KOMUNALNYCH BYDOF-IP"]
[null,"FEKP","FEKP.02.03 CIEPŁOWNIE, SIECI CIEPŁOWNICZE I EFEKTYWNOŚĆ ENERGETYCZNA BUDYNKÓW KOMUNALNYCH ZITY REGIONALNE"]
[null,"FEKP","FEKP.02.04 CIEPŁOWNIE, SIECI CIEPŁOWNICZE I EFEKTYWNOŚĆ ENERGETYCZNA BUDYNKÓW ZABYTKOWYCH"]
[null,"FEKP","FEKP.02.05 ROZWÓJ INSTALACJI OZE"]
[null,"FEKP","FEKP.02.06 ADAPTACJA DO ZMIAN KLIMATU W MIASTACH BYDOF-IP"]
[null,"FEKP","FEKP.02.07 ADAPTACJA DO ZMIAN KLIMATU W MIASTACH ZITY REGIONALNE"]
[null,"FEKP","FEKP.02.08 WSPARCIE SŁUŻB RATOWNICZYCH"]
[null,"FEKP","FEKP.02.09 MAŁA RETENCJA I ADAPTACJA DO ZMIAN KLIMATU W REGIONIE"]
[null,"FEKP","FEKP.02.10 EFEKTYWNE GOSPODAROWANIE WODĄ DO SPOŻYCIA I POPRAWA JEJ JAKOŚCI BYDOF-IP"]
[null,"FEKP","FEKP.02.11 EFEKTYWNE GOSPODAROWANIE WODĄ DO SPOŻYCIA I POPRAWA JEJ JAKOŚCI ZITY REGIONALNE"]
[null,"FEKP","FEKP.02.12 WSPARCIE INFRASTRUKTURY KANALIZACYJNEJ ORAZ OCZYSZCZANIA ŚCIEKÓW KOMUNALNYCH"]
[null,"FEKP","FEKP.02.13 GOSPODARKA ODPADAMI"]
[null,"FEKP","FEKP.02.14 GOZ W PRZEDSIĘBIORSTWACH"]
[null,"FEKP","FEKP.02.15 ZWIĘKSZENIE POTENCJAŁU PRZYRODNICZEGO W REGIONIE"]
[null,"FEKP","FEKP.02.16 EFEKTYWNOŚĆ ENERGETYCZNA"]
[null,"FEKP","FEKP.02.17 EFEKTYWNOŚĆ ENERGETYCZNA OPPT"]
[null,"FEKP","FEKP.02.18 CIEPŁOWNIE, SIECI CIEPŁOWNICZE I EFEKTYWNOŚĆ ENERGETYCZNA BUDYNKÓW KOMUNALNYCH OPPT"]
[null,"FEKP","FEKP.02.19 ADAPTACJA DO ZMIAN KLIMATU W MIASTACH OPPT"]
[null,"FEKP","FEKP.02.20 EFEKTYWNE GOSPODAROWANIE WODĄ DO SPOŻYCIA I POPRAWA JEJ JAKOŚCI OPPT"]
[null,"FEKP","FEKP.03.01 ROZWÓJ I USPRAWNIENIE MOBILNOŚCI MIEJSKIEJ I PODMIEJSKIEJ BYDOF-IP"]
[null,"FEKP","FEKP.03.02 ROZWÓJ I USPRAWNIENIE MOBILNOŚCI MIEJSKIEJ I PODMIEJSKIEJ ZITY REGIONALNE"]
[null,"FEKP","FEKP.03.03 ROZWÓJ I USPRAWNIENIE MOBILNOŚCI MIEJSKIEJ I PODMIEJSKIEJ OPPT"]
[null,"FEKP","FEKP.04.01 ZAKUP TABORU KOLEJOWEGO"]
[null,"FEKP","FEKP.04.02 ROZWÓJ I POPRAWA ZRÓWNOWAŻONEJ MOBILNOŚCI NA SZCZEBLU REGIONALNYM I LOKALNYM"]
[null,"FEKP","FEKP.04.03 INFRASTRUKTURA DROGOWA"]
[null,"FEKP","FEKP.05.01 WSPARCIE INSTYTUCJI KULTURY BYDOF-IP"]
[null,"FEKP","FEKP.05.02 WSPARCIE INSTYTUCJI KULTURY ZITY REGIONALNE"]
[null,"FEKP","FEKP.05.03 WSPARCIE ROZWOJU TURYSTYKI BYDOF-IP"]
[null,"FEKP","FEKP.05.04 WSPARCIE ROZWOJU TURYSTYKI ZITY REGIONALNE"]
[null,"FEKP","FEKP.05.05 WSPARCIE ROZWOJU UZDROWISK"]
[null,"FEKP","FEKP.05.06 ODNOWA PRZESTRZENI PUBLICZNYCH BYDOF-IP"]
[null,"FEKP","FEKP.05.07 ODNOWA PRZESTRZENI PUBLICZNYCH ZITY REGIONALNE"]
[null,"FEKP","FEKP.05.08 REWITALIZACJA MIAST PREZYDENCKICH"]
[null,"FEKP","FEKP.05.09 TERENY INWESTYCYJNE BYDOF-IP"]
[null,"FEKP","FEKP.05.10 TERENY INWESTYCYJNE ZITY REGIONALNE"]
[null,"FEKP","FEKP.05.11 WSPARCIE ADMINISTRACYJNE GMIN ZITY REGIONALNE"]
[null,"FEKP","FEKP.05.12 WSPARCIE INSTYTUCJI KULTURY OPPT"]
[null,"FEKP","FEKP.05.13 WSPARCIE ROZWOJU TURYSTYKI OPPT"]
[null,"FEKP","FEKP.05.14 ODNOWA PRZESTRZENI PUBLICZNYCH OPPT"]
[null,"FEKP","FEKP.05.15 TERENY INWESTYCYJNE OPPT"]
[null,"FEKP","FEKP.05.16 WSPARCIE ADMINISTRACYJNE GMIN OPPT"]
[null,"FEKP","FEKP.06.01 INWESTYCJE W INFRASTRUKTURĘ PRZEDSZKOLNĄ BYDOF-IP"]
[null,"FEKP","FEKP.06.02 INWESTYCJE W INFRASTRUKTURĘ PRZEDSZKOLNĄ ZITY REGIONALNE"]
[null,"FEKP","FEKP.06.03 INWESTYCJE W ZAKRESIE DOSTĘPNOŚCI SZKÓŁ I PLACÓWEK, W TYM EDUKACYJNA BAZA SPORTOWA BYDOF-IP"]
[null,"FEKP","FEKP.06.04 INWESTYCJE W ZAKRESIE DOSTĘPNOŚCI SZKÓŁ I PLACÓWEK, W TYM EDUKACYJNA BAZA SPORTOWA ZITY REGIONALNE"]
[null,"FEKP","FEKP.06.05 INWESTYCJE W INFRASTRUKTURĘ KSZTAŁCENIA ZAWODOWEGO BYDOF-IP"]
[null,"FEKP","FEKP.06.06 INWESTYCJE W INFRASTRUKTURĘ KSZTAŁCENIA ZAWODOWEGO ZITY REGIONALNE"]
[null,"FEKP","FEKP.06.07 INWESTYCJE W INFRASTRUKTURĘ KSZTAŁCENIA ZAWODOWEGO W TYM PUZ"]
[null,"FEKP","FEKP.06.08 INWESTYCJE W INFRASTRUKTURĘ SPOŁECZNĄ"]
[null,"FEKP","FEKP.06.09 INWESTYCJE W INFRASTRUKTURĘ ZDROWOTNĄ"]
[null,"FEKP","FEKP.06.10 INWESTYCJE W INFRASTRUKTURĘ ZDROWOTNĄ ZITY REGIONALNE"]
[null,"FEKP","FEKP.06.11 RESTAURACJA I ADAPTACJA OBIEKTÓW DZIEDZICTWA KULTUROWEGO I NATURALNEGO"]
[null,"FEKP","FEKP.06.12 WSPARCIE INSTYTUCJI KULTURY"]
[null,"FEKP","FEKP.06.13 INWESTYCJE W INFRASTRUKTURĘ PRZEDSZKOLNĄ OPPT"]
[null,"FEKP","FEKP.06.14 INWESTYCJE W ZAKRESIE DOSTĘPNOŚCI SZKÓŁ I PLACÓWEK, W TYM EDUKACYJNA BAZA SPORTOWA OPPT"]
[null,"FEKP","FEKP.06.15 INWESTYCJE W INFRASTRUKTURĘ KSZTAŁCENIA ZAWODOWEGO OPPT"]
[null,"FEKP","FEKP.06.16 INWESTYCJE W INFRASTRUKTURĘ ZDROWOTNĄ OPPT"]
[null,"FEKP","FEKP.07.01 PRZEŁAMYWANIE STEREOTYPÓW ZWIĄZANYCH Z PŁCIĄ"]
[null,"FEKP","FEKP.07.02 WSPARCIE DZIECI I MŁODZIEŻY POZA EDUKACJĄ FORMALNĄ"]
[null,"FEKP","FEKP.07.03 AKTYWIZACJA EDUKACYJNA OSÓB DOROSŁYCH"]
[null,"FEKP","FEKP.07.04 WSPIERANIE INTEGRACJI SPOŁECZNEJ"]
[null,"FEKP","FEKP.08.01 PODNIESIENIE AKTYWNOŚCI ZAWODOWEJ KLIENTÓW PUBLICZNYCH SŁUŻB ZATRUDNIENIA"]
[null,"FEKP","FEKP.08.02 WSPARCIE INDYWIDUALNEJ I KOMPLEKSOWEJ AKTYWIZACJI ZAWODOWO-EDUKACYJNEJ OSÓB MŁODYCH REALIZOWANE PRZEZ OHP"]
[null,"FEKP","FEKP.08.03 WSPARCIE OSÓB PRACUJĄCYCH ZNAJDUJĄCYCH SIĘ W NIEKORZYSTNEJ SYTUACJI NA RYNKU PRACY"]
[null,"FEKP","FEKP.08.04 MŁODZI-AKTYWNI POTENCJAŁEM REGIONALNEGO RYNKU PRACY"]
[null,"FEKP","FEKP.08.05 WSPARCIE DOSTĘPU DO USŁUG ROZWOJOWYCH"]
[null,"FEKP","FEKP.08.06 WSPARCIE W OBSZARZE ADAPTACYJNOŚCI"]
[null,"FEKP","FEKP.08.07 DZIAŁANIA W ZAKRESIE WZMOCNIENIA POTENCJAŁU PARTNERÓW SPOŁECZNYCH"]
[null,"FEKP","FEKP.08.08 WSPARCIE W OBSZARZE ZDROWIA"]
[null,"FEKP","FEKP.08.09 WYCHOWANIE PRZEDSZKOLNE BYDOF-IP"]
[null,"FEKP","FEKP.08.10 WYCHOWANIE PRZEDSZKOLNE ZITY REGIONALNE"]
[null,"FEKP","FEKP.08.11 WYCHOWANIE PRZEDSZKOLNE"]
[null,"FEKP","FEKP.08.12 KSZTAŁCENIE OGÓLNE BYDOF-IP"]
[null,"FEKP","FEKP.08.13 KSZTAŁCENIE OGÓLNE ZITY REGIONALNE"]
[null,"FEKP","FEKP.08.14 KSZTAŁCENIE OGÓLNE"]
[null,"FEKP","FEKP.08.15 KSZTAŁCENIE ZAWODOWE BYDOF-IP"]
[null,"FEKP","FEKP.08.16 KSZTAŁCENIE ZAWODOWE ZITY REGIONALNE"]
[null,"FEKP","FEKP.08.17 KSZTAŁCENIE ZAWODOWE"]
[null,"FEKP","FEKP.08.18 STYPENDIA DLA UCZNIÓW"]
[null,"FEKP","FEKP.08.19 UCZENIE SIĘ DOROSŁYCH"]
[null,"FEKP","FEKP.08.20 AKTYWNE WŁĄCZENIE SPOŁECZNE"]
[null,"FEKP","FEKP.08.21 DZIAŁANIA NA RZECZ BUDOWANIA ZDOLNOŚCI ORGANIZACJI SPOŁECZEŃSTWA OBYWATELSKIEGO"]
[null,"FEKP","FEKP.08.22 EKONOMIA SPOŁECZNA"]
[null,"FEKP","FEKP.08.23 WSPIERANIE INTEGRACJI OBYWATELI PAŃSTW TRZECICH"]
[null,"FEKP","FEKP.08.24 USŁUGI SPOŁECZNE I ZDROWOTNE"]
[null,"FEKP","FEKP.08.25 USŁUGI WSPARCIA RODZINY I PIECZY ZASTĘPCZEJ"]
[null,"FEKP","FEKP.08.26 WYCHOWANIE PRZEDSZKOLNE OPPT"]
[null,"FEKP","FEKP.08.27 KSZTAŁCENIE OGÓLNE OPPT"]
[null,"FEKP","FEKP.08.28 KSZTAŁCENIE ZAWODOWE OPPT"]
[null,"FEKP","FEKP.09.01 WSPARCIE PROCESU ZARZĄDZANIA I WDRAŻANIA FEDKP"]
[null,"FEKP","FEKP.09.02 SKUTECZNA INFORMACJA I KOMUNIKACJA FEDKP"]
[null,"FEKP","FEKP.10.01 WSPARCIE PROCESU ZARZĄDZANIA I WDRAŻANIA FEDKP"]
[null,"FEKP","FEKP.10.02 SKUTECZNA INFORMACJA I KOMUNIKACJA FEDKP"]
[null,"FELB","FELB.01.01 Badania i innowacje"]
[null,"FELB","FELB.01.02 Cyfrowe lubuskie – dotacje"]
[null,"FELB","FELB.01.03 Cyfrowe lubuskie – instrumenty zwrotne"]
[null,"FELB","FELB.01.04 Cyfrowe lubuskie - ZIT"]
[null,"FELB","FELB.01.05 Rozwój przedsiębiorczości – dotacje"]
[null,"FELB","FELB.01.06 Rozwój przedsiębiorczości – instrumenty zwrotne"]
[null,"FELB","FELB.01.07 Rozwój przedsiębiorczości -  ZIT"]
[null,"FELB","FELB.01.08 Rozwój inteligentnych specjalizacji"]
[null,"FELB","FELB.01.09 Cyfrowe lubuskie - IIT"]
[null,"FELB","FELB.01.10 Rozwój przedsiębiorczości -  IIT"]
[null,"FELB","FELB.02.01 Efektywność energetyczna – dotacje"]
[null,"FELB","FELB.02.02 Efektywność energetyczna – instrumenty zwrotne"]
[null,"FELB","FELB.02.03 Odnawialne źródła energii - dotacje"]
[null,"FELB","FELB.02.04 Odnawialne źródła energii – instrumenty zwrotne"]
[null,"FELB","FELB.02.05 Odnawialne źródła energii -  ZIT"]
[null,"FELB","FELB.02.06 Adaptacja do zmian klimatu"]
[null,"FELB","FELB.02.07 Adaptacja do zmian klimatu -  ZIT"]
[null,"FELB","FELB.02.08 Gospodarka wodno – ściekowa"]
[null,"FELB","FELB.02.09 Gospodarka odpadami"]
[null,"FELB","FELB.02.10 Ochrona przyrody"]
[null,"FELB","FELB.02.11 Ochrona przyrody -  ZIT"]
[null,"FELB","FELB.02.12 Odnawialne źródła energii -  IIT"]
[null,"FELB","FELB.02.13 Adaptacja do zmian klimatu -  IIT"]
[null,"FELB","FELB.02.14 Ochrona przyrody -  IIT"]
[null,"FELB","FELB.03.01 Mobilność miejska"]
[null,"FELB","FELB.03.02 Mobilność miejska -  ZIT"]
[null,"FELB","FELB.03.03 Mobilność miejska -  IIT"]
[null,"FELB","FELB.04.01 Infrastruktura drogowa"]
[null,"FELB","FELB.04.02 Pozostała infrastruktura transportowa"]
[null,"FELB","FELB.05.01 Infrastruktura edukacyjna"]
[null,"FELB","FELB.05.02 Infrastruktura włączenia społecznego"]
[null,"FELB","FELB.05.03 Infrastruktura zdrowotna"]
[null,"FELB","FELB.05.04 Infrastruktura kulturowa i turystyczna"]
[null,"FELB","FELB.06.01 Aktywizacja zawodowa osób pozostających bez pracy zarejestrowanych w powiatowych urzędach pracy"]
[null,"FELB","FELB.06.02 Realizacja działań na rzecz osób znajdujących się w niekorzystnej sytuacji na rynku pracy"]
[null,"FELB","FELB.06.03 Zdrowy, aktywny i kompetentny pracownik"]
[null,"FELB","FELB.06.04 Edukacja podstawowa i ponadpodstawowa"]
[null,"FELB","FELB.06.05 Kształcenie zawodowe"]
[null,"FELB","FELB.06.06 Profesjonalny nauczyciel"]
[null,"FELB","FELB.06.07 Edukacja -  ZIT"]
[null,"FELB","FELB.06.08 Edukacja dorosłych"]
[null,"FELB","FELB.06.09 Aktywna integracja społeczno-zawodowa"]
[null,"FELB","FELB.06.10 Przedsiębiorczość społeczna"]
[null,"FELB","FELB.06.11 Aktywna integracja społeczno-zawodowa -  ZIT"]
[null,"FELB","FELB.06.12 Integracja obywateli państw trzecich"]
[null,"FELB","FELB.06.13 Usługi społeczne i zdrowotne"]
[null,"FELB","FELB.06.14 Aktywizacja społeczna, mieszkalnictwo i wsparcie rodziny"]
[null,"FELB","FELB.06.15 Edukacja -  IIT"]
[null,"FELB","FELB.06.16 Aktywna integracja społeczno-zawodowa -  IIT"]
[null,"FELB","FELB.07.01 Aktywizacja społeczności lokalnej w placówkach edukacyjnych"]
[null,"FELB","FELB.07.02 Lokalne kształcenie dorosłych"]
[null,"FELB","FELB.07.03 Rozwój gospodarstw zielonych"]
[null,"FELB","FELB.07.04 Rozwój potencjału społeczności lokalnych"]
[null,"FELB","FELB.08.01 Wsparcie terytorialne obszarów miejskich - rewitalizacja"]
[null,"FELB","FELB.08.02 Wsparcie terytorialne obszarów miejskich -  ZIT"]
[null,"FELB","FELB.08.03 Wsparcie terytorialne obszarów innych niż miejskie - rewitalizacja"]
[null,"FELB","FELB.08.04 Wsparcie terytorialne obszarów innych niż miejskie -  IIT"]
[null,"FELB","FELB.09.01 Pomoc techniczna - Europejski Fundusz Rozwoju Regionalnego"]
[null,"FELB","FELB.10.01 Pomoc techniczna - Europejski Fundusz Społeczny +"]
[null,"FELD","FELD.01.01 Publiczna infrastruktura badawcza"]
[null,"FELD","FELD.01.02 Inwestycje przedsiębiorstw w badania i innowacje"]
[null,"FELD","FELD.01.03 PPO"]
[null,"FELD","FELD.01.04 Cyfryzacja"]
[null,"FELD","FELD.01.05 Konkurencyjność MŚP"]
[null,"FELD","FELD.01.06 Inwestycje w MŚP – IF"]
[null,"FELD","FELD.02.01 Efektywność energetyczna"]
[null,"FELD","FELD.02.02 Efektywność energetyczna – ZIT Łódzki Obszar Metropolitalny"]
[null,"FELD","FELD.02.03 Efektywność energetyczna – IF"]
[null,"FELD","FELD.02.04 Budynki pasywne"]
[null,"FELD","FELD.02.05 Odnawialne źródła energii"]
[null,"FELD","FELD.02.06 Odnawialne źródła energii – ZIT Łódzki Obszar Metropolitalny"]
[null,"FELD","FELD.02.07 Odnawialne źródła energii – IF"]
[null,"FELD","FELD.02.08 Dostosowanie do zmian klimatu, zapobieganie klęskom i katastrofom"]
[null,"FELD","FELD.02.09 Dostosowanie do zmian klimatu, zapobieganie klęskom i katastrofom – ZIT Łódzki Obszar Metropolitalny"]
[null,"FELD","FELD.02.10 Gospodarka wodno‐ściekowa – aglomeracje 10-15 tys. RLM"]
[null,"FELD","FELD.02.11 Gospodarka wodno‐ściekowa – aglomeracje 2-10 tys. RLM"]
[null,"FELD","FELD.02.12 Gospodarowanie wodą"]
[null,"FELD","FELD.02.13 Gospodarka o obiegu zamkniętym"]
[null,"FELD","FELD.02.14 Gospodarka o obiegu zamkniętym – IF"]
[null,"FELD","FELD.02.15 Bioróżnorodność"]
[null,"FELD","FELD.02.16 Bioróżnorodność – ZIT Łódzki Obszar Metropolitalny"]
[null,"FELD","FELD.02.17 Ochrona przyrody"]
[null,"FELD","FELD.02.18 Ochrona przyrody – ZIT Łódzki Obszar Metropolitalny"]
[null,"FELD","FELD.02.19 Efektywność energetyczna – ZIT Sieradz-Zduńska Wola-Łask"]
[null,"FELD","FELD.02.20 Odnawialne źródła energii – ZIT Sieradz-Zduńska Wola-Łask"]
[null,"FELD","FELD.02.21 Dostosowanie do zmian klimatu, zapobieganie klęskom i katastrofom – ZIT Sieradz-Zduńska Wola-Łask"]
[null,"FELD","FELD.02.22 Ochrona przyrody – ZIT Sieradz-Zduńska Wola-Łask"]
[null,"FELD","FELD.02.23 Efektywność energetyczna – ZIT Radomsko-Piotrków Trybunalski-Bełchatów"]
[null,"FELD","FELD.02.24 Odnawialne źródła energii – ZIT Radomsko-Piotrków Trybunalski-Bełchatów"]
[null,"FELD","FELD.02.25 Dostosowanie do zmian klimatu, zapobieganie klęskom i katastrofom – ZIT Radomsko-Piotrków Trybunalski-Bełchatów"]
[null,"FELD","FELD.02.26 Bioróżnorodność – ZIT Radomsko-Piotrków Trybunalski-Bełchatów"]
[null,"FELD","FELD.02.27 Efektywność energetyczna – ZIT Tomaszów Mazowiecki-Opoczno"]
[null,"FELD","FELD.02.28 Odnawialne źródła energii – ZIT Tomaszów Mazowiecki-Opoczno"]
[null,"FELD","FELD.02.29 Dostosowanie do zmian klimatu, zapobieganie klęskom i katastrofom – ZIT Tomaszów Mazowiecki-Opoczno"]
[null,"FELD","FELD.02.30 Bioróżnorodność – ZIT Tomaszów Mazowiecki – Opoczno"]
[null,"FELD","FELD.03.01 Mobilność miejska"]
[null,"FELD","FELD.03.02 Mobilność miejska - ZIT Łódzki Obszar Metropolitalny"]
[null,"FELD","FELD.03.03 Mobilność miejska - ZIT Sieradz-Zduńska Wola-Łask"]
[null,"FELD","FELD.03.04 Mobilność miejska - ZIT Radomsko-Piotrków Trybunalski-Bełchatów"]
[null,"FELD","FELD.03.05 Mobilność miejska - ZIT Tomaszów Mazowiecki-Opoczno"]
[null,"FELD","FELD.04.01 Drogi wojewódzkie"]
[null,"FELD","FELD.04.02 Drogi lokalne"]
[null,"FELD","FELD.04.03 Transport kolejowy"]
[null,"FELD","FELD.04.04 Publiczny transport pozamiejski"]
[null,"FELD","FELD.04.05 Infrastruktura paliw alternatywnych"]
[null,"FELD","FELD.05.01 Kultura i turystyka - ZIT Łódzki Obszar Metropolitalny"]
[null,"FELD","FELD.05.02 Rewitalizacja obszarów miejskich"]
[null,"FELD","FELD.05.03 Rewitalizacja obszarów wiejskich"]
[null,"FELD","FELD.05.04 Kultura i turystyka - ZIT Sieradz-Zduńska Wola-Łask"]
[null,"FELD","FELD.05.05 Kultura i turystyka - ZIT Radomsko-Piotrków Trybunalski-Bełchatów"]
[null,"FELD","FELD.05.06 Kultura i turystyka - ZIT Tomaszów Mazowiecki-Opoczno"]
[null,"FELD","FELD.06.01 Infrastruktura edukacyjna"]
[null,"FELD","FELD.06.02 Infrastruktura społeczna"]
[null,"FELD","FELD.06.03 Infrastruktura zdrowotna"]
[null,"FELD","FELD.06.04 Kultura i turystyka"]
[null,"FELD","FELD.06.05 Kultura i turystyka – IF"]
[null,"FELD","FELD.07.01 Aktywizacja zawodowa – PUP"]
[null,"FELD","FELD.07.02 Aktywizacja zawodowa – OHP"]
[null,"FELD","FELD.07.03 Aktywizacja zawodowa – WUP"]
[null,"FELD","FELD.07.04 Kadry PSZ"]
[null,"FELD","FELD.07.05 Integracja i społeczeństwo obywatelskie"]
[null,"FELD","FELD.07.06 Ekonomia społeczna"]
[null,"FELD","FELD.07.07 Integracja obywateli państw trzecich"]
[null,"FELD","FELD.07.08 Integracja obywateli państw trzecich - ZIT Łódzki Obszar Metropolitalny"]
[null,"FELD","FELD.07.09 Usługi społeczne i zdrowotne"]
[null,"FELD","FELD.07.10 Usługi społeczne i zdrowotne - ZIT Łódzki Obszar Metropolitalny"]
[null,"FELD","FELD.07.11 Profilaktyka zdrowotna i standardy dostępności"]
[null,"FELD","FELD.07.12 Usługi na rzecz rodziny"]
[null,"FELD","FELD.07.13 Włączenie społeczne"]
[null,"FELD","FELD.07.14 Włączenie społeczne - ZIT Łódzki Obszar Metropolitalny"]
[null,"FELD","FELD.08.01 Wzmocnienie równości płci"]
[null,"FELD","FELD.08.02 Usługi rozwojowe dla pracowników"]
[null,"FELD","FELD.08.03 Outplacement"]
[null,"FELD","FELD.08.04 Zdrowy pracownik"]
[null,"FELD","FELD.08.05 Poprawa organizacji pracy"]
[null,"FELD","FELD.08.06 Edukacja przedszkolna"]
[null,"FELD","FELD.08.07 Kształcenie ogólne"]
[null,"FELD","FELD.08.08 Kształcenie zawodowe"]
[null,"FELD","FELD.08.09 Kształcenie zawodowe – stypendia"]
[null,"FELD","FELD.08.10 Edukacja włączająca"]
[null,"FELD","FELD.08.11 Usługi rozwojowe dla osób dorosłych"]
[null,"FELD","FELD.08.12 Aktywność edukacyjna"]
[null,"FELD","FELD.09.01 Gospodarka w transformacji"]
[null,"FELD","FELD.09.02 Społeczeństwo w transformacji"]
[null,"FELD","FELD.09.03 Przestrzeń w transformacji"]
[null,"FELD","FELD.09.04 Mobilność lokalna w transformacji"]
[null,"FELD","FELD.09.05 Tereny zdegradowane w transformacji"]
[null,"FELD","FELD.09.06 B+R dla transformacji"]
[null,"FELD","FELD.10.01 Pomoc techniczna EFRR"]
[null,"FELD","FELD.11.01 Pomoc techniczna EFS+"]
[null,"FELD","FELD.12.01 Pomoc techniczna FST"]
[null,"FELU","FELU.01.01 Regionalna infrastruktura badawczo-rozwojowa"]
[null,"FELU","FELU.01.02 Infrastruktura wspomagająca rozwój technologiczny przedsiębiorstw"]
[null,"FELU","FELU.01.03 Badania i innowacje w sektorze przedsiębiorstw"]
[null,"FELU","FELU.01.04 Transfer technologii i komercjalizacja badań"]
[null,"FELU","FELU.01.05 Specjalizacja gospodarki regionalnej"]
[null,"FELU","FELU.01.06 Wsparcie regionalnych ekosystemów innowacji"]
[null,"FELU","FELU.02.01 Cyfrowe Lubelskie"]
[null,"FELU","FELU.02.02 Cyfrowe Lubelskie w ramach Zintegrowanych Inwestycji Terytorialnych Miejskich Obszarów Funkcjonalnych"]
[null,"FELU","FELU.02.03 Cyfrowe Lubelskie w ochronie zdrowia"]
[null,"FELU","FELU.02.04 Cyfryzacja lubelskich MŚP"]
[null,"FELU","FELU.02.05 Usługi dla MŚP"]
[null,"FELU","FELU.02.06 Inwestycje rozwojowe w MŚP"]
[null,"FELU","FELU.02.07 Lubelskie MŚP na rynkach zagranicznych"]
[null,"FELU","FELU.02.08 Budowa i rozwój powiązań klastrowych"]
[null,"FELU","FELU.03.01 Bezpieczeństwo ekologiczne"]
[null,"FELU","FELU.03.02 Dostosowanie do zmian klimatu i zapobieganie powodziom i suszy"]
[null,"FELU","FELU.03.03 Bezpieczeństwo ekologiczne oraz dostosowanie do zmian klimatu i zapobieganie powodziom i suszy w ramach Zintegrowanych Inwestycji Terytorialnych Miejskich Obszarów Funkcjonalnych"]
[null,"FELU","FELU.03.04 Zrównoważona gospodarka wodno-ściekowa"]
[null,"FELU","FELU.03.05 Zrównoważona gospodarka wodno-ściekowa w ramach Zintegrowanych Inwestycji Terytorialnych"]
[null,"FELU","FELU.03.06 Gospodarka odpadami w sektorze publicznym"]
[null,"FELU","FELU.03.07 Gospodarka odpadami w sektorze publicznym w ramach Zintegrowanych Inwestycji Terytorialnych Miejskich Obszarów Funkcjonalnych"]
[null,"FELU","FELU.03.08 GOZ w przedsiębiorstwach"]
[null,"FELU","FELU.03.09 Ochrona bioróżnorodności na obszarach objętych formami ochrony przyrody"]
[null,"FELU","FELU.03.10 Ochrona bioróżnorodności na obszarach poza formami ochrony przyrody"]
[null,"FELU","FELU.03.11 Ochrona bioróżnorodności w ramach Zintegrowanych Inwestycji Terytorialnych Miejskich Obszarów Funkcjonalnych"]
[null,"FELU","FELU.04.01 Wspieranie efektywności energetycznej w budynkach"]
[null,"FELU","FELU.04.02 Wspieranie efektywności energetycznej w sektorze mieszkaniowym"]
[null,"FELU","FELU.04.03 Wspieranie efektywności energetycznej i energooszczędności w ramach Zintegrowanych Inwestycji Terytorialnych"]
[null,"FELU","FELU.04.04 Wspieranie efektywności energetycznej i energooszczędności w ramach Innych Instrumentów Terytorialnych"]
[null,"FELU","FELU.04.05 Wspieranie energooszczędności"]
[null,"FELU","FELU.04.06 Efektywne energetycznie przedsiębiorstwa"]
[null,"FELU","FELU.04.07 Zwiększenie wykorzystania Odnawialnych Źródeł Energii"]
[null,"FELU","FELU.04.08 Zwiększenie wykorzystania Odnawialnych Źródeł Energii w ramach Zintegrowanych Inwestycji Terytorialnych"]
[null,"FELU","FELU.04.09 Zwiększenie wykorzystania Odnawialnych Źródeł Energii w ramach Innych Instrumentów Terytorialnych"]
[null,"FELU","FELU.04.10 Wykorzystanie OZE w gospodarce"]
[null,"FELU","FELU.05.01 Niskoemisyjny transport miejski"]
[null,"FELU","FELU.05.02 Niskoemisyjny transport miejski w ramach Zintegrowanych Inwestycji Terytorialnych"]
[null,"FELU","FELU.05.03 Wspieranie strategii niskoemisyjnych"]
[null,"FELU","FELU.06.01 Poprawa regionalnej dostępności transportowej"]
[null,"FELU","FELU.06.02 Kolejowy transport zbiorowy"]
[null,"FELU","FELU.06.03 Publiczny autobusowy transport zbiorowy"]
[null,"FELU","FELU.07.01 Infrastruktura przedszkolna"]
[null,"FELU","FELU.07.02 Infrastruktura edukacji ogólnej"]
[null,"FELU","FELU.07.03 Infrastruktura kształcenia zawodowego i ustawicznego"]
[null,"FELU","FELU.07.04 Infrastruktura szkół wyższych"]
[null,"FELU","FELU.07.05 Infrastruktura edukacyjna w ramach Zintegrowanych Inwestycji Terytorialnych"]
[null,"FELU","FELU.07.06 Infrastruktura usług i integracji społecznej"]
[null,"FELU","FELU.07.07 Infrastruktura usług i integracji społecznej w ramach Zintegrowanych Inwestycji Terytorialnych"]
[null,"FELU","FELU.07.08 Infrastruktura ochrony zdrowia"]
[null,"FELU","FELU.07.09 Zrównoważony rozwój dziedzictwa kulturowego"]
[null,"FELU","FELU.07.10 Turystyczne Lubelskie"]
[null,"FELU","FELU.08.01 Aktywizacja społeczna i zawodowa"]
[null,"FELU","FELU.08.02 Ekonomia społeczna"]
[null,"FELU","FELU.08.03 Integracja społeczno-gospodarcza obywateli państw trzecich"]
[null,"FELU","FELU.08.04 Integracja społeczno-gospodarcza społeczności marginalizowanych"]
[null,"FELU","FELU.08.05 Usługi społeczne"]
[null,"FELU","FELU.08.06 Usługi zdrowotne"]
[null,"FELU","FELU.08.07 Usługi społeczne w ramach Zintegrowanych Inwestycji Terytorialnych"]
[null,"FELU","FELU.08.08 Wsparcie rodziny i pieczy zastępczej"]
[null,"FELU","FELU.08.09 Integracja społeczna osób najbardziej potrzebujących wsparcia"]
[null,"FELU","FELU.09.01 Aktywizacja zawodowa – projekty PUP"]
[null,"FELU","FELU.09.02 Aktywizacja zawodowa"]
[null,"FELU","FELU.09.03 Wsparcie instytucji rynku pracy"]
[null,"FELU","FELU.09.04 Zrównoważony rynek pracy"]
[null,"FELU","FELU.09.05 Ochrona środowiska pracy"]
[null,"FELU","FELU.09.06 Adaptacyjność pracodawców i pracowników do zmian"]
[null,"FELU","FELU.09.07 Outplacement"]
[null,"FELU","FELU.09.08 Aktywizacja zawodowa - projekty OHP"]
[null,"FELU","FELU.10.01 Skuteczna edukacja"]
[null,"FELU","FELU.10.02 Edukacja przedszkolna"]
[null,"FELU","FELU.10.03 Kształcenie ogólne"]
[null,"FELU","FELU.10.04 Kształcenie zawodowe"]
[null,"FELU","FELU.10.05 Wsparcie edukacji w ramach Zintegrowanych Inwestycji Terytorialnych"]
[null,"FELU","FELU.10.06 Uczenie się osób dorosłych"]
[null,"FELU","FELU.10.07 Budowanie potencjału organizacji społeczeństwa obywatelskiego w obszarze edukacji"]
[null,"FELU","FELU.11.01 Rewitalizacja zdegradowanych obszarów miejskich"]
[null,"FELU","FELU.11.02 Ochrona dziedzictwa naturalnego, bezpieczeństwo i zrównoważony rozwój turystyki obszarów miejskich i ich obszarów funkcjonalnych w ramach Zintegrowanych Inwestycji Terytorialnych"]
[null,"FELU","FELU.11.03 Ochrona dziedzictwa kulturowego obszarów miejskich i ich obszarów funkcjonalnych w ramach Zintegrowanych Inwestycji Terytorialnych"]
[null,"FELU","FELU.11.04 Rewitalizacja obszarów innych niż miejskie"]
[null,"FELU","FELU.11.05 Ochrona dziedzictwa naturalnego, bezpieczeństwo i rozwój zrównoważonej turystyki obszarów innych niż miejskie"]
[null,"FELU","FELU.11.06 Ochrona dziedzictwa kulturowego obszarów innych niż miejskie"]
[null,"FELU","FELU.12.01 Wsparcie wdrażania Funduszy Europejskich dla Lubelskiego 2021-2027 w ramach EFS+"]
[null,"FELU","FELU.13.01 Wsparcie wdrażania Funduszy Europejskich dla Lubelskiego 2021-2027 w ramach EFRR"]
[null,"FEMA","FEMA.01.01 Badania, rozwój i innowacje przedsiębiorstw"]
[null,"FEMA","FEMA.01.02 E-usługi"]
[null,"FEMA","FEMA.01.03 Innowacyjność i konkurencyjność MŚP"]
[null,"FEMA","FEMA.02.01 Efektywność energetyczna"]
[null,"FEMA","FEMA.02.02 Efektywność energetyczna w ZIT"]
[null,"FEMA","FEMA.02.03 Odnawialne źródła energii"]
[null,"FEMA","FEMA.02.04 Dostosowanie do zmian klimatu"]
[null,"FEMA","FEMA.02.05 Gospodarka wodno-ściekowa"]
[null,"FEMA","FEMA.02.06 Gospodarka o obiegu zamkniętym"]
[null,"FEMA","FEMA.02.07 Bioróżnorodność"]
[null,"FEMA","FEMA.03.01 Mobilność miejska"]
[null,"FEMA","FEMA.03.02 Mobilność miejska w ZIT"]
[null,"FEMA","FEMA.04.01 Transport regionalny i lokalny"]
[null,"FEMA","FEMA.05.01 Dostępność szkół dla osób ze specjalnymi potrzebami"]
[null,"FEMA","FEMA.05.02 Dostępność szkół dla osób ze specjalnymi potrzebami w ZIT"]
[null,"FEMA","FEMA.05.03 Infrastruktura w edukacji zawodowej"]
[null,"FEMA","FEMA.05.04 Infrastruktura w edukacji zawodowej w ZIT"]
[null,"FEMA","FEMA.05.05 Infrastruktura społeczna"]
[null,"FEMA","FEMA.05.06 Ochrona zdrowia"]
[null,"FEMA","FEMA.05.07 Kultura i turystyka"]
[null,"FEMA","FEMA.06.01 Aktywizacja zawodowa osób bezrobotnych"]
[null,"FEMA","FEMA.06.02 Aktywizacja zawodowa osób młodych przez OHP"]
[null,"FEMA","FEMA.06.03 Nowoczesne, regionalne służby zatrudnienia"]
[null,"FEMA","FEMA.06.04 Aktywizacja zawodowa biernych zawodowo kobiet"]
[null,"FEMA","FEMA.06.05 Wsparcie dla pracodawców i pracowników"]
[null,"FEMA","FEMA.06.06 Zdrowie pracowników"]
[null,"FEMA","FEMA.07.01 Edukacja przedszkolna"]
[null,"FEMA","FEMA.07.02 Wzmocnienie kompetencji uczniów"]
[null,"FEMA","FEMA.07.03 Wzmocnienie kompetencji uczniów w ZIT"]
[null,"FEMA","FEMA.07.04 Edukacja osób dorosłych"]
[null,"FEMA","FEMA.07.05 Edukacja osób dorosłych poza PSF"]
[null,"FEMA","FEMA.08.01 Aktywizacja społeczna i zawodowa"]
[null,"FEMA","FEMA.08.02 Ekonomia społeczna"]
[null,"FEMA","FEMA.08.03 Potencjał partnerów społecznych i organizacji pozarządowych"]
[null,"FEMA","FEMA.08.04 Integracja społeczno-zawodowa obywateli państw trzecich"]
[null,"FEMA","FEMA.08.05 Usługi społeczne i zdrowotne"]
[null,"FEMA","FEMA.08.06 Usługi społeczne na rzecz rodzin"]
[null,"FEMA","FEMA.08.07 Integracja społeczna osób w kryzysie bezdomności i zagrożonych bezdomnością"]
[null,"FEMA","FEMA.08.08 Integracja społeczna Romów"]
[null,"FEMA","FEMA.09.01 Rewitalizacja miast"]
[null,"FEMA","FEMA.09.02 Rewitalizacja obszarów innych niż miejskie"]
[null,"FEMA","FEMA.09.03 Mazowieckie Centrum Wsparcia Doradczego"]
[null,"FEMA","FEMA.09.04 Metropolitalne Centrum Wsparcia Doradczego"]
[null,"FEMA","FEMA.10.01 Pomoc techniczna EFRR"]
[null,"FEMA","FEMA.11.01 Pomoc techniczna EFS+"]
[null,"FEMP","FEMP.01.01 Projekty badawczo-rozwojowe przedsiębiorstw"]
[null,"FEMP","FEMP.01.02 Bony na innowacje dla MŚP"]
[null,"FEMP","FEMP.01.03 Infrastruktura badawczo-rozwojowa przedsiębiorstw"]
[null,"FEMP","FEMP.01.04 Infrastruktura badawcza sektora nauki"]
[null,"FEMP","FEMP.01.05 Regionalny ekosystem innowacji"]
[null,"FEMP","FEMP.01.06 Cyfrowe rozwiązania w e-administracji"]
[null,"FEMP","FEMP.01.07 Cyfrowe rozwiązania dla geodezji"]
[null,"FEMP","FEMP.01.08 Rozwój e-zdrowia w województwie małopolskim"]
[null,"FEMP","FEMP.01.09 Rozwój e-kultury w województwie małopolskim"]
[null,"FEMP","FEMP.01.10 Inwestycje rozwojowe przedsiębiorstw - Instrumenty Finansowe"]
[null,"FEMP","FEMP.01.11 Rozwój MŚP w obszarze cyfryzacji i Przemysłu 4.0."]
[null,"FEMP","FEMP.01.12 Wdrażanie innowacji"]
[null,"FEMP","FEMP.01.13 Wsparcie dla firm we wczesnej fazie rozwoju"]
[null,"FEMP","FEMP.01.14 Internacjonalizacja MŚP"]
[null,"FEMP","FEMP.01.15 Umiędzynarodowienie małopolskiej gospodarki"]
[null,"FEMP","FEMP.02.01 Poprawa efektywności energetycznej - Instrumenty finansowe"]
[null,"FEMP","FEMP.02.02 Poprawa efektywności energetycznej - dotacja"]
[null,"FEMP","FEMP.02.03 Model szkół neutralnych klimatycznie"]
[null,"FEMP","FEMP.02.04 Rozwój sieci ciepłowniczych"]
[null,"FEMP","FEMP.02.05 Wdrażanie Programu ochrony powietrza"]
[null,"FEMP","FEMP.02.06 Rozpowszechnianie rozwoju OZE - dotacja"]
[null,"FEMP","FEMP.02.07 Wsparcie rozwoju OZE - dotacja"]
[null,"FEMP","FEMP.02.08 Wsparcie rozwoju OZE - Instrumenty finansowe"]
[null,"FEMP","FEMP.02.09 Gospodarowanie wodami"]
[null,"FEMP","FEMP.02.10 Przeciwdziałanie klęskom żywiołowym"]
[null,"FEMP","FEMP.02.11 Wsparcie służb ratunkowych"]
[null,"FEMP","FEMP.02.12 Rozwijanie systemu gospodarki wodno-ściekowej"]
[null,"FEMP","FEMP.02.13 Rozwijanie systemu gospodarki odpadami"]
[null,"FEMP","FEMP.02.14 Ochrona różnorodności biologicznej"]
[null,"FEMP","FEMP.02.15 Rozwój zielonej i niebieskiej infrastruktury w miastach"]
[null,"FEMP","FEMP.02.16 Rekultywacja terenów zdegradowanych"]
[null,"FEMP","FEMP.02.17 Likwidacja odpadów niebezpiecznych"]
[null,"FEMP","FEMP.02.18 Poprawa efektywności energetycznej ZIT - Instrument finansowy"]
[null,"FEMP","FEMP.02.19 Poprawa efektywności energetycznej -  ZIT - dotacja"]
[null,"FEMP","FEMP.02.20 Rozwój sieci ciepłowniczych - ZIT"]
[null,"FEMP","FEMP.02.21 Wsparcie rozwoju OZE - ZIT - dotacja"]
[null,"FEMP","FEMP.02.22 Wsparcie rozwoju OZE - ZIT - Instrumenty finansowe"]
[null,"FEMP","FEMP.02.23 Gospodarowanie wodami - ZIT"]
[null,"FEMP","FEMP.02.24 Rozwijanie systemu gospodarki wodno-ściekowej - ZIT"]
[null,"FEMP","FEMP.02.25 Rozwijanie systemu gospodarki odpadami - ZIT"]
[null,"FEMP","FEMP.02.26 Rozwój zielonej i niebieskiej infrastruktury w miastach – ZIT"]
[null,"FEMP","FEMP.02.27 Gospodarowanie wodami – IIT OPK"]
[null,"FEMP","FEMP.02.28 Rozwijanie systemu gospodarki wodno-ściekowej – IIT OPK"]
[null,"FEMP","FEMP.02.29 Rozwijanie systemu gospodarki odpadami – IIT OPK"]
[null,"FEMP","FEMP.02.30 Rozwój zielonej i niebieskiej infrastruktury w miastach oraz rekultywacja terenów zdegradowanych – IIT OPK"]
[null,"FEMP","FEMP.03.01 Transport miejski - ZIT"]
[null,"FEMP","FEMP.03.02 Transport miejski"]
[null,"FEMP","FEMP.03.03 Transport miejski – IIT OPK"]
[null,"FEMP","FEMP.04.01 Drogi regionalne"]
[null,"FEMP","FEMP.04.02 Bezpieczeństwo ruchu"]
[null,"FEMP","FEMP.04.03 Drogi powiatowe"]
[null,"FEMP","FEMP.04.04 Transport kolejowy"]
[null,"FEMP","FEMP.04.05 Transport pozamiejski - tabor"]
[null,"FEMP","FEMP.04.06 Transport pozamiejski - infrastruktura"]
[null,"FEMP","FEMP.04.07 Drogi powiatowe - ZIT"]
[null,"FEMP","FEMP.05.01 Infrastruktura szkół podstawowych i ponadpodstawowych prowadzących kształcenie ogólne"]
[null,"FEMP","FEMP.05.02 Infrastruktura ośrodków wychowania przedszkolnego"]
[null,"FEMP","FEMP.05.03 Infrastruktura kształcenia zawodowego"]
[null,"FEMP","FEMP.05.04 Infrastruktura szkoleniowa"]
[null,"FEMP","FEMP.05.05 Infrastruktura edukacji - ZIT"]
[null,"FEMP","FEMP.05.06 Infrastruktura opieki w społeczności lokalnej"]
[null,"FEMP","FEMP.05.07 Infrastruktura związana z zapewnieniem opieki w społeczności lokalnej - ZIT"]
[null,"FEMP","FEMP.05.08 Opieka długoterminowa, paliatywna i hospicyjna"]
[null,"FEMP","FEMP.05.09 Mieszkalnictwo wspomagane i treningowe"]
[null,"FEMP","FEMP.05.10 Infrastruktura podmiotów reintegracji"]
[null,"FEMP","FEMP.05.11 Wsparcie Podstawowej Opieki Zdrowotnej / Ambulatoryjnej Opieki Specjalistycznej / leczenia jednego dnia"]
[null,"FEMP","FEMP.05.12 Wsparcie Podstawowej Opieki Zdrowotnej / Ambulatoryjnej Opieki Specjalistycznej / leczenia jednego dnia – ZIT"]
[null,"FEMP","FEMP.05.13 Środowiskowa opieka psychiatryczna dla dzieci, młodzieży i dorosłych"]
[null,"FEMP","FEMP.05.14 Środowiskowa opieka psychiatryczna dla dzieci, młodzieży i dorosłych – ZIT"]
[null,"FEMP","FEMP.05.15 Dzienne Domy Opieki Medycznej"]
[null,"FEMP","FEMP.05.16 Dzienne Domy Opieki Medycznej - ZIT"]
[null,"FEMP","FEMP.05.17 Infrastruktura regionalnych instytucji kultury"]
[null,"FEMP","FEMP.05.18 Regionalna oferta turystyczna"]
[null,"FEMP","FEMP.05.19 Regionalne ścieżki rowerowe VeloMałopolska"]
[null,"FEMP","FEMP.06.01 Aktywizacja zawodowa – projekty powiatowych urzędów pracy"]
[null,"FEMP","FEMP.06.02 Aktywizacja zawodowa – projekty Komendy Wojewódzkiej Ochotniczych Hufców Pracy"]
[null,"FEMP","FEMP.06.03 Wsparcie dla reemigrantów"]
[null,"FEMP","FEMP.06.04 Działania na rzecz poprawy sytuacji osób na rynku pracy"]
[null,"FEMP","FEMP.06.05 Wsparcie na rzecz równouprawnienia oraz godzenia życia zawodowego z prywatnym"]
[null,"FEMP","FEMP.06.06 Rozwój kompetencji kadr i adaptacja do zmian"]
[null,"FEMP","FEMP.06.07 Wsparcie na rzecz zarządzania różnorodnością u pracodawców"]
[null,"FEMP","FEMP.06.08 Programy zdrowotne"]
[null,"FEMP","FEMP.06.09 Wsparcie wychowania przedszkolnego"]
[null,"FEMP","FEMP.06.10 Wsparcie kształcenia ogólnego"]
[null,"FEMP","FEMP.06.11 Wsparcie kształcenia zawodowego"]
[null,"FEMP","FEMP.06.12 Edukacja - projekty Województwa Małopolskiego"]
[null,"FEMP","FEMP.06.13 Lokalne inicjatywy edukacyjne"]
[null,"FEMP","FEMP.06.14 Kształcenie osób dorosłych w systemie popytowym"]
[null,"FEMP","FEMP.06.15 Kształcenie osób dorosłych poza systemem popytowym"]
[null,"FEMP","FEMP.06.16 Aktywizacja społeczno-zawodowa"]
[null,"FEMP","FEMP.06.17 Aktywizacja społeczno-zawodowa - RLKS"]
[null,"FEMP","FEMP.06.18 Wsparcie podmiotów ekonomii społecznej oraz przedsiębiorstw społecznych"]
[null,"FEMP","FEMP.06.19 Kompleksowe wsparcie obywateli państw trzecich"]
[null,"FEMP","FEMP.06.20 Wsparcie społeczności romskiej"]
[null,"FEMP","FEMP.06.21 Wsparcie usług społecznych w regionie"]
[null,"FEMP","FEMP.06.22 Wsparcie usług społecznych i zdrowotnych w regionie - RLKS"]
[null,"FEMP","FEMP.06.23 Włączenie społeczne - projekty Województwa Małopolskiego"]
[null,"FEMP","FEMP.06.24 Programy zdrowotne"]
[null,"FEMP","FEMP.06.25 Wsparcie usług zdrowotnych - konkursy"]
[null,"FEMP","FEMP.06.26 Integracja społeczna osób w szczególnie trudnej sytuacji życiowej"]
[null,"FEMP","FEMP.06.27 Budowanie potencjału partnerów i organizacji społeczeństwa obywatelskiego w obszarach wsparcia EFS+"]
[null,"FEMP","FEMP.06.28 Nauka i innowacja w małopolskich szkołach"]
[null,"FEMP","FEMP.06.29 Wsparcie wychowania przedszkolnego - ZIT"]
[null,"FEMP","FEMP.06.30 Wsparcie kształcenia ogólnego - ZIT"]
[null,"FEMP","FEMP.06.31 Wsparcie kształcenia zawodowego - ZIT"]
[null,"FEMP","FEMP.06.32 Aktywizacja społeczno-zawodowa - ZIT"]
[null,"FEMP","FEMP.06.33 Wsparcie usług społecznych w regionie - ZIT"]
[null,"FEMP","FEMP.06.34 Wsparcie usług zdrowotnych - ZIT"]
[null,"FEMP","FEMP.06.35 Transformacja cyfrowa szkół"]
[null,"FEMP","FEMP.06.36 Wsparcie wychowania przedszkolnego – IIT OPK"]
[null,"FEMP","FEMP.06.37 Wsparcie kształcenia ogólnego – IIT OPK"]
[null,"FEMP","FEMP.06.38 Wsparcie edukacji włączającej w wychowaniu przedszkolnym – ZIT"]
[null,"FEMP","FEMP.07.01 IIT - Wsparcie oddolnych inicjatyw na obszarach miejskich"]
[null,"FEMP","FEMP.07.02 ZIT - Wsparcie oddolnych inicjatyw na obszarach miejskich"]
[null,"FEMP","FEMP.07.03 IIT - Tereny inwestycyjne"]
[null,"FEMP","FEMP.07.04 IIT- Rewitalizacja"]
[null,"FEMP","FEMP.07.05 IIT- Obszary uzdrowiskowe"]
[null,"FEMP","FEMP.07.06 RLKS - Wsparcie oddolnych inicjatyw na obszarach wiejskich"]
[null,"FEMP","FEMP.08.01 Działania na rzecz poprawy sytuacji na rynku pracy"]
[null,"FEMP","FEMP.08.02 Edukacja dla transformacji"]
[null,"FEMP","FEMP.08.03 Wsparcie MŚP we wczesnej fazie funkcjonowania"]
[null,"FEMP","FEMP.08.04 Inicjatywy lokalne na rzecz transformacji"]
[null,"FEMP","FEMP.08.05 Wsparcie procesu sprawiedliwej transformacji"]
[null,"FEMP","FEMP.08.06 Opieka nad osobami potrzebującymi wsparcia w codziennym funkcjonowaniu"]
[null,"FEMP","FEMP.08.07 Rozwój firm wspierający sprawiedliwą transformację"]
[null,"FEMP","FEMP.08.08 Pozyskiwanie inwestycji tworzących miejsca pracy"]
[null,"FEMP","FEMP.08.09 Rozwój klastrów"]
[null,"FEMP","FEMP.08.10 Gospodarka obiegu zamkniętego"]
[null,"FEMP","FEMP.08.11 Transformacja energetyczna"]
[null,"FEMP","FEMP.08.12 Transformacja transportu"]
[null,"FEMP","FEMP.08.13 Zagospodarowanie terenów i obiektów zdegradowanych"]
[null,"FEMP","FEMP.08.14 Transformacja klimatyczna"]
[null,"FEMP","FEMP.09.01 Wsparcie wdrażania programu z FST"]
[null,"FEMP","FEMP.10.01 Wsparcie wdrażania programu z EFRR"]
[null,"FEMP","FEMP.11.01 Wsparcie wdrażania programu z EFS+"]
[null,"FEOP","FEOP.01.01 Prace B+R i infrastruktura w MŚP"]
[null,"FEOP","FEOP.01.02 Opolskie innowacyjne"]
[null,"FEOP","FEOP.01.03 Infrastruktura B+R organizacji badawczych"]
[null,"FEOP","FEOP.01.04 Cyfryzacja i e-usługi publiczne"]
[null,"FEOP","FEOP.01.05 Wsparcie dla nowopowstałych MŚP"]
[null,"FEOP","FEOP.01.06 Promocja MŚP, w tym wsparcie internacjonalizacji oraz promocji eksportu"]
[null,"FEOP","FEOP.01.07 Opolskie konkurencyjne"]
[null,"FEOP","FEOP.01.08 Wsparcie instytucji otoczenia biznesu"]
[null,"FEOP","FEOP.01.09 Wdrożenie B+R przez MŚP"]
[null,"FEOP","FEOP.01.10 Programy rozwojowe dla MŚP"]
[null,"FEOP","FEOP.01.11 Instrumenty finansowe w gospodarce"]
[null,"FEOP","FEOP.02.01 Poprawa efektywności energetycznej w województwie opolskim"]
[null,"FEOP","FEOP.02.02 Europejska Inicjatywa Społeczna dla klimatu"]
[null,"FEOP","FEOP.02.03 Zapobieganie zagrożeniom związanym ze zmianą klimatu"]
[null,"FEOP","FEOP.02.04 Gospodarka wodno - ściekowa"]
[null,"FEOP","FEOP.02.05 Odpady i gospodarka o obiegu zamkniętym"]
[null,"FEOP","FEOP.02.06 Ochrona różnorodności biologicznej"]
[null,"FEOP","FEOP.02.07 Instrumenty finansowe w obszarze środowiska"]
[null,"FEOP","FEOP.03.01 Mobilność miejska"]
[null,"FEOP","FEOP.03.02 Mobilność miejska w ZIT"]
[null,"FEOP","FEOP.04.01 Infrastruktura drogowa"]
[null,"FEOP","FEOP.04.02 Mobilność mieszkańców"]
[null,"FEOP","FEOP.04.03 Tabor kolejowy"]
[null,"FEOP","FEOP.05.01 Aktywizacja zawodowa osób pozostających bez zatrudnienia realizowana przez PUP"]
[null,"FEOP","FEOP.05.02 Aktywizacja zawodowa realizowana poza PUP"]
[null,"FEOP","FEOP.05.03 Wyrównywanie szans kobiet i mężczyzn na rynku pracy"]
[null,"FEOP","FEOP.05.04 Usługi zdrowotne dla pracujących i bezrobotnych"]
[null,"FEOP","FEOP.05.05 Adaptacyjność pracodawców i pracowników oraz elastyczne formy zatrudnienia"]
[null,"FEOP","FEOP.05.06 Edukacja przedszkolna"]
[null,"FEOP","FEOP.05.07 Kształcenie ogólne"]
[null,"FEOP","FEOP.05.08 Program pomocy stypendialnej"]
[null,"FEOP","FEOP.05.09 Kształcenie zawodowe"]
[null,"FEOP","FEOP.05.10 Edukacja włączająca"]
[null,"FEOP","FEOP.05.11 Kształcenie ustawiczne"]
[null,"FEOP","FEOP.06.01 Wsparcie ekonomii społecznej"]
[null,"FEOP","FEOP.06.02 Aktywizacja społeczno-zawodowa osób zagrożonych ubóstwem i wykluczeniem społecznym"]
[null,"FEOP","FEOP.06.03 Budowanie potencjału partnerów społecznych oraz organizacji społeczeństwa obywatelskiego"]
[null,"FEOP","FEOP.06.04 Wspieranie integracji społeczno-gospodarczej obywateli państw trzecich, w tym migrantów"]
[null,"FEOP","FEOP.06.05 Wsparcie integracji społecznej społeczności romskiej"]
[null,"FEOP","FEOP.06.06 Wsparcie osób w kryzysie bezdomności"]
[null,"FEOP","FEOP.06.07 Wsparcie rodziny i pieczy zastępczej"]
[null,"FEOP","FEOP.06.08 Profilaktyka zachowań społecznych dzieci i młodzieży"]
[null,"FEOP","FEOP.07.01 Usługi zdrowotne i społeczne oraz opieka długoterminowa"]
[null,"FEOP","FEOP.08.01 Europejski Budżet Obywatelski"]
[null,"FEOP","FEOP.09.01 Inwestycje w infrastrukturę edukacyjną"]
[null,"FEOP","FEOP.09.02 Inwestycje w infrastrukturę społeczną"]
[null,"FEOP","FEOP.09.03 Inwestycje w infrastrukturę zdrowotną"]
[null,"FEOP","FEOP.10.01 Dziedzictwo kulturowe i kultura, rozwój turystyki na obszarach miejskich - Aglomeracja Opolska"]
[null,"FEOP","FEOP.10.02 Rewitalizacja na obszarach miejskich"]
[null,"FEOP","FEOP.10.03 Europejska Inicjatywa Społeczna - Aglomeracja Opolska"]
[null,"FEOP","FEOP.10.04 Dziedzictwo kulturowe i kultura, rozwój turystyki na obszarach innych niż miejskie - 4 subregiony"]
[null,"FEOP","FEOP.10.05 Rewitalizacja na obszarach innych niż miejskie"]
[null,"FEOP","FEOP.10.06 Europejska Inicjatywa Społeczna - 4 subregiony"]
[null,"FEOP","FEOP.11.01 Pomoc techniczna EFRR"]
[null,"FEOP","FEOP.12.01 Pomoc techniczna EFS+"]
[null,"FEPD","FEPD.01.01 Rozwój regionalnego potencjału B+R"]
[null,"FEPD","FEPD.01.02 Rozwój przez cyfryzację"]
[null,"FEPD","FEPD.01.03 Pożyczki na cyfryzację"]
[null,"FEPD","FEPD.01.04 Zintegrowana terytorialnie cyfryzacja"]
[null,"FEPD","FEPD.01.05 Wzrost konkurencyjności podlaskich przedsiębiorstw"]
[null,"FEPD","FEPD.01.06 Wsparcie zwrotne na innowacje"]
[null,"FEPD","FEPD.02.01 Efektywność energetyczna"]
[null,"FEPD","FEPD.02.02 Pożyczki na efektywność energetyczną"]
[null,"FEPD","FEPD.02.03 Zintegrowana terytorialnie efektywność energetyczna"]
[null,"FEPD","FEPD.02.04 Energia odnawialna"]
[null,"FEPD","FEPD.02.05 Pożyczki na energię odnawialną"]
[null,"FEPD","FEPD.02.06 Zintegrowana terytorialnie energia odnawialna"]
[null,"FEPD","FEPD.02.07 Adaptacja do zmian klimatu"]
[null,"FEPD","FEPD.02.08 Zintegrowana terytorialnie adaptacja do zmian klimatu"]
[null,"FEPD","FEPD.02.09 Gospodarka wodna i ściekowa"]
[null,"FEPD","FEPD.02.10 Gospodarka o obiegu zamkniętym"]
[null,"FEPD","FEPD.02.11 Ochrona przyrody"]
[null,"FEPD","FEPD.02.12 Zintegrowana terytorialnie ochrona przyrody"]
[null,"FEPD","FEPD.03.01 Transport regionalny"]
[null,"FEPD","FEPD.04.01 Inwestycje w edukację"]
[null,"FEPD","FEPD.04.02 Zintegrowane terytorialnie inwestycje w edukację"]
[null,"FEPD","FEPD.04.03 Inwestycje społeczne"]
[null,"FEPD","FEPD.04.04 Zintegrowane terytorialnie inwestycje społeczne"]
[null,"FEPD","FEPD.04.05 Inwestycje w ochronę zdrowia"]
[null,"FEPD","FEPD.04.06 Inwestycje w kulturę i turystykę"]
[null,"FEPD","FEPD.05.01 Rewitalizacja miejska"]
[null,"FEPD","FEPD.05.02 Zintegrowana terytorialnie kultura i turystyka miejska"]
[null,"FEPD","FEPD.05.03 Lokalna rewitalizacja"]
[null,"FEPD","FEPD.05.04 Lokalna kultura i turystyka"]
[null,"FEPD","FEPD.06.01 Mobilność miejska"]
[null,"FEPD","FEPD.06.02 Zintegrowana terytorialnie mobilność miejska"]
[null,"FEPD","FEPD.07.01 Wspieranie zatrudnienia w regionie"]
[null,"FEPD","FEPD.07.02 Wspieranie równego dostępu do rynku pracy"]
[null,"FEPD","FEPD.07.03 Rozwój kadr regionalnej gospodarki"]
[null,"FEPD","FEPD.07.04 Wspieranie uczenia się przez całe życie"]
[null,"FEPD","FEPD.07.05 Wspieranie zatrudnienia w regionie – projekty podmiotów innych niż PUP"]
[null,"FEPD","FEPD.08.01 Rozwój edukacji i kształcenia"]
[null,"FEPD","FEPD.08.02 Zintegrowany terytorialnie rozwój edukacji i kształcenia"]
[null,"FEPD","FEPD.08.03 Zwiększenie aktywności społeczno-zawodowej"]
[null,"FEPD","FEPD.08.04 Wzrost dostępności usług społecznych"]
[null,"FEPD","FEPD.08.05 Wzmocnienie aktywnej integracji społecznej"]
[null,"FEPD","FEPD.09.01 Rozwój lokalnej edukacji i kształcenia"]
[null,"FEPD","FEPD.09.02 Zwiększenie lokalnej aktywności społeczno-zawodowej"]
[null,"FEPD","FEPD.09.03 Wzrost dostępności lokalnych usług społecznych"]
[null,"FEPD","FEPD.09.04 Wzmocnienie lokalnej aktywnej integracji społecznej"]
[null,"FEPD","FEPD.10.01 Lokalna energia odnawialna"]
[null,"FEPD","FEPD.11.01 Pomoc techniczna EFRR"]
[null,"FEPD","FEPD.12.01 Pomoc techniczna EFS+"]
[null,"FEPK","FEPK.01.01 Badania i rozwój"]
[null,"FEPK","FEPK.01.02 Cyfryzacja"]
[null,"FEPK","FEPK.01.03 Wsparcie MŚP -dotacja"]
[null,"FEPK","FEPK.01.04 Wsparcie MŚP – IF"]
[null,"FEPK","FEPK.01.05 Regionalne Inteligentne Specjalizacje"]
[null,"FEPK","FEPK.02.01 Poprawa jakości powietrza – dotacja"]
[null,"FEPK","FEPK.02.02 Poprawa jakości powietrza – IF"]
[null,"FEPK","FEPK.02.03 Odnawialne źródła energii – dotacja"]
[null,"FEPK","FEPK.02.04 Odnawialne źródła energii – IF"]
[null,"FEPK","FEPK.02.05 Adaptacja do zmian klimatu"]
[null,"FEPK","FEPK.02.06 Zrównoważona gospodarka wodno - ściekowa"]
[null,"FEPK","FEPK.02.07 Gospodarka o obiegu zamkniętym"]
[null,"FEPK","FEPK.02.08 Ochrona przyrody i różnorodności biologicznej"]
[null,"FEPK","FEPK.03.01 Zrównoważona mobilność miejska – ZIT"]
[null,"FEPK","FEPK.04.01 Drogi wojewódzkie"]
[null,"FEPK","FEPK.04.02 Tabor kolejowy"]
[null,"FEPK","FEPK.04.03 Zrównoważony transport pozamiejski"]
[null,"FEPK","FEPK.05.01 Edukacja"]
[null,"FEPK","FEPK.05.02 Włączenie społeczne"]
[null,"FEPK","FEPK.05.03 Dostępność"]
[null,"FEPK","FEPK.05.04 Ochrona zdrowia"]
[null,"FEPK","FEPK.05.05 Kultura"]
[null,"FEPK","FEPK.05.06 Szlaki turystyczne"]
[null,"FEPK","FEPK.06.01 Zrównoważony rozwój miejskich obszarów funkcjonalnych"]
[null,"FEPK","FEPK.06.02 Zrównoważony rozwój obszarów wiejskich i małych miast"]
[null,"FEPK","FEPK.07.01 Aktywizacja zawodowa osób pozostających bez pracy"]
[null,"FEPK","FEPK.07.02 Aktywizacja młodzieży w szczególnie trudnej sytuacji"]
[null,"FEPK","FEPK.07.03 Aktywizacja osób młodych pozostających bez pracy/ wsparcie rozwoju przedsiębiorczości"]
[null,"FEPK","FEPK.07.04 Poprawa sytuacji na rynku pracy osób ubogich pracujących, oraz odchodzących z rolnictwa"]
[null,"FEPK","FEPK.07.05 Inicjatywa ALMA"]
[null,"FEPK","FEPK.07.06 Wsparcie Publicznych Służb Zatrudnienia oraz innych Instytucji rynku pracy"]
[null,"FEPK","FEPK.07.07 Aktywizacja zdrowotna pracowników"]
[null,"FEPK","FEPK.07.08 Wsparcie procesów adaptacyjnych i modernizacyjnych pracowników oraz przedsiębiorców"]
[null,"FEPK","FEPK.07.09 Rozwój kwalifikacji i kompetencji kadr"]
[null,"FEPK","FEPK.07.10 Kształtowanie kompetencji w zakresie robotyki i programowania"]
[null,"FEPK","FEPK.07.11 Edukacja przedszkolna"]
[null,"FEPK","FEPK.07.12 Szkolnictwo ogólne"]
[null,"FEPK","FEPK.07.13 Szkolnictwo zawodowe"]
[null,"FEPK","FEPK.07.14 Wsparcie osób dorosłych w zdobywaniu i uzupełnianiu kwalifikacji i kompetencji"]
[null,"FEPK","FEPK.07.15 Aktywna integracja"]
[null,"FEPK","FEPK.07.16 Ekonomia społeczna"]
[null,"FEPK","FEPK.07.17 Integracja społeczno-gospodarcza obywateli państw trzecich"]
[null,"FEPK","FEPK.07.18 Usługi społeczne i zdrowotne świadczone w społeczności lokalnej"]
[null,"FEPK","FEPK.07.19 Integracja społeczna"]
[null,"FEPK","FEPK.08.01 Rozwój zdolności uczniów poza edukacją formalną"]
[null,"FEPK","FEPK.08.02 Zarządzanie Lokalną Strategią Rozwoju"]
[null,"FEPK","FEPK.08.03 Wsparcie jakości edukacji"]
[null,"FEPK","FEPK.08.04 Wsparcie osób dorosłych w zdobywaniu kompetencji"]
[null,"FEPK","FEPK.08.05 Usługi społeczne świadczone w społeczności lokalnej"]
[null,"FEPK","FEPK.08.06 Integracja społeczna"]
[null,"FEPK","FEPK.09.01 Pomoc techniczna EFRR"]
[null,"FEPK","FEPK.10.01 Pomoc techniczna EFS+"]
[null,"FEPM","FEPM.01.01 Badania i innowacje w przedsiębiorstwach"]
[null,"FEPM","FEPM.01.02 Badania i innowacje w przedsiębiorstwach – wsparcie pozadotacyjne"]
[null,"FEPM","FEPM.01.05 Wsparcie przedsiębiorstw"]
[null,"FEPM","FEPM.01.06 Wsparcie MŚP – wsparcie pozadotacyjne"]
[null,"FEPM","FEPM.02.01 Efektywność energetyczna"]
[null,"FEPM","FEPM.02.02 Efektywność energetyczna – ZIT na terenie obszaru metropolitalnego"]
[null,"FEPM","FEPM.02.03 Efektywność energetyczna – ZIT poza terenem obszaru metropolitalnego"]
[null,"FEPM","FEPM.02.04 Efektywność energetyczna – programy rewitalizacji"]
[null,"FEPM","FEPM.02.05 Efektywność energetyczna – wsparcie pozadotacyjne"]
[null,"FEPM","FEPM.02.07 Odnawialne źródła energii – RLKS"]
[null,"FEPM","FEPM.02.08 Odnawialne źródła energii – wsparcie pozadotacyjne"]
[null,"FEPM","FEPM.02.09 Przystosowanie do zmian klimatu"]
[null,"FEPM","FEPM.02.10 Przystosowanie do zmian klimatu – ZIT na terenie obszaru metropolitalnego"]
[null,"FEPM","FEPM.02.11 Przystosowanie do zmian klimatu – ZIT poza terenem obszaru metropolitalnego"]
[null,"FEPM","FEPM.02.12 Zrównoważona gospodarka wodna"]
[null,"FEPM","FEPM.02.13 Gospodarka o obiegu zamkniętym"]
[null,"FEPM","FEPM.02.14 Gospodarka o obiegu zamkniętym – wsparcie pozadotacyjne"]
[null,"FEPM","FEPM.02.15 Różnorodność biologiczna i krajobrazu"]
[null,"FEPM","FEPM.02.16 Różnorodność biologiczna i krajobrazu – ZIT poza terenem obszaru metropolitalnego"]
[null,"FEPM","FEPM.02.17 Różnorodność biologiczna i krajobrazu – RLKS"]
[null,"FEPM","FEPM.03.01 Mobilność miejska"]
[null,"FEPM","FEPM.03.02 Mobilność miejska – ZIT na terenie obszaru metropolitalnego"]
[null,"FEPM","FEPM.03.03 Mobilność miejska – ZIT poza terenem obszaru metropolitalnego"]
[null,"FEPM","FEPM.04.01 Infrastruktura drogowa"]
[null,"FEPM","FEPM.04.02 Tabor kolejowy"]
[null,"FEPM","FEPM.05.01 Rynek pracy"]
[null,"FEPM","FEPM.05.02 Rynek pracy – projekty powiatowych urzędów pracy"]
[null,"FEPM","FEPM.05.03 Modernizacja instytucji rynku pracy"]
[null,"FEPM","FEPM.05.04 Kobiety na rynku pracy"]
[null,"FEPM","FEPM.05.05 Aktywne i zdrowe starzenie się"]
[null,"FEPM","FEPM.05.06 Adaptacyjność pracowników i pracodawców"]
[null,"FEPM","FEPM.05.07 Edukacja przedszkolna"]
[null,"FEPM","FEPM.05.08 Edukacja ogólna i zawodowa"]
[null,"FEPM","FEPM.05.09 Kształcenie ustawiczne"]
[null,"FEPM","FEPM.05.10 Kształcenie ustawiczne – wsparcie pozadotacyjne"]
[null,"FEPM","FEPM.05.11 Aktywne włączenie społeczne"]
[null,"FEPM","FEPM.05.12 Aktywne włączenie społeczne – programy rewitalizacji"]
[null,"FEPM","FEPM.05.13 Rozwój ekonomii społecznej"]
[null,"FEPM","FEPM.05.14 Integracja migrantów"]
[null,"FEPM","FEPM.05.15 Integracja migrantów – ZIT na terenie obszaru metropolitalnego"]
[null,"FEPM","FEPM.05.16 Integracja migrantów – ZIT poza terenem obszaru metropolitalnego"]
[null,"FEPM","FEPM.05.17 Usługi społeczne i zdrowotne"]
[null,"FEPM","FEPM.05.18 Usługi społeczne i zdrowotne – ZIT na terenie obszaru metropolitalnego"]
[null,"FEPM","FEPM.05.19 Usługi społeczne i zdrowotne – programy rewitalizacji"]
[null,"FEPM","FEPM.05.20 Usługi społeczne i zdrowotne – RLKS"]
[null,"FEPM","FEPM.05.21 Aktywność obywatelska"]
[null,"FEPM","FEPM.06.01 Infrastruktura edukacji przedszkolnej"]
[null,"FEPM","FEPM.06.02 Infrastruktura edukacji włączającej i zawodowej"]
[null,"FEPM","FEPM.06.03 Infrastruktura społeczna"]
[null,"FEPM","FEPM.06.04 Infrastruktura społeczna – ZIT na terenie obszaru metropolitalnego"]
[null,"FEPM","FEPM.06.05 Infrastruktura społeczna – programy rewitalizacji"]
[null,"FEPM","FEPM.06.06 Infrastruktura społeczna – RLKS"]
[null,"FEPM","FEPM.06.08 Infrastruktura zdrowia – ZIT na terenie obszaru metropolitalnego"]
[null,"FEPM","FEPM.06.09 Infrastruktura zdrowia – ZIT poza terenem obszaru metropolitalnego"]
[null,"FEPM","FEPM.06.10 Infrastruktura kultury"]
[null,"FEPM","FEPM.06.11 Infrastruktura turystyki"]
[null,"FEPM","FEPM.06.12 Infrastruktura turystyki – RLKS"]
[null,"FEPM","FEPM.07.01 Rewitalizacja zdegradowanych obszarów miejskich"]
[null,"FEPM","FEPM.08.01 Pomoc Techniczna EFS+"]
[null,"FEPM","FEPM.09.01 Pomoc Techniczna EFRR"]
[null,"FEPZ","FEPZ.01.01 Kompleksowe projekty B+R przedsiębiorstw"]
[null,"FEPZ","FEPZ.01.02 Małe projekty B+R"]
[null,"FEPZ","FEPZ.01.04 Wzmocnienie procesu przedsiębiorczego odkrywania i rozwój ekosystemu innowacji"]
[null,"FEPZ","FEPZ.01.05 Rozwój i podnoszenie jakości e-usług sektora publicznego"]
[null,"FEPZ","FEPZ.01.06 Wsparcie innowacyjnych inwestycji przedsiębiorstw"]
[null,"FEPZ","FEPZ.01.07 Wsparcie rozwoju przedsiębiorstw poprzez instrumenty finansowe"]
[null,"FEPZ","FEPZ.01.08 Promocja innowacji i przedsiębiorczości oraz profesjonalizacja obsługi inwestorów"]
[null,"FEPZ","FEPZ.01.09 Przygotowanie i wdrożenie nowych modeli biznesowych przedsiębiorstw (w tym wspólne projekty przedsiębiorstw i IOB)"]
[null,"FEPZ","FEPZ.02.01 Wsparcie efektywności energetycznej poprzez instrumenty finansowe"]
[null,"FEPZ","FEPZ.02.03 Zwiększenie efektywności energetycznej budynków mieszkalnych"]
[null,"FEPZ","FEPZ.02.04 Efektywne systemy ciepłownicze"]
[null,"FEPZ","FEPZ.02.07 Zwiększenie efektywności energetycznej budynków użyteczności publicznej (ZIT)"]
[null,"FEPZ","FEPZ.02.08 Zwiększenie efektywności energetycznej budynków użyteczności publicznej (IIT)"]
[null,"FEPZ","FEPZ.02.09 Wsparcie rozwoju OZE poprzez instrumenty finansowe"]
[null,"FEPZ","FEPZ.02.12 Adaptacja do zmian klimatu"]
[null,"FEPZ","FEPZ.02.13 Adaptacja do zmian klimatu (ZIT)"]
[null,"FEPZ","FEPZ.02.14 Adaptacja do zmian klimatu (IIT)"]
[null,"FEPZ","FEPZ.02.15 Wzmocnienie służb ratownictwa"]
[null,"FEPZ","FEPZ.02.16 Odprowadzanie i oczyszczanie ścieków"]
[null,"FEPZ","FEPZ.02.17 Ograniczenie strat wody i poprawa jakości wody"]
[null,"FEPZ","FEPZ.02.18 Gospodarowanie odpadami komunalnymi"]
[null,"FEPZ","FEPZ.02.19 Gospodarowanie odpadami przemysłowymi i niebezpiecznymi"]
[null,"FEPZ","FEPZ.02.20 Wsparcie transformacji w kierunku GOZ poprzez instrumenty finansowe"]
[null,"FEPZ","FEPZ.02.23 Ochrona przyrody i jej zasobów"]
[null,"FEPZ","FEPZ.02.25 Ochrona powierzchni ziemi i ograniczenie zanieczyszczeń"]
[null,"FEPZ","FEPZ.03.01 Czysty transport miejski (ZIT)"]
[null,"FEPZ","FEPZ.04.01 Infrastruktura transportowa"]
[null,"FEPZ","FEPZ.04.02 Infrastruktura rowerowa"]
[null,"FEPZ","FEPZ.04.03 Zakup taboru kolejowego na potrzeby przewozów regionalnych"]
[null,"FEPZ","FEPZ.05.01 Infrastruktura wychowania przedszkolnego"]
[null,"FEPZ","FEPZ.05.02 Poprawa dostępności infrastruktury edukacji ogólnej"]
[null,"FEPZ","FEPZ.05.03 Infrastruktura szkolnictwa wyższego"]
[null,"FEPZ","FEPZ.05.04 Rozwój mieszkalnictwa wspomaganego i treningowego"]
[null,"FEPZ","FEPZ.05.05 Zintegrowane działania na rzecz włączenia społeczno-gospodarczego"]
[null,"FEPZ","FEPZ.05.06 Wsparcie infrastruktury rodzinnych domów dziecka"]
[null,"FEPZ","FEPZ.05.08 Integracja społeczno-gospodarcza obywateli państw trzecich"]
[null,"FEPZ","FEPZ.05.09 Dostępne i efektywne usługi zdrowotne"]
[null,"FEPZ","FEPZ.05.10 Rozwój i wzmocnienie potencjału turystycznego regionu"]
[null,"FEPZ","FEPZ.05.11 Włączenie społeczne poprzez kulturę"]
[null,"FEPZ","FEPZ.06.01 Aktywizacja zawodowa osób pozostających bez pracy - projekty Powiatowych Urzędów Pracy"]
[null,"FEPZ","FEPZ.06.02 Aktywizacja zawodowo-edukacyjna osób młodych - projekty realizowane przez Ochotnicze Hufce Pracy"]
[null,"FEPZ","FEPZ.06.03 Aktywizacja zawodowa osób pozostających bez pracy, w tym znajdujących się w trudnej sytuacji na rynku pracy"]
[null,"FEPZ","FEPZ.06.04 Wzmocnienie potencjału Publicznych Służb Zatrudnienia"]
[null,"FEPZ","FEPZ.06.05 Promowanie aktywności zawodowej kobiet oraz zasad równościowych"]
[null,"FEPZ","FEPZ.06.06 Rozwój pracowników, przedsiębiorstw i przedsiębiorców w regionie"]
[null,"FEPZ","FEPZ.06.07 Aktywne starzenie się w dobrym zdrowiu"]
[null,"FEPZ","FEPZ.06.08 Edukacja przedszkolna"]
[null,"FEPZ","FEPZ.06.09 Edukacja ogólna"]
[null,"FEPZ","FEPZ.06.10 Edukacja zawodowa (ZIT)"]
[null,"FEPZ","FEPZ.06.11 Edukacja zawodowa (IIT)"]
[null,"FEPZ","FEPZ.06.12 Edukacja osób dorosłych"]
[null,"FEPZ","FEPZ.06.13 Aktywna integracja w regionie"]
[null,"FEPZ","FEPZ.06.14 Aktywna integracja na obszarach objętych Lokalną Strategią Rozwoju"]
[null,"FEPZ","FEPZ.06.15 Kompleksowe wsparcie ekonomii społecznej i przedsiębiorstw społecznych"]
[null,"FEPZ","FEPZ.06.16 Wspieranie podnoszenia potencjału partnerów społecznych oraz organizacji społeczeństwa obywatelskiego"]
[null,"FEPZ","FEPZ.06.17 Integracja społeczno-ekonomiczna obywateli państw trzecich w regionie"]
[null,"FEPZ","FEPZ.06.18 Rozwój usług społecznych, w tym świadczonych w społeczności lokalnej"]
[null,"FEPZ","FEPZ.06.19 Rozwój usług społecznych, w tym usług świadczonych w społeczności lokalnej (ZIT)"]
[null,"FEPZ","FEPZ.06.20 Rozwój usług społecznych, w tym usług świadczonych w społeczności lokalnej (IIT)"]
[null,"FEPZ","FEPZ.06.21 Zwiększenie dostępności usług zdrowotnych i usług opieki długoterminowej"]
[null,"FEPZ","FEPZ.06.22 Kompleksowe wsparcie na rzecz rodziny"]
[null,"FEPZ","FEPZ.06.23 Usługi wczesnej interwencji kryzysowej oraz usługi dla osób w kryzysie bezdomności i zagrożonych wykluczeniem mieszkaniowym"]
[null,"FEPZ","FEPZ.07.01 Rozwój obszarów miejskich (ZIT)"]
[null,"FEPZ","FEPZ.07.02 Rozwój obszarów innych niż miejskie (IIT)"]
[null,"FEPZ","FEPZ.08.01 Pomoc techniczna (EFRR)"]
[null,"FEPZ","FEPZ.09.01 Pomoc Techniczna (EFS+)"]
[null,"FESL","FESL.01.01 B+R - organizacje badawcze"]
[null,"FESL","FESL.01.02 Badania, rozwój i innowacje w przedsiębiorstwach"]
[null,"FESL","FESL.01.03 Ekosystem RIS"]
[null,"FESL","FESL.01.04 Cyfryzacja administracji publicznej"]
[null,"FESL","FESL.01.05 Innowacyjne rozwiązania cyfrowe w ochronie zdrowia"]
[null,"FESL","FESL.01.06 Rozwój przedsiębiorczości - EFRR"]
[null,"FESL","FESL.01.07 Klastry"]
[null,"FESL","FESL.01.08 Innowacje cyfrowe w MŚP"]
[null,"FESL","FESL.01.09 Konkurencyjność przedsiębiorstw (IF)"]
[null,"FESL","FESL.01.10 Promocja eksportu i internacjonalizacja MŚP"]
[null,"FESL","FESL.02.01 Efektywność energetyczna budynków użyteczności publicznej"]
[null,"FESL","FESL.02.02 Efektywność energetyczna budynków użyteczności publicznej – ZIT"]
[null,"FESL","FESL.02.03 Efektywność energetyczna budynków mieszkalnych"]
[null,"FESL","FESL.02.04 Efektywność energetyczna budynków mieszkalnych – ZIT"]
[null,"FESL","FESL.02.05 Efektywność energetyczna budynków użyteczności publicznej, mieszkalnych i przedsiębiorstw (IF)"]
[null,"FESL","FESL.02.06 Odnawialne źródła energii"]
[null,"FESL","FESL.02.07 Odnawialne źródła energii (IF)"]
[null,"FESL","FESL.02.08 Wsparcie dla klimatu"]
[null,"FESL","FESL.02.09 Wsparcie dla klimatu - ZIT"]
[null,"FESL","FESL.02.10 Wzmocnienie potencjału służb ratowniczych"]
[null,"FESL","FESL.02.11 Infrastruktura wodno-kanalizacyjna"]
[null,"FESL","FESL.02.12 Gospodarka odpadami komunalnymi"]
[null,"FESL","FESL.02.13 Gospodarka o obiegu zamkniętym (IF)"]
[null,"FESL","FESL.02.14 Ochrona przyrody i bioróżnorodność"]
[null,"FESL","FESL.02.15 Ochrona przyrody i bioróżnorodność - ZIT"]
[null,"FESL","FESL.02.16 Rekultywacja terenów zdegradowanych"]
[null,"FESL","FESL.03.01 Zakup taboru autobusowego/ trolejbusowego - ZIT"]
[null,"FESL","FESL.03.02 Zrównoważona multimodalna mobilność miejska - ZIT"]
[null,"FESL","FESL.03.03 Regionalne Trasy Rowerowe - ZIT"]
[null,"FESL","FESL.04.01 Drogi wojewódzkie"]
[null,"FESL","FESL.04.02 Drogi gminne i powiatowe"]
[null,"FESL","FESL.04.03 Regionalny tabor kolejowy"]
[null,"FESL","FESL.05.01 Aktywizacja zawodowa poprzez PUP"]
[null,"FESL","FESL.05.02 Aktywizacja zawodowa poprzez OHP"]
[null,"FESL","FESL.05.03 ALMA - staże zagraniczne dla młodych"]
[null,"FESL","FESL.05.04 Aktywizacja zawodowa osób pracujących"]
[null,"FESL","FESL.05.05 Usługi EURES"]
[null,"FESL","FESL.05.06 Szkolenia dla pracowników IRP"]
[null,"FESL","FESL.05.07 Opracowanie modelu prognozowania i monitorowania zmian na rynku pracy"]
[null,"FESL","FESL.05.08 Budowanie sieci współpracy międzyinstytucjonalnej i promocji w zakresie poradnictwa zawodowego"]
[null,"FESL","FESL.05.09 EURES-T Beskydy"]
[null,"FESL","FESL.05.10 EURES dla PSZ"]
[null,"FESL","FESL.05.11 Równość szans na rynku pracy"]
[null,"FESL","FESL.05.12 Regionalne programy zdrowotne"]
[null,"FESL","FESL.05.13 Zdrowy pracownik"]
[null,"FESL","FESL.05.14 Usługi rozwojowe dla kadr administracji samorządowej"]
[null,"FESL","FESL.05.15 Usługi rozwojowe dla przedsiębiorców - PSF"]
[null,"FESL","FESL.05.16 Outplacement EFS+"]
[null,"FESL","FESL.06.01 Edukacja przedszkolna"]
[null,"FESL","FESL.06.02 Kształcenie ogólne"]
[null,"FESL","FESL.06.03 Kształcenie zawodowe"]
[null,"FESL","FESL.06.04 Strategiczne projekty dla obszaru edukacji"]
[null,"FESL","FESL.06.05 Wsparcie edukacyjne społeczności objętych LSR"]
[null,"FESL","FESL.06.06 Kształcenie osób dorosłych - EFS+"]
[null,"FESL","FESL.06.07 Upskilling pathways - RLKS"]
[null,"FESL","FESL.06.08 Upskilling pathways"]
[null,"FESL","FESL.06.09 Lokalne Ośrodki Wiedzy i Edukacji - LOWE"]
[null,"FESL","FESL.07.01 Ekonomia społeczna"]
[null,"FESL","FESL.07.02 Aktywna integracja"]
[null,"FESL","FESL.07.03 Integracja społeczno - gospodarcza cudzoziemców"]
[null,"FESL","FESL.07.04 Usługi społeczne"]
[null,"FESL","FESL.07.05 Strategiczne projekty dla obszaru usług społecznych"]
[null,"FESL","FESL.07.06 Ochrona zdrowia"]
[null,"FESL","FESL.07.07 Wsparcie rodziny, dzieci i młodzieży oraz deinstytucjonalizacja pieczy zastępczej"]
[null,"FESL","FESL.07.08 Strategiczne projekty dla obszaru wsparcia rodziny"]
[null,"FESL","FESL.07.09 Usługi dla osób w kryzysie bezdomności, dotkniętych wykluczeniem z dostępu do mieszkań lub zagrożonych bezdomnością"]
[null,"FESL","FESL.07.10 Wsparcie społeczności objętych LSR"]
[null,"FESL","FESL.07.11 Wsparcie społeczności mniejszościowych, w tym społeczności romskich"]
[null,"FESL","FESL.07.12 Rozwój dialogu obywatelskiego"]
[null,"FESL","FESL.08.01 Infrastruktura szkolnictwa wyższego"]
[null,"FESL","FESL.08.02 Edukacja włączająca"]
[null,"FESL","FESL.08.03 Infrastruktura szkolnictwa zawodowego - ZIT"]
[null,"FESL","FESL.08.04 Infrastruktura usług społecznych"]
[null,"FESL","FESL.08.05 E-zdrowie"]
[null,"FESL","FESL.08.06 Infrastruktura ochrony zdrowia"]
[null,"FESL","FESL.08.07 Kultura i turystyka szczebla regionalnego"]
[null,"FESL","FESL.08.08 Infrastruktura szkolnictwa zawodowego"]
[null,"FESL","FESL.09.01 Zwiększenie roli kultury i turystyki w rozwoju subregionalnym - ZIT"]
[null,"FESL","FESL.09.02 Rozwój ZIT"]
[null,"FESL","FESL.09.03 Rewitalizacja obszarów miejskich"]
[null,"FESL","FESL.09.04 Rewitalizacja obszarów miejskich (IF)"]
[null,"FESL","FESL.09.05 Rewitalizacja obszarów wiejskich"]
[null,"FESL","FESL.10.01 Wykorzystanie terenów zdegradowanych w celu rozwoju regionu poprzez inwestycje przedsiębiorstw"]
[null,"FESL","FESL.10.02 Badania, rozwój i innowacje w przedsiębiorstwach na rzecz transformacji"]
[null,"FESL","FESL.10.03 Wsparcie MŚP na rzecz transformacji"]
[null,"FESL","FESL.10.04 Wsparcie dużych przedsiębiorstw na rzecz transformacji"]
[null,"FESL","FESL.10.05 Innowacyjna infrastruktura wspierająca gospodarkę"]
[null,"FESL","FESL.10.06 Rozwój energetyki rozproszonej opartej o odnawialne źródła energii"]
[null,"FESL","FESL.10.07 Rekultywacja terenów poprzemysłowych, zdewastowanych, zdegradowanych na cele środowiskowe"]
[null,"FESL","FESL.10.08 Poprawa stosunków wodnych na obszarze oddziaływania kopalń "]
[null,"FESL","FESL.10.09 Ponowne wykorzystanie terenów poprzemysłowych, zdewastowanych, zdegradowanych na cele rozwojowe regionu"]
[null,"FESL","FESL.10.10 Wsparcie planowania transformacji"]
[null,"FESL","FESL.10.11 Systemowe zarządzanie terenami poprzemysłowymi"]
[null,"FESL","FESL.10.12 Poprawa mobilności mieszkańców regionu i spójności transportowej podregionów górniczych"]
[null,"FESL","FESL.10.13 Infrastruktura szkolnictwa wyższego na potrzeby transformacji"]
[null,"FESL","FESL.10.14 Infrastruktura kształcenia zawodowego"]
[null,"FESL","FESL.10.15 Wykorzystanie endogenicznego potencjału podregionów górniczych"]
[null,"FESL","FESL.10.16 Rozwój przedsiębiorczości FST"]
[null,"FESL","FESL.10.17 Kształcenie osób dorosłych FST"]
[null,"FESL","FESL.10.18 Redeployment"]
[null,"FESL","FESL.10.19 Outplacement FST"]
[null,"FESL","FESL.10.20 Wsparcie na założenie działalności gospodarczej"]
[null,"FESL","FESL.10.21 Wsparcie pracowników zaangażowanych w proces transformacji"]
[null,"FESL","FESL.10.22 Regionalne Obserwatorium Procesu Transformacji - FST"]
[null,"FESL","FESL.10.23 Edukacja zawodowa w procesie sprawiedliwej transformacji regionu"]
[null,"FESL","FESL.10.24 Włączenie społeczne - wzmocnienie procesu sprawiedliwej transformacji"]
[null,"FESL","FESL.10.25 Rozwój kształcenia wyższego zgodnie z potrzebami zielonej gospodarki"]
[null,"FESL","FESL.10.26 Wzmocnienie procesu sprawiedliwej transformacji w regionie"]
[null,"FESL","FESL.11.01 Pomoc Techniczna EFRR"]
[null,"FESL","FESL.12.01 Pomoc Techniczna EFS+"]
[null,"FESL","FESL.13.01 Pomoc Techniczna FST"]
[null,"FESW","FESW.01.01 Wsparcie infrastruktury B+R organizacji badawczych"]
[null,"FESW","FESW.01.02 Wsparcie działalności przedsiębiorstw w zakresie B+R"]
[null,"FESW","FESW.01.03 Budowanie potencjału IOB"]
[null,"FESW","FESW.01.05 Zwiększenie potencjału MŚP i rozwój regionalnego ekosystemu innowacji"]
[null,"FESW","FESW.01.06 Cyfryzacja w sektorze usług publicznych"]
[null,"FESW","FESW.01.07 Wsparcie internacjonalizacji przedsiębiorstw i infrastruktury biznesu"]
[null,"FESW","FESW.01.08 Kapitał dla MŚP"]
[null,"FESW","FESW.02.01 Efektywność energetyczna – dotacje"]
[null,"FESW","FESW.02.02 Efektywność energetyczna – IF"]
[null,"FESW","FESW.02.03 Zielona energia – dotacje"]
[null,"FESW","FESW.02.04 Zielona energia – IF"]
[null,"FESW","FESW.02.05 Gospodarowanie zasobami wody i przeciwdziałanie klęskom żywiołowym"]
[null,"FESW","FESW.02.06 Infrastruktura wodno-ściekowa"]
[null,"FESW","FESW.02.07 Gospodarowanie odpadami – dotacje"]
[null,"FESW","FESW.02.08 Gospodarowanie odpadami – IF"]
[null,"FESW","FESW.02.09 Ochrona dziedzictwa i różnorodności biologicznej"]
[null,"FESW","FESW.03.01 Mobilność miejska w MOF (ZIT)"]
[null,"FESW","FESW.03.02 Mobilność miejska"]
[null,"FESW","FESW.04.01 Infrastruktura drogowa"]
[null,"FESW","FESW.04.02 Rozwój transportu zbiorowego i poprawa bezpieczeństwa ruchu"]
[null,"FESW","FESW.05.01 Infrastruktura edukacyjna"]
[null,"FESW","FESW.05.02 Infrastruktura społeczna"]
[null,"FESW","FESW.05.03 Infrastruktura zdrowotna"]
[null,"FESW","FESW.05.04 Infrastruktura w turystyce i kulturze"]
[null,"FESW","FESW.06.01 Rozwój miast i miejskich obszarów funkcjonalnych (ZIT)"]
[null,"FESW","FESW.06.02 Rewitalizacja miast"]
[null,"FESW","FESW.06.03 Wzmacnianie lokalnych potencjałów na obszarach innych niż obszary miejskie"]
[null,"FESW","FESW.06.04 Rozwój Lokalny Kierowany przez Społeczność"]
[null,"FESW","FESW.06.05 Rewitalizacja obszarów innych niż obszary miejskie"]
[null,"FESW","FESW.07.01 Wsparcie zdrowotne świętokrzyskich pracowników"]
[null,"FESW","FESW.07.02 Programy rehabilitacyjne ułatwiające powrót na rynek pracy"]
[null,"FESW","FESW.08.01 Wsparcie edukacji przedszkolnej"]
[null,"FESW","FESW.08.02 Podnoszenie jakości kształcenia podstawowego"]
[null,"FESW","FESW.08.03 Wysoka jakość edukacji ponadpodstawowej ogólnej"]
[null,"FESW","FESW.08.04 Rozwój szkolnictwa branżowego"]
[null,"FESW","FESW.08.05 Wsparcie edukacji osób dorosłych"]
[null,"FESW","FESW.09.01 Aktywna integracja społeczna i zawodowa"]
[null,"FESW","FESW.09.02 Kompleksowe wsparcie sektora ekonomii społecznej"]
[null,"FESW","FESW.09.03 Aktywna integracja społeczna i zawodowa obywateli państw trzecich"]
[null,"FESW","FESW.09.04 Zwiększenie dostępności usług społecznych i zdrowotnych"]
[null,"FESW","FESW.09.05 Wsparcie rodzin oraz pieczy zastępczej"]
[null,"FESW","FESW.09.06 Podnoszenie potencjału partnerów społecznych i organizacji społeczeństwa obywatelskiego"]
[null,"FESW","FESW.10.01 Aktywizacja zawodowa osób bezrobotnych i poszukujących pracy"]
[null,"FESW","FESW.10.02 Wsparcie osób młodych na regionalnym rynku pracy"]
[null,"FESW","FESW.10.03 Wsparcie osób młodych z grupy NEET- Inicjatywa ALMA"]
[null,"FESW","FESW.10.04 Kompetentne kadry instytucji rynku pracy w regionie"]
[null,"FESW","FESW.10.05 Zrównoważony rynek pracy – nowa „JA”"]
[null,"FESW","FESW.10.06 Konkurencyjne kadry świętokrzyskich pracodawców i przedsiębiorstw"]
[null,"FESW","FESW.10.07 Działania na rzecz osób zagrożonych utratą pracy"]
[null,"FESW","FESW.10.08 Zwiększenie możliwości zawodowych osób zatrudnionych"]
[null,"FESW","FESW.10.09 Podnoszenie kwalifikacji i umiejętności osób dorosłych w regionie"]
[null,"FESW","FESW.10.10 Zwiększenie możliwości zawodowych osób ubogich pracujących"]
[null,"FESW","FESW.10.11 Wsparcie osób powracających z zagranicy - EURES"]
[null,"FESW","FESW.11.01 Pomoc Techniczna EFRR"]
[null,"FESW","FESW.12.01 Pomoc Techniczna EFS+"]
[null,"FEWM","FEWM.01.01 Publiczna infrastruktura naukowo-badawcza"]
[null,"FEWM","FEWM.01.02 Działalność B+R+I przedsiębiorstw"]
[null,"FEWM","FEWM.01.03 Transfer technologii"]
[null,"FEWM","FEWM.01.04 Transformacja cyfrowa MŚP"]
[null,"FEWM","FEWM.01.05 Nowe e-usługi dla firm"]
[null,"FEWM","FEWM.01.06 E-usługi publiczne"]
[null,"FEWM","FEWM.01.07 E-zdrowie"]
[null,"FEWM","FEWM.01.08 Profesjonalizacja usług dla MŚP"]
[null,"FEWM","FEWM.01.09 Konkurencyjne i innowacyjne MŚP"]
[null,"FEWM","FEWM.01.10 Rozwój przedsiębiorczości (IF)"]
[null,"FEWM","FEWM.01.11 Kompetencje dla gospodarki przyszłości"]
[null,"FEWM","FEWM.01.12 Cyfrowe MŚP"]
[null,"FEWM","FEWM.02.01 Efektywność energetyczna"]
[null,"FEWM","FEWM.02.02 Efektywność energetyczna – ZIT"]
[null,"FEWM","FEWM.02.03 Efektywność energetyczna – IIT"]
[null,"FEWM","FEWM.02.04 Efektywność energetyczna IF"]
[null,"FEWM","FEWM.02.05 Odnawialne źródła energii"]
[null,"FEWM","FEWM.02.06 Odnawialne źródła energii IF"]
[null,"FEWM","FEWM.02.07 Adaptacja do zmian klimatu"]
[null,"FEWM","FEWM.02.08 Gospodarka wodno-ściekowa"]
[null,"FEWM","FEWM.02.09 Gospodarka wodno-ściekowa – ZIT"]
[null,"FEWM","FEWM.02.10 Gospodarka odpadowa"]
[null,"FEWM","FEWM.02.11 Gospodarka o obiegu zamkniętym"]
[null,"FEWM","FEWM.02.12 Ochrona bioróżnorodności"]
[null,"FEWM","FEWM.03.01 Mobilność miejska"]
[null,"FEWM","FEWM.03.02 Mobilność miejska – ZIT"]
[null,"FEWM","FEWM.03.03 Mobilność miejska – IIT"]
[null,"FEWM","FEWM.04.01 Infrastruktura dla mobilności regionalnej i bezpieczeństwa"]
[null,"FEWM","FEWM.04.02 Publiczny transport zbiorowy"]
[null,"FEWM","FEWM.04.03 Zarządzanie ruchem lotniczym"]
[null,"FEWM","FEWM.04.04 Cyfryzacja w transporcie"]
[null,"FEWM","FEWM.05.01 Infrastruktura edukacyjna"]
[null,"FEWM","FEWM.05.02 Infrastruktura edukacyjna - ZIT"]
[null,"FEWM","FEWM.06.01 Kompetencje dla regionu"]
[null,"FEWM","FEWM.06.02 Edukacja przedszkolna"]
[null,"FEWM","FEWM.06.03 Edukacja ogólnokształcąca"]
[null,"FEWM","FEWM.06.04 Edukacja zawodowa"]
[null,"FEWM","FEWM.06.05 Edukacja przez całe życie"]
[null,"FEWM","FEWM.06.06 Edukacja w ZIT Ełk i Olsztyn"]
[null,"FEWM","FEWM.07.01 Aktywizacja zawodowa osób bezrobotnych – PUP"]
[null,"FEWM","FEWM.07.02 Poprawa sytuacji zawodowej osób pracujących"]
[null,"FEWM","FEWM.07.03 Profesjonalizacja kadr instytucji rynku pracy"]
[null,"FEWM","FEWM.07.04 Zdrowie w pracy"]
[null,"FEWM","FEWM.07.05 Usługi rozwojowe"]
[null,"FEWM","FEWM.07.06 Adaptacja do zmian"]
[null,"FEWM","FEWM.07.07 Outplacement"]
[null,"FEWM","FEWM.07.08 Integracja obywateli państw trzecich na rynku pracy"]
[null,"FEWM","FEWM.08.01 Infrastruktura społeczna"]
[null,"FEWM","FEWM.08.02 Infrastruktura systemu pieczy zastępczej"]
[null,"FEWM","FEWM.09.01 Aktywna integracja"]
[null,"FEWM","FEWM.09.02 Ekonomia społeczna"]
[null,"FEWM","FEWM.09.03 Integracja obywateli państw trzecich w środowisku lokalnym"]
[null,"FEWM","FEWM.09.04 Usługi społeczne dla osób potrzebujących wsparcia w codziennym funkcjonowaniu"]
[null,"FEWM","FEWM.09.05 Usługi społeczne dla osób potrzebujących wsparcia w codziennym funkcjonowaniu – ZIT"]
[null,"FEWM","FEWM.09.06 Usługi zdrowotne"]
[null,"FEWM","FEWM.09.07 Usługi społeczne na rzecz rodzin i osób w kryzysie bezdomności"]
[null,"FEWM","FEWM.09.08 Usługi społeczne na rzecz rodzin i osób w kryzysie bezdomności – ZIT"]
[null,"FEWM","FEWM.09.09 System pieczy zastępczej"]
[null,"FEWM","FEWM.10.01 Infrastruktura zdrowia"]
[null,"FEWM","FEWM.11.01 Infrastruktura kultury"]
[null,"FEWM","FEWM.11.02 Publiczna oferta turystyczna"]
[null,"FEWM","FEWM.11.03 Szlaki turystyczne"]
[null,"FEWM","FEWM.12.01 Rewitalizacja obszarów miejskich"]
[null,"FEWM","FEWM.12.02 Uzdrowiska"]
[null,"FEWM","FEWM.12.03 Tereny inwestycyjne"]
[null,"FEWM","FEWM.13.01 Pomoc techniczna EFRR"]
[null,"FEWM","FEWM.14.01 Pomoc techniczna EFS+"]
[null,"FEWP","FEWP.01.01 Wsparcie potencjału B+R podmiotów badawczych w regionie"]
[null,"FEWP","FEWP.01.02 Wsparcie działalności B+R przedsiębiorstw i konsorcjów przedsiębiorstw z organizacjami badawczymi, w tym w zakresie infrastruktury B+R"]
[null,"FEWP","FEWP.01.03 Rozwój e-usług i e-zasobów publicznych"]
[null,"FEWP","FEWP.01.04 Rozwój e-usług i e-zasobów publicznych w ramach ZIT"]
[null,"FEWP","FEWP.01.05 Wsparcie konkurencyjności i rozwoju przedsiębiorstw w dostosowaniu do wyzwań gospodarki - Instrumenty finansowe"]
[null,"FEWP","FEWP.01.06 Rozwój przedsiębiorstw poprzez wsparcie IOB/Klastry oraz wsparcie ich potencjału"]
[null,"FEWP","FEWP.01.07 Wzmocnienie procesu przedsiębiorczego odkrywania i promocja gospodarki w regionie"]
[null,"FEWP","FEWP.02.01 Wspieranie efektywności energetycznej i redukcji emisji gazów cieplarnianych"]
[null,"FEWP","FEWP.02.02 Wspieranie efektywności energetycznej i redukcji emisji gazów cieplarnianych - Instrumenty finansowe"]
[null,"FEWP","FEWP.02.03 Rozwój energii odnawialnej (OZE)"]
[null,"FEWP","FEWP.02.04 Rozwój energii odnawialnej (OZE) – Instrumenty Finansowe"]
[null,"FEWP","FEWP.02.05 Zwiększanie odporności na zmiany klimatu i klęski żywiołowe"]
[null,"FEWP","FEWP.02.06 Zwiększanie odporności na zmiany klimatu i klęski żywiołowe w ramach ZIT"]
[null,"FEWP","FEWP.02.07 Rozwój zrównoważonej gospodarki wodno – ściekowej"]
[null,"FEWP","FEWP.02.08 Wspieranie transformacji w kierunku gospodarki o obiegu zamkniętym i gospodarki zasobooszczędnej"]
[null,"FEWP","FEWP.02.09 Wspieranie transformacji w kierunku gospodarki o obiegu zamkniętym i gospodarki zasobooszczędnej – Instrumenty Finansowe"]
[null,"FEWP","FEWP.02.10 Ochrona i zachowanie przyrody wraz z rozwojem zielonej infrastruktury oraz ograniczeniem zanieczyszczeń"]
[null,"FEWP","FEWP.03.01 Rozwój zrównoważonej mobilności miejskiej"]
[null,"FEWP","FEWP.03.02 Rozwój zrównoważonej mobilności miejskiej w ramach ZIT"]
[null,"FEWP","FEWP.04.01 Infrastruktura drogowa"]
[null,"FEWP","FEWP.04.02 Transport kolejowy"]
[null,"FEWP","FEWP.05.01 Poprawa równego dostępu do wysokiej jakości kształcenia, szkolenia i uczenia się przez całe życie poprzez wsparcie infrastruktury edukacyjnej"]
[null,"FEWP","FEWP.05.02 Infrastruktura społeczna przyczyniająca się do włączenia społecznego"]
[null,"FEWP","FEWP.05.03 Infrastruktura ochrony zdrowia"]
[null,"FEWP","FEWP.05.04 Kultura i zrównoważona turystyka"]
[null,"FEWP","FEWP.06.01 Aktywizacja zawodowa osób bezrobotnych i poszukujących pracy – projekty PUP"]
[null,"FEWP","FEWP.06.02 Wsparcie w ramach OHP i mobilność w ramach sieci EURES"]
[null,"FEWP","FEWP.06.03 Wyrównywanie szans kobiet i mężczyzn na rynku pracy"]
[null,"FEWP","FEWP.06.04 Wsparcie pracowników i pracodawców"]
[null,"FEWP","FEWP.06.05 Wsparcie pracowników i pracodawców w ramach ZIT"]
[null,"FEWP","FEWP.06.06 Wsparcie systemu szkolnictwa ogólnego oraz systemu szkolnictwa zawodowego"]
[null,"FEWP","FEWP.06.07 Edukacja przedszkolna, ogólna oraz kształcenie zawodowe"]
[null,"FEWP","FEWP.06.08 Edukacja przedszkolna, ogólna oraz kształcenie zawodowe w ramach ZIT"]
[null,"FEWP","FEWP.06.09 Wspieranie uczenia się przez całe życie"]
[null,"FEWP","FEWP.06.10 Aktywna integracja"]
[null,"FEWP","FEWP.06.11 Podmioty ekonomii społecznej"]
[null,"FEWP","FEWP.06.12 Integracja społeczno-gospodarcza obywateli państw trzecich, w tym migrantów"]
[null,"FEWP","FEWP.06.13 Usługi społeczne i zdrowotne"]
[null,"FEWP","FEWP.06.14 Usługi społeczne i zdrowotne w ramach ZIT"]
[null,"FEWP","FEWP.06.15 Wsparcie rodziny i systemu pieczy zastępczej"]
[null,"FEWP","FEWP.06.16 Integracja społeczna i aktywizacja społeczna"]
[null,"FEWP","FEWP.06.17 Budowanie potencjału społeczeństwa obywatelskiego i partnerów społecznych"]
[null,"FEWP","FEWP.06.18 Integracja i aktywizacja społeczna oraz wsparcie potencjału w ramach ZIT"]
[null,"FEWP","FEWP.07.01 Rewitalizacja"]
[null,"FEWP","FEWP.07.02 Rewitalizacja – Instrumenty finansowe"]
[null,"FEWP","FEWP.07.03 Kultura i turystyka"]
[null,"FEWP","FEWP.07.04 Wspieranie instrumentów terytorialnych ZIT"]
[null,"FEWP","FEWP.08.01 Wspieranie rozwoju programowanego w Lokalnych Strategiach Rozwoju (RLKS)"]
[null,"FEWP","FEWP.09.01 Wsparcie pracowników i pracodawców w ramach rozwoju lokalnego"]
[null,"FEWP","FEWP.09.02 Edukacja przedszkolna, ogólna oraz kształcenie zawodowe w ramach rozwoju lokalnego"]
[null,"FEWP","FEWP.09.03 Uczenie się przez całe życie w ramach rozwoju lokalnego"]
[null,"FEWP","FEWP.09.04 Usługi społeczne i zdrowotne w ramach rozwoju lokalnego"]
[null,"FEWP","FEWP.09.05 Zarządzanie Lokalnymi Strategiami Rozwoju"]
[null,"FEWP","FEWP.09.06 Aktywizacja społeczna osób najbardziej zagrożonych wykluczeniem społecznym, budowanie lokalnego potencjału społeczeństwa obywatelskiego"]
[null,"FEWP","FEWP.10.01 Rynek pracy, kształcenie i aktywne społeczeństwo wspierające transformację gospodarki"]
[null,"FEWP","FEWP.10.02 Wsparcie inwestycji w MŚP i dużych przedsiębiorstwach"]
[null,"FEWP","FEWP.10.03 Budowa ekosystemu instytucji otoczenia biznesu oraz wsparcie publicznej infrastruktury B+R i cyfryzacji administracji publicznej"]
[null,"FEWP","FEWP.10.04 Zregenerowane środowisko przyrodnicze"]
[null,"FEWP","FEWP.10.05 Sprawnie funkcjonujący i zdekarbonizowany transport publiczny"]
[null,"FEWP","FEWP.10.06 Przybliżenie Wielkopolski Wschodniej do osiągniecia neutralności klimatycznej"]
[null,"FEWP","FEWP.10.07 Infrastruktura na rzecz aktywnego społeczeństwa, edukacyjna oraz rewitalizacja wspierające transformację gospodarki"]
[null,"FEWP","FEWP.11.01 Wsparcie instytucji, beneficjentów i partnerów oraz informacja i komunikacja o Programie"]
[null,"FEWP","FEWP.12.01 Zatrudnienie"]
[null,"FEWP","FEWP.13.01 Wsparcie instytucji, beneficjentów i partnerów oraz informacja i komunikacja o Programie"]